Workbook

Sheet Skriveni (hidden)
A1: VP | B1: AOP | C1: IZNOS01 | D1: IZNOS02 | E1: IZNOS03 | F1: IZNOS04 | G1: KONTRBR | H1: RAZLIKA | I1: RAZLIKA1 | J1: POLJE | K1: TEKST | L1: BROJ
A2: 151 | B2: 1 | C2: ='PR-RAS'!D6 -> 15445508.34 | D2: ='PR-RAS'!E6 -> 17776623.7 | E2: 0 | F2: 0 | G2: =(B2/1000)*(C2*1+D2*2) -> 50998.75574 | H2: =ABS(C2-ROUND(C2,0))+ABS(D2-ROUND(D2,0)) -> 0.639999995 | I2: 0
A3: 151 | B3: 2 | C3: ='PR-RAS'!D7 -> 11373631.66 | D3: ='PR-RAS'!E7 -> 13667770.9 | E3: 0 | F3: 0 | G3: 77418.34692 | H3: 0.4399999995 | I3: 0
A4: 151 | B4: 3 | C4: ='PR-RAS'!D8 -> 10392462.44 | D4: ='PR-RAS'!E8 -> 12627355.02 | E4: 0 | F4: 0 | G4: 106941.5174 | H4: 0.4600000009 | I4: 0
A5: 151 | B5: 4 | C5: ='PR-RAS'!D9 -> 9096229.6 | D5: ='PR-RAS'!E9 -> 11085413.38 | E5: 0 | F5: 0 | G5: 125068.2254 | H5: 0.7800000012 | I5: 0
A6: 151 | B6: 5 | C6: ='PR-RAS'!D10 -> 634915.44 | D6: ='PR-RAS'!E10 -> 769889.74 | E6: 0 | F6: 0 | G6: 10873.4746 | H6: 0.7 | I6: 0
A7: 151 | B7: 6 | C7: ='PR-RAS'!D11 -> 392678.5 | D7: ='PR-RAS'!E11 -> 429214.14 | E7: 0 | F7: 0 | G7: 7506.64068 | H7: 0.64 | I7: 0
A8: 151 | B8: 7 | C8: ='PR-RAS'!D12 -> 846021.11 | D8: ='PR-RAS'!E12 -> 1084742.89 | E8: 0 | F8: 0 | G8: 21108.54823 | H8: 0.2200000001 | I8: 0
A9: 151 | B9: 8 | C9: ='PR-RAS'!D13 -> 345486.71 | D9: ='PR-RAS'!E13 -> 470952.25 | E9: 0 | F9: 0 | G9: 10299.12968 | H9: 0.54 | I9: 0
A10: 151 | B10: 9 | C10: ='PR-RAS'!D14 -> 1311.53 | D10: ='PR-RAS'!E14 -> 1234.62 | E10: 0 | F10: 0 | G10: 34.02693 | H10: 0.85 | I10: 0
A11: 151 | B11: 10 | C11: ='PR-RAS'!D15 -> 924180.45 | D11: ='PR-RAS'!E15 -> 1214092 | E11: 0 | F11: 0 | G11: 33523.6445 | H11: 0.45 | I11: 0
A12: 151 | B12: 11 | C12: ='PR-RAS'!D16 -> 0 | D12: ='PR-RAS'!E16 -> 0 | E12: 0 | F12: 0 | G12: 0 | H12: 0 | I12: 0
A13: 151 | B13: 12 | C13: ='PR-RAS'!D17 -> 0 | D13: ='PR-RAS'!E17 -> 0 | E13: 0 | F13: 0 | G13: 0 | H13: 0 | I13: 0
A14: 151 | B14: 13 | C14: ='PR-RAS'!D18 -> 0 | D14: ='PR-RAS'!E18 -> 0 | E14: 0 | F14: 0 | G14: 0 | H14: 0 | I14: 0
A15: 151 | B15: 14 | C15: ='PR-RAS'!D19 -> 0 | D15: ='PR-RAS'!E19 -> 0 | E15: 0 | F15: 0 | G15: 0 | H15: 0 | I15: 0
A16: 151 | B16: 15 | C16: ='PR-RAS'!D20 -> 0 | D16: ='PR-RAS'!E20 -> 0 | E16: 0 | F16: 0 | G16: 0 | H16: 0 | I16: 0
A17: 151 | B17: 16 | C17: ='PR-RAS'!D21 -> 0 | D17: ='PR-RAS'!E21 -> 0 | E17: 0 | F17: 0 | G17: 0 | H17: 0 | I17: 0
A18: 151 | B18: 17 | C18: ='PR-RAS'!D22 -> 0 | D18: ='PR-RAS'!E22 -> 0 | E18: 0 | F18: 0 | G18: 0 | H18: 0 | I18: 0
A19: 151 | B19: 18 | C19: ='PR-RAS'!D23 -> 909330.78 | D19: ='PR-RAS'!E23 -> 947878.88 | E19: 0 | F19: 0 | G19: 50491.59372 | H19: 0.34 | I19: 0
A20: 151 | B20: 19 | C20: ='PR-RAS'!D24 -> 13638.42 | D20: ='PR-RAS'!E24 -> 15843.15 | E20: 0 | F20: 0 | G20: 861.16968 | H20: 0.57 | I20: 0
A21: 151 | B21: 20 | C21: ='PR-RAS'!D25 -> 0 | D21: ='PR-RAS'!E25 -> 0 | E21: 0 | F21: 0 | G21: 0 | H21: 0 | I21: 0
A22: 151 | B22: 21 | C22: ='PR-RAS'!D26 -> 0 | D22: ='PR-RAS'!E26 -> 0 | E22: 0 | F22: 0 | G22: 0 | H22: 0 | I22: 0
A23: 151 | B23: 22 | C23: ='PR-RAS'!D27 -> 895692.36 | D23: ='PR-RAS'!E27 -> 932035.73 | E23: 0 | F23: 0 | G23: 60714.80404 | H23: 0.63 | I23: 0
A24: 151 | B24: 23 | C24: ='PR-RAS'!D28 -> 0 | D24: ='PR-RAS'!E28 -> 0 | E24: 0 | F24: 0 | G24: 0 | H24: 0 | I24: 0
A25: 151 | B25: 24 | C25: ='PR-RAS'!D29 -> 71838.44 | D25: ='PR-RAS'!E29 -> 92537 | E25: 0 | F25: 0 | G25: 6165.89856 | H25: 0.44 | I25: 0
A26: 151 | B26: 25 | C26: ='PR-RAS'!D30 -> 0 | D26: ='PR-RAS'!E30 -> 0 | E26: 0 | F26: 0 | G26: 0 | H26: 0 | I26: 0
A27: 151 | B27: 26 | C27: ='PR-RAS'!D31 -> 71838.44 | D27: ='PR-RAS'!E31 -> 92537 | E27: 0 | F27: 0 | G27: 6679.72344 | H27: 0.44 | I27: 0
A28: 151 | B28: 27 | C28: ='PR-RAS'!D32 -> 0 | D28: ='PR-RAS'!E32 -> 0 | E28: 0 | F28: 0 | G28: 0 | H28: 0 | I28: 0
A29: 151 | B29: 28 | C29: ='PR-RAS'!D33 -> 0 | D29: ='PR-RAS'!E33 -> 0 | E29: 0 | F29: 0 | G29: 0 | H29: 0 | I29: 0
A30: 151 | B30: 29 | C30: ='PR-RAS'!D34 -> 0 | D30: ='PR-RAS'!E34 -> 0 | E30: 0 | F30: 0 | G30: 0 | H30: 0 | I30: 0
A31: 151 | B31: 30 | C31: ='PR-RAS'!D35 -> 0 | D31: ='PR-RAS'!E35 -> 0 | E31: 0 | F31: 0 | G31: 0 | H31: 0 | I31: 0
A32: 151 | B32: 31 | C32: ='PR-RAS'!D36 -> 0 | D32: ='PR-RAS'!E36 -> 0 | E32: 0 | F32: 0 | G32: 0 | H32: 0 | I32: 0
A33: 151 | B33: 32 | C33: ='PR-RAS'!D37 -> 0 | D33: ='PR-RAS'!E37 -> 0 | E33: 0 | F33: 0 | G33: 0 | H33: 0 | I33: 0
A34: 151 | B34: 33 | C34: ='PR-RAS'!D38 -> 0 | D34: ='PR-RAS'!E38 -> 0 | E34: 0 | F34: 0 | G34: 0 | H34: 0 | I34: 0
A35: 151 | B35: 34 | C35: ='PR-RAS'!D39 -> 0 | D35: ='PR-RAS'!E39 -> 0 | E35: 0 | F35: 0 | G35: 0 | H35: 0 | I35: 0
A36: 151 | B36: 35 | C36: ='PR-RAS'!D40 -> 0 | D36: ='PR-RAS'!E40 -> 0 | E36: 0 | F36: 0 | G36: 0 | H36: 0 | I36: 0
A37: 151 | B37: 36 | C37: ='PR-RAS'!D41 -> 0 | D37: ='PR-RAS'!E41 -> 0 | E37: 0 | F37: 0 | G37: 0 | H37: 0 | I37: 0
A38: 151 | B38: 37 | C38: ='PR-RAS'!D42 -> 0 | D38: ='PR-RAS'!E42 -> 0 | E38: 0 | F38: 0 | G38: 0 | H38: 0 | I38: 0
A39: 151 | B39: 38 | C39: ='PR-RAS'!D43 -> 0 | D39: ='PR-RAS'!E43 -> 0 | E39: 0 | F39: 0 | G39: 0 | H39: 0 | I39: 0
A40: 151 | B40: 39 | C40: ='PR-RAS'!D44 -> 0 | D40: ='PR-RAS'!E44 -> 0 | E40: 0 | F40: 0 | G40: 0 | H40: 0 | I40: 0
A41: 151 | B41: 40 | C41: ='PR-RAS'!D45 -> 0 | D41: ='PR-RAS'!E45 -> 0 | E41: 0 | F41: 0 | G41: 0 | H41: 0 | I41: 0
A42: 151 | B42: 41 | C42: ='PR-RAS'!D46 -> 0 | D42: ='PR-RAS'!E46 -> 0 | E42: 0 | F42: 0 | G42: 0 | H42: 0 | I42: 0
A43: 151 | B43: 42 | C43: ='PR-RAS'!D47 -> 0 | D43: ='PR-RAS'!E47 -> 0 | E43: 0 | F43: 0 | G43: 0 | H43: 0 | I43: 0
A44: 151 | B44: 43 | C44: ='PR-RAS'!D48 -> 0 | D44: ='PR-RAS'!E48 -> 0 | E44: 0 | F44: 0 | G44: 0 | H44: 0 | I44: 0
A45: 151 | B45: 44 | C45: ='PR-RAS'!D49 -> 1246837.72 | D45: ='PR-RAS'!E49 -> 1726157.28 | E45: 0 | F45: 0 | G45: 206762.7003 | H45: 0.5599999998 | I45: 0
A46: 151 | B46: 45 | C46: ='PR-RAS'!D50 -> 0 | D46: ='PR-RAS'!E50 -> 0 | E46: 0 | F46: 0 | G46: 0 | H46: 0 | I46: 0
A47: 151 | B47: 46 | C47: ='PR-RAS'!D51 -> 0 | D47: ='PR-RAS'!E51 -> 0 | E47: 0 | F47: 0 | G47: 0 | H47: 0 | I47: 0
A48: 151 | B48: 47 | C48: ='PR-RAS'!D52 -> 0 | D48: ='PR-RAS'!E52 -> 0 | E48: 0 | F48: 0 | G48: 0 | H48: 0 | I48: 0
A49: 151 | B49: 48 | C49: ='PR-RAS'!D53 -> 0 | D49: ='PR-RAS'!E53 -> 0 | E49: 0 | F49: 0 | G49: 0 | H49: 0 | I49: 0
A50: 151 | B50: 49 | C50: ='PR-RAS'!D54 -> 0 | D50: ='PR-RAS'!E54 -> 0 | E50: 0 | F50: 0 | G50: 0 | H50: 0 | I50: 0
A51: 151 | B51: 50 | C51: ='PR-RAS'!D55 -> 0 | D51: ='PR-RAS'!E55 -> 0 | E51: 0 | F51: 0 | G51: 0 | H51: 0 | I51: 0
A52: 151 | B52: 51 | C52: ='PR-RAS'!D56 -> 0 | D52: ='PR-RAS'!E56 -> 0 | E52: 0 | F52: 0 | G52: 0 | H52: 0 | I52: 0
A53: 151 | B53: 52 | C53: ='PR-RAS'!D57 -> 0 | D53: ='PR-RAS'!E57 -> 0 | E53: 0 | F53: 0 | G53: 0 | H53: 0 | I53: 0
A54: 151 | B54: 53 | C54: ='PR-RAS'!D58 -> 679703.74 | D54: ='PR-RAS'!E58 -> 305078.99 | E54: 0 | F54: 0 | G54: 68362.67116 | H54: 0.27 | I54: 0
A55: 151 | B55: 54 | C55: ='PR-RAS'!D59 -> 251284.91 | D55: ='PR-RAS'!E59 -> 240095.69 | E55: 0 | F55: 0 | G55: 39499.71966 | H55: 0.4 | I55: 0
A56: 151 | B56: 55 | C56: ='PR-RAS'!D60 -> 428418.83 | D56: ='PR-RAS'!E60 -> 64983.3 | E56: 0 | F56: 0 | G56: 30711.19865 | H56: 0.47 | I56: 0
A57: 151 | B57: 56 | C57: ='PR-RAS'!D61 -> 39714.03 | D57: ='PR-RAS'!E61 -> 401303.2 | E57: 0 | F57: 0 | G57: 47169.94408 | H57: 0.23 | I57: 0
A58: 151 | B58: 57 | C58: ='PR-RAS'!D62 -> 39714.03 | D58: ='PR-RAS'!E62 -> 1580.39 | E58: 0 | F58: 0 | G58: 2443.86417 | H58: 0.42 | I58: 0
A59: 151 | B59: 58 | C59: ='PR-RAS'!D63 -> 0 | D59: ='PR-RAS'!E63 -> 399722.81 | E59: 0 | F59: 0 | G59: 46367.84596 | H59: 0.19 | I59: 0
A60: 151 | B60: 59 | C60: ='PR-RAS'!D64 -> 0 | D60: ='PR-RAS'!E64 -> 0 | E60: 0 | F60: 0 | G60: 0 | H60: 0 | I60: 0
A61: 151 | B61: 60 | C61: ='PR-RAS'!D65 -> 0 | D61: ='PR-RAS'!E65 -> 0 | E61: 0 | F61: 0 | G61: 0 | H61: 0 | I61: 0
A62: 151 | B62: 61 | C62: ='PR-RAS'!D66 -> 0 | D62: ='PR-RAS'!E66 -> 0 | E62: 0 | F62: 0 | G62: 0 | H62: 0 | I62: 0
A63: 151 | B63: 62 | C63: ='PR-RAS'!D67 -> 0 | D63: ='PR-RAS'!E67 -> 0 | E63: 0 | F63: 0 | G63: =(B63/1000)*(C63*1+D63*2) -> 0 | H63: =ABS(C63-ROUND(C63,0))+ABS(D63-ROUND(D63,0)) -> 0 | I63: 0
A64: 151 | B64: 63 | C64: ='PR-RAS'!D68 -> 0 | D64: ='PR-RAS'!E68 -> 0 | E64: 0 | F64: 0 | G64: 0 | H64: 0 | I64: 0
A65: 151 | B65: 64 | C65: ='PR-RAS'!D69 -> 0 | D65: ='PR-RAS'!E69 -> 0 | E65: 0 | F65: 0 | G65: 0 | H65: 0 | I65: 0
A66: 151 | B66: 65 | C66: ='PR-RAS'!D70 -> 0 | D66: ='PR-RAS'!E70 -> 0 | E66: 0 | F66: 0 | G66: 0 | H66: 0 | I66: 0
A67: 151 | B67: 66 | C67: ='PR-RAS'!D71 -> 0 | D67: ='PR-RAS'!E71 -> 0 | E67: 0 | F67: 0 | G67: =(B67/1000)*(C67*1+D67*2) -> 0 | H67: =ABS(C67-ROUND(C67,0))+ABS(D67-ROUND(D67,0)) -> 0 | I67: 0
A68: 151 | B68: 67 | C68: ='PR-RAS'!D72 -> 0 | D68: ='PR-RAS'!E72 -> 0 | E68: 0 | F68: 0 | G68: 0 | H68: 0 | I68: 0
A69: 151 | B69: 68 | C69: ='PR-RAS'!D73 -> 0 | D69: ='PR-RAS'!E73 -> 0 | E69: 0 | F69: 0 | G69: 0 | H69: 0 | I69: 0
A70: 151 | B70: 69 | C70: ='PR-RAS'!D74 -> 527419.95 | D70: ='PR-RAS'!E74 -> 1019775.09 | E70: 0 | F70: 0 | G70: 177120.939 | H70: 0.14 | I70: 0
A71: 151 | B71: 70 | C71: ='PR-RAS'!D75 -> 108000 | D71: ='PR-RAS'!E75 -> 113178.01 | E71: 0 | F71: 0 | G71: 23404.9214 | H71: 0.009999999995 | I71: 0
A72: 151 | B72: 71 | C72: ='PR-RAS'!D76 -> 419419.95 | D72: ='PR-RAS'!E76 -> 906597.08 | E72: 0 | F72: 0 | G72: 158515.6018 | H72: 0.1299999999 | I72: 0
A73: 151 | B73: 72 | C73: ='PR-RAS'!D77 -> 0 | D73: ='PR-RAS'!E77 -> 0 | E73: 0 | F73: 0 | G73: 0 | H73: 0 | I73: 0
A74: 151 | B74: 73 | C74: ='PR-RAS'!D78 -> 0 | D74: ='PR-RAS'!E78 -> 0 | E74: 0 | F74: 0 | G74: 0 | H74: 0 | I74: 0
A75: 151 | B75: 74 | C75: ='PR-RAS'!D79 -> 0 | D75: ='PR-RAS'!E79 -> 0 | E75: 0 | F75: 0 | G75: 0 | H75: 0 | I75: 0
A76: 151 | B76: 75 | C76: ='PR-RAS'!D80 -> 0 | D76: ='PR-RAS'!E80 -> 0 | E76: 0 | F76: 0 | G76: 0 | H76: 0 | I76: 0
A77: 151 | B77: 76 | C77: ='PR-RAS'!D81 -> 0 | D77: ='PR-RAS'!E81 -> 0 | E77: 0 | F77: 0 | G77: 0 | H77: 0 | I77: 0
A78: 151 | B78: 77 | C78: ='PR-RAS'!D82 -> 245408.95 | D78: ='PR-RAS'!E82 -> 188575.13 | E78: 0 | F78: 0 | G78: 47937.05917 | H78: 0.18 | I78: 0
A79: 151 | B79: 78 | C79: ='PR-RAS'!D83 -> 12790.87 | D79: ='PR-RAS'!E83 -> 39900.98 | E79: 0 | F79: 0 | G79: 7222.24074 | H79: 0.15 | I79: 0
A80: 151 | B80: 79 | C80: ='PR-RAS'!D84 -> 0 | D80: ='PR-RAS'!E84 -> 0 | E80: 0 | F80: 0 | G80: 0 | H80: 0 | I80: 0
A81: 151 | B81: 80 | C81: ='PR-RAS'!D85 -> 11704.28 | D81: ='PR-RAS'!E85 -> 12713.51 | E81: 0 | F81: 0 | G81: 2970.504 | H81: 0.77 | I81: 0
A82: 151 | B82: 81 | C82: ='PR-RAS'!D86 -> 1086.59 | D82: ='PR-RAS'!E86 -> 27187.47 | E82: 0 | F82: 0 | G82: 4492.38393 | H82: 0.88 | I82: 0
A83: 151 | B83: 82 | C83: ='PR-RAS'!D87 -> 0 | D83: ='PR-RAS'!E87 -> 0 | E83: 0 | F83: 0 | G83: 0 | H83: 0 | I83: 0
A84: 151 | B84: 83 | C84: ='PR-RAS'!D88 -> 0 | D84: ='PR-RAS'!E88 -> 0 | E84: 0 | F84: 0 | G84: 0 | H84: 0 | I84: 0
A85: 151 | B85: 84 | C85: ='PR-RAS'!D89 -> 0 | D85: ='PR-RAS'!E89 -> 0 | E85: 0 | F85: 0 | G85: 0 | H85: 0 | I85: 0
A86: 151 | B86: 85 | C86: ='PR-RAS'!D90 -> 0 | D86: ='PR-RAS'!E90 -> 0 | E86: 0 | F86: 0 | G86: 0 | H86: 0 | I86: 0
A87: 151 | B87: 86 | C87: ='PR-RAS'!D91 -> 232618.08 | D87: ='PR-RAS'!E91 -> 148674.15 | E87: 0 | F87: 0 | G87: 45577.10868 | H87: 0.23 | I87: 0
A88: 151 | B88: 87 | C88: ='PR-RAS'!D92 -> 15373.23 | D88: ='PR-RAS'!E92 -> 0.01 | E88: 0 | F88: 0 | G88: 1337.47275 | H88: 0.24 | I88: 0
A89: 151 | B89: 88 | C89: ='PR-RAS'!D93 -> 73077.31 | D89: ='PR-RAS'!E93 -> 87672.31 | E89: 0 | F89: 0 | G89: 21861.12984 | H89: 0.62 | I89: 0
A90: 151 | B90: 89 | C90: ='PR-RAS'!D94 -> 144167.54 | D90: ='PR-RAS'!E94 -> 61001.83 | E90: 0 | F90: 0 | G90: 23689.2368 | H90: 0.63 | I90: 0
A91: 151 | B91: 90 | C91: ='PR-RAS'!D95 -> 0 | D91: ='PR-RAS'!E95 -> 0 | E91: 0 | F91: 0 | G91: 0 | H91: 0 | I91: 0
A92: 151 | B92: 91 | C92: ='PR-RAS'!D96 -> 0 | D92: ='PR-RAS'!E96 -> 0 | E92: 0 | F92: 0 | G92: 0 | H92: 0 | I92: 0
A93: 151 | B93: 92 | C93: ='PR-RAS'!D97 -> 0 | D93: ='PR-RAS'!E97 -> 0 | E93: 0 | F93: 0 | G93: 0 | H93: 0 | I93: 0
A94: 151 | B94: 93 | C94: ='PR-RAS'!D98 -> 0 | D94: ='PR-RAS'!E98 -> 0 | E94: 0 | F94: 0 | G94: 0 | H94: 0 | I94: 0
A95: 151 | B95: 94 | C95: ='PR-RAS'!D99 -> 0 | D95: ='PR-RAS'!E99 -> 0 | E95: 0 | F95: 0 | G95: 0 | H95: 0 | I95: 0
A96: 151 | B96: 95 | C96: ='PR-RAS'!D100 -> 0 | D96: ='PR-RAS'!E100 -> 0 | E96: 0 | F96: 0 | G96: 0 | H96: 0 | I96: 0
A97: 151 | B97: 96 | C97: ='PR-RAS'!D101 -> 0 | D97: ='PR-RAS'!E101 -> 0 | E97: 0 | F97: 0 | G97: 0 | H97: 0 | I97: 0
A98: 151 | B98: 97 | C98: ='PR-RAS'!D102 -> 0 | D98: ='PR-RAS'!E102 -> 0 | E98: 0 | F98: 0 | G98: 0 | H98: 0 | I98: 0
A99: 151 | B99: 98 | C99: ='PR-RAS'!D103 -> 0 | D99: ='PR-RAS'!E103 -> 0 | E99: 0 | F99: 0 | G99: 0 | H99: 0 | I99: 0
A100: 151 | B100: 99 | C100: ='PR-RAS'!D104 -> 0 | D100: ='PR-RAS'!E104 -> 0 | E100: 0 | F100: 0 | G100: 0 | H100: 0 | I100: 0
A101: 151 | B101: 100 | C101: ='PR-RAS'!D105 -> 0 | D101: ='PR-RAS'!E105 -> 0 | E101: 0 | F101: 0 | G101: 0 | H101: 0 | I101: 0
A102: 151 | B102: 101 | C102: ='PR-RAS'!D106 -> 2377889.82 | D102: ='PR-RAS'!E106 -> 2016710.72 | E102: 0 | F102: 0 | G102: 647542.4373 | H102: 0.4599999997 | I102: 0
A103: 151 | B103: 102 | C103: ='PR-RAS'!D107 -> 11633.34 | D103: ='PR-RAS'!E107 -> 9871.67 | E103: 0 | F103: 0 | G103: 3200.42136 | H103: 0.67 | I103: 0
A104: 151 | B104: 103 | C104: ='PR-RAS'!D108 -> 0 | D104: ='PR-RAS'!E108 -> 0 | E104: 0 | F104: 0 | G104: 0 | H104: 0 | I104: 0
A105: 151 | B105: 104 | C105: ='PR-RAS'!D109 -> 3075.58 | D105: ='PR-RAS'!E109 -> 1197.83 | E105: 0 | F105: 0 | G105: 569.00896 | H105: 0.59 | I105: 0
A106: 151 | B106: 105 | C106: ='PR-RAS'!D110 -> 156.01 | D106: ='PR-RAS'!E110 -> 72.95 | E106: 0 | F106: 0 | G106: 31.70055 | H106: 0.06 | I106: 0
A107: 151 | B107: 106 | C107: ='PR-RAS'!D111 -> 8401.75 | D107: ='PR-RAS'!E111 -> 8600.89 | E107: 0 | F107: 0 | G107: 2713.97418 | H107: 0.36 | I107: 0
A108: 151 | B108: 107 | C108: ='PR-RAS'!D112 -> 319247.67 | D108: ='PR-RAS'!E112 -> 66871.24 | E108: 0 | F108: 0 | G108: 48469.94605 | H108: 0.57 | I108: 0
A109: 151 | B109: 108 | C109: ='PR-RAS'!D113 -> 0 | D109: ='PR-RAS'!E113 -> 0 | E109: 0 | F109: 0 | G109: 0 | H109: 0 | I109: 0
A110: 151 | B110: 109 | C110: ='PR-RAS'!D114 -> 677.03 | D110: ='PR-RAS'!E114 -> 62.41 | E110: 0 | F110: 0 | G110: 87.40165 | H110: 0.44 | I110: 0
A111: 151 | B111: 110 | C111: ='PR-RAS'!D115 -> 0 | D111: ='PR-RAS'!E115 -> 0 | E111: 0 | F111: 0 | G111: 0 | H111: 0 | I111: 0
A112: 151 | B112: 111 | C112: ='PR-RAS'!D116 -> 0 | D112: ='PR-RAS'!E116 -> 0 | E112: 0 | F112: 0 | G112: 0 | H112: 0 | I112: 0
A113: 151 | B113: 112 | C113: ='PR-RAS'!D117 -> 318570.64 | D113: ='PR-RAS'!E117 -> 66808.83 | E113: 0 | F113: 0 | G113: 50645.0896 | H113: 0.53 | I113: 0
A114: 151 | B114: 113 | C114: ='PR-RAS'!D118 -> 0 | D114: ='PR-RAS'!E118 -> 0 | E114: 0 | F114: 0 | G114: 0 | H114: 0 | I114: 0
A115: 151 | B115: 114 | C115: ='PR-RAS'!D119 -> 0 | D115: ='PR-RAS'!E119 -> 0 | E115: 0 | F115: 0 | G115: 0 | H115: 0 | I115: 0
A116: 151 | B116: 115 | C116: ='PR-RAS'!D120 -> 2047008.81 | D116: ='PR-RAS'!E120 -> 1939967.81 | E116: 0 | F116: 0 | G116: 681598.6094 | H116: 0.3799999999 | I116: 0
A117: 151 | B117: 116 | C117: ='PR-RAS'!D121 -> 420220.83 | D117: ='PR-RAS'!E121 -> 267282.24 | E117: 0 | F117: 0 | G117: 110755.096 | H117: 0.41 | I117: 0
A118: 151 | B118: 117 | C118: ='PR-RAS'!D122 -> 1626787.98 | D118: ='PR-RAS'!E122 -> 1672685.57 | E118: 0 | F118: 0 | G118: 581742.617 | H118: 0.45 | I118: 0
A119: 151 | B119: 118 | C119: ='PR-RAS'!D123 -> 0 | D119: ='PR-RAS'!E123 -> 0 | E119: 0 | F119: 0 | G119: 0 | H119: 0 | I119: 0
A120: 151 | B120: 119 | C120: ='PR-RAS'!D124 -> 0 | D120: ='PR-RAS'!E124 -> 0 | E120: 0 | F120: 0 | G120: =(B120/1000)*(C120*1+D120*2) -> 0 | H120: =ABS(C120-ROUND(C120,0))+ABS(D120-ROUND(D120,0)) -> 0 | I120: 0
A121: 151 | B121: 120 | C121: ='PR-RAS'!D125 -> 69619.84 | D121: ='PR-RAS'!E125 -> 65057.57 | E121: 0 | F121: 0 | G121: 23968.1976 | H121: 0.59 | I121: 0
A122: 151 | B122: 121 | C122: ='PR-RAS'!D126 -> 66469.92 | D122: ='PR-RAS'!E126 -> 65057.57 | E122: 0 | F122: 0 | G122: 23786.79226 | H122: 0.51 | I122: 0
A123: 151 | B123: 122 | C123: ='PR-RAS'!D127 -> 0 | D123: ='PR-RAS'!E127 -> 0 | E123: 0 | F123: 0 | G123: 0 | H123: 0 | I123: 0
A124: 151 | B124: 123 | C124: ='PR-RAS'!D128 -> 66469.92 | D124: ='PR-RAS'!E128 -> 65057.57 | E124: 0 | F124: 0 | G124: 24179.96238 | H124: 0.51 | I124: 0
A125: 151 | B125: 124 | C125: ='PR-RAS'!D129 -> 3149.92 | D125: ='PR-RAS'!E129 -> 0 | E125: 0 | F125: 0 | G125: 390.59008 | H125: 0.08 | I125: 0
A126: 151 | B126: 125 | C126: ='PR-RAS'!D130 -> 0 | D126: ='PR-RAS'!E130 -> 0 | E126: 0 | F126: 0 | G126: 0 | H126: 0 | I126: 0
A127: 151 | B127: 126 | C127: ='PR-RAS'!D131 -> 3149.92 | D127: ='PR-RAS'!E131 -> 0 | E127: 0 | F127: 0 | G127: 396.88992 | H127: 0.08 | I127: 0
A128: 151 | B128: 127 | C128: ='PR-RAS'!D132 -> 0 | D128: ='PR-RAS'!E132 -> 0 | E128: 0 | F128: 0 | G128: =(B128/1000)*(C128*1+D128*2) -> 0 | H128: =ABS(C128-ROUND(C128,0))+ABS(D128-ROUND(D128,0)) -> 0 | I128: 0
A129: 151 | B129: 128 | C129: ='PR-RAS'!D133 -> 0 | D129: ='PR-RAS'!E133 -> 0 | E129: 0 | F129: 0 | G129: 0 | H129: 0 | I129: 0
A130: 151 | B130: 129 | C130: ='PR-RAS'!D134 -> 0 | D130: ='PR-RAS'!E134 -> 0 | E130: 0 | F130: 0 | G130: 0 | H130: 0 | I130: 0
A131: 151 | B131: 130 | C131: ='PR-RAS'!D135 -> 0 | D131: ='PR-RAS'!E135 -> 0 | E131: 0 | F131: 0 | G131: 0 | H131: 0 | I131: 0
A132: 151 | B132: 131 | C132: ='PR-RAS'!D136 -> 0 | D132: ='PR-RAS'!E136 -> 0 | E132: 0 | F132: 0 | G132: 0 | H132: 0 | I132: 0
A133: 151 | B133: 132 | C133: ='PR-RAS'!D137 -> 0 | D133: ='PR-RAS'!E137 -> 0 | E133: 0 | F133: 0 | G133: 0 | H133: 0 | I133: 0
A134: 151 | B134: 133 | C134: ='PR-RAS'!D138 -> 0 | D134: ='PR-RAS'!E138 -> 0 | E134: 0 | F134: 0 | G134: 0 | H134: 0 | I134: 0
A135: 151 | B135: 134 | C135: ='PR-RAS'!D139 -> 0 | D135: ='PR-RAS'!E139 -> 0 | E135: 0 | F135: 0 | G135: 0 | H135: 0 | I135: 0
A136: 151 | B136: 135 | C136: ='PR-RAS'!D140 -> 132120.35 | D136: ='PR-RAS'!E140 -> 112352.1 | E136: 0 | F136: 0 | G136: 48171.31425 | H136: 0.45 | I136: 0
A137: 151 | B137: 136 | C137: ='PR-RAS'!D141 -> 132120.35 | D137: ='PR-RAS'!E141 -> 112352.1 | E137: 0 | F137: 0 | G137: 48528.1388 | H137: 0.45 | I137: 0
A138: 151 | B138: 137 | C138: ='PR-RAS'!D142 -> 0 | D138: ='PR-RAS'!E142 -> 0 | E138: 0 | F138: 0 | G138: 0 | H138: 0 | I138: 0
A139: 151 | B139: 138 | C139: ='PR-RAS'!D143 -> 0 | D139: ='PR-RAS'!E143 -> 0 | E139: 0 | F139: 0 | G139: 0 | H139: 0 | I139: 0
A140: 151 | B140: 139 | C140: ='PR-RAS'!D144 -> 0 | D140: ='PR-RAS'!E144 -> 0 | E140: 0 | F140: 0 | G140: 0 | H140: 0 | I140: 0
A141: 151 | B141: 140 | C141: ='PR-RAS'!D145 -> 0 | D141: ='PR-RAS'!E145 -> 0 | E141: 0 | F141: 0 | G141: 0 | H141: 0 | I141: 0
A142: 151 | B142: 141 | C142: ='PR-RAS'!D146 -> 0 | D142: ='PR-RAS'!E146 -> 0 | E142: 0 | F142: 0 | G142: 0 | H142: 0 | I142: 0
A143: 151 | B143: 142 | C143: ='PR-RAS'!D147 -> 0 | D143: ='PR-RAS'!E147 -> 0 | E143: 0 | F143: 0 | G143: 0 | H143: 0 | I143: 0
A144: 151 | B144: 143 | C144: ='PR-RAS'!D148 -> 0 | D144: ='PR-RAS'!E148 -> 0 | E144: 0 | F144: 0 | G144: 0 | H144: 0 | I144: 0
A145: 151 | B145: 144 | C145: ='PR-RAS'!D149 -> 0 | D145: ='PR-RAS'!E149 -> 0 | E145: 0 | F145: 0 | G145: 0 | H145: 0 | I145: 0
A146: 151 | B146: 145 | C146: ='PR-RAS'!D150 -> 132120.35 | D146: ='PR-RAS'!E150 -> 112352.1 | E146: 0 | F146: 0 | G146: 51739.55975 | H146: 0.45 | I146: 0
A147: 151 | B147: 146 | C147: ='PR-RAS'!D151 -> 0 | D147: ='PR-RAS'!E151 -> 0 | E147: 0 | F147: 0 | G147: 0 | H147: 0 | I147: 0
A148: 151 | B148: 147 | C148: ='PR-RAS'!D152 -> 10464083.56 | D148: ='PR-RAS'!E152 -> 15269535.37 | E148: 0 | F148: 0 | G148: 6027463.682 | H148: 0.8100000005 | I148: 0
A149: 151 | B149: 148 | C149: ='PR-RAS'!D153 -> 1258937.47 | D149: ='PR-RAS'!E153 -> 2140042.15 | E149: 0 | F149: 0 | G149: 819775.222 | H149: 0.6199999999 | I149: 0
A150: 151 | B150: 149 | C150: ='PR-RAS'!D154 -> 1006733.3 | D150: ='PR-RAS'!E154 -> 1732514.64 | E150: 0 | F150: 0 | G150: 666292.6244 | H150: 0.66 | I150: 0
A151: 151 | B151: 150 | C151: ='PR-RAS'!D155 -> 996776.61 | D151: ='PR-RAS'!E155 -> 1718958.75 | E151: 0 | F151: 0 | G151: 665204.1165 | H151: 0.64 | I151: 0
A152: 151 | B152: 151 | C152: ='PR-RAS'!D156 -> 0 | D152: ='PR-RAS'!E156 -> 0 | E152: 0 | F152: 0 | G152: 0 | H152: 0 | I152: 0
A153: 151 | B153: 152 | C153: ='PR-RAS'!D157 -> 9956.69 | D153: ='PR-RAS'!E157 -> 13555.89 | E153: 0 | F153: 0 | G153: 5634.40744 | H153: 0.42 | I153: 0
A154: 151 | B154: 153 | C154: ='PR-RAS'!D158 -> 0 | D154: ='PR-RAS'!E158 -> 0 | E154: 0 | F154: 0 | G154: 0 | H154: 0 | I154: 0
A155: 151 | B155: 154 | C155: ='PR-RAS'!D159 -> 91282.47 | D155: ='PR-RAS'!E159 -> 126045.64 | E155: 0 | F155: 0 | G155: 52879.5575 | H155: 0.83 | I155: 0
A156: 151 | B156: 155 | C156: ='PR-RAS'!D160 -> 160921.7 | D156: ='PR-RAS'!E160 -> 281481.87 | E156: 0 | F156: 0 | G156: 112202.2432 | H156: 0.43 | I156: 0
A157: 151 | B157: 156 | C157: ='PR-RAS'!D161 -> 1770.66 | D157: ='PR-RAS'!E161 -> 2632.26 | E157: 0 | F157: 0 | G157: 1097.48808 | H157: 0.6 | I157: 0
A158: 151 | B158: 157 | C158: ='PR-RAS'!D162 -> 159151.04 | D158: ='PR-RAS'!E162 -> 278849.61 | E158: 0 | F158: 0 | G158: 112545.4908 | H158: 0.43 | I158: 0
A159: 151 | B159: 158 | C159: ='PR-RAS'!D163 -> 0 | D159: ='PR-RAS'!E163 -> 0 | E159: 0 | F159: 0 | G159: 0 | H159: 0 | I159: 0
A160: 151 | B160: 159 | C160: ='PR-RAS'!D164 -> 2324932.98 | D160: ='PR-RAS'!E164 -> 3276375.85 | E160: 0 | F160: 0 | G160: 1411551.864 | H160: 0.1700000009 | I160: 0
A161: 151 | B161: 160 | C161: ='PR-RAS'!D165 -> 30902.24 | D161: ='PR-RAS'!E165 -> 43103.32 | E161: 0 | F161: 0 | G161: 18737.4208 | H161: 0.56 | I161: 0
A162: 151 | B162: 161 | C162: ='PR-RAS'!D166 -> 7257.17 | D162: ='PR-RAS'!E166 -> 2238.64 | E162: 0 | F162: 0 | G162: 1889.24645 | H162: 0.53 | I162: 0
A163: 151 | B163: 162 | C163: ='PR-RAS'!D167 -> 19257.08 | D163: ='PR-RAS'!E167 -> 33617.27 | E163: 0 | F163: 0 | G163: 14011.64244 | H163: 0.35 | I163: 0
A164: 151 | B164: 163 | C164: ='PR-RAS'!D168 -> 4370.99 | D164: ='PR-RAS'!E168 -> 7172.91 | E164: 0 | F164: 0 | G164: 3050.84003 | H164: 0.1 | I164: 0
A165: 151 | B165: 164 | C165: ='PR-RAS'!D169 -> 17 | D165: ='PR-RAS'!E169 -> 74.5 | E165: 0 | F165: 0 | G165: 27.224 | H165: 0.5 | I165: 0
A166: 151 | B166: 165 | C166: ='PR-RAS'!D170 -> 252991.97 | D166: ='PR-RAS'!E170 -> 262666.71 | E166: 0 | F166: 0 | G166: 128423.6894 | H166: 0.3199999999 | I166: 0
A167: 151 | B167: 166 | C167: ='PR-RAS'!D171 -> 8648.51 | D167: ='PR-RAS'!E171 -> 19840.5 | E167: 0 | F167: 0 | G167: 8022.69866 | H167: 0.99 | I167: 0
A168: 151 | B168: 167 | C168: ='PR-RAS'!D172 -> 0 | D168: ='PR-RAS'!E172 -> 0 | E168: 0 | F168: 0 | G168: 0 | H168: 0 | I168: 0
A169: 151 | B169: 168 | C169: ='PR-RAS'!D173 -> 239249.51 | D169: ='PR-RAS'!E173 -> 242028.33 | E169: 0 | F169: 0 | G169: 121515.4366 | H169: 0.82 | I169: 0
A170: 151 | B170: 169 | C170: ='PR-RAS'!D174 -> 52.32 | D170: ='PR-RAS'!E174 -> 44.64 | E170: 0 | F170: 0 | G170: 23.9304 | H170: 0.68 | I170: 0
A171: 151 | B171: 170 | C171: ='PR-RAS'!D175 -> 2514.4 | D171: ='PR-RAS'!E175 -> 753.24 | E171: 0 | F171: 0 | G171: 683.5496 | H171: 0.64 | I171: 0
A172: 151 | B172: 171 | C172: ='PR-RAS'!D176 -> 0 | D172: ='PR-RAS'!E176 -> 0 | E172: 0 | F172: 0 | G172: 0 | H172: 0 | I172: 0
A173: 151 | B173: 172 | C173: ='PR-RAS'!D177 -> 2527.23 | D173: ='PR-RAS'!E177 -> 0 | E173: 0 | F173: 0 | G173: 434.68356 | H173: 0.23 | I173: 0
A174: 151 | B174: 173 | C174: ='PR-RAS'!D178 -> 1797029.04 | D174: ='PR-RAS'!E178 -> 2698699.27 | E174: 0 | F174: 0 | G174: 1244635.971 | H174: 0.3099999991 | I174: 0
A175: 151 | B175: 174 | C175: ='PR-RAS'!D179 -> 71581.43 | D175: ='PR-RAS'!E179 -> 78390.33 | E175: 0 | F175: 0 | G175: 39735.00366 | H175: 0.76 | I175: 0
A176: 151 | B176: 175 | C176: ='PR-RAS'!D180 -> 797650.77 | D176: ='PR-RAS'!E180 -> 1611001.08 | E176: 0 | F176: 0 | G176: 703439.2627 | H176: 0.3100000001 | I176: 0
A177: 151 | B177: 176 | C177: ='PR-RAS'!D181 -> 41674.79 | D177: ='PR-RAS'!E181 -> 39975.25 | E177: 0 | F177: 0 | G177: 21406.05104 | H177: 0.46 | I177: 0
A178: 151 | B178: 177 | C178: ='PR-RAS'!D182 -> 234287.89 | D178: ='PR-RAS'!E182 -> 277133.54 | E178: 0 | F178: 0 | G178: 139574.2297 | H178: 0.57 | I178: 0
A179: 151 | B179: 178 | C179: ='PR-RAS'!D183 -> 84118.42 | D179: ='PR-RAS'!E183 -> 101975.04 | E179: 0 | F179: 0 | G179: 51276.193 | H179: 0.46 | I179: 0
A180: 151 | B180: 179 | C180: ='PR-RAS'!D184 -> 27052.8 | D180: ='PR-RAS'!E184 -> 23359.78 | E180: 0 | F180: 0 | G180: 13205.25244 | H180: 0.42 | I180: 0
A181: 151 | B181: 180 | C181: ='PR-RAS'!D185 -> 291555.67 | D181: ='PR-RAS'!E185 -> 257097.55 | E181: 0 | F181: 0 | G181: 145035.1386 | H181: 0.78 | I181: 0
A182: 151 | B182: 181 | C182: ='PR-RAS'!D186 -> 58545.41 | D182: ='PR-RAS'!E186 -> 76692.8 | E182: 0 | F182: 0 | G182: 38359.51281 | H182: 0.61 | I182: 0
A183: 151 | B183: 182 | C183: ='PR-RAS'!D187 -> 190561.86 | D183: ='PR-RAS'!E187 -> 233073.9 | E183: 0 | F183: 0 | G183: 119521.1581 | H183: 0.24 | I183: 0
A184: 151 | B184: 183 | C184: ='PR-RAS'!D188 -> 0 | D184: ='PR-RAS'!E188 -> 0 | E184: 0 | F184: 0 | G184: 0 | H184: 0 | I184: 0
A185: 151 | B185: 184 | C185: ='PR-RAS'!D189 -> 0 | D185: ='PR-RAS'!E189 -> 0 | E185: 0 | F185: 0 | G185: =(B185/1000)*(C185*1+D185*2) -> 0 | H185: =ABS(C185-ROUND(C185,0))+ABS(D185-ROUND(D185,0)) -> 0 | I185: 0
A186: 151 | B186: 185 | C186: ='PR-RAS'!D190 -> 0 | D186: ='PR-RAS'!E190 -> 0 | E186: 0 | F186: 0 | G186: 0 | H186: 0 | I186: 0
A187: 151 | B187: 186 | C187: ='PR-RAS'!D191 -> 0 | D187: ='PR-RAS'!E191 -> 0 | E187: 0 | F187: 0 | G187: 0 | H187: 0 | I187: 0
A188: 151 | B188: 187 | C188: ='PR-RAS'!D192 -> 0 | D188: ='PR-RAS'!E192 -> 0 | E188: 0 | F188: 0 | G188: 0 | H188: 0 | I188: 0
A189: 151 | B189: 188 | C189: ='PR-RAS'!D193 -> 0 | D189: ='PR-RAS'!E193 -> 0 | E189: 0 | F189: 0 | G189: 0 | H189: 0 | I189: 0
A190: 151 | B190: 189 | C190: ='PR-RAS'!D194 -> 244009.73 | D190: ='PR-RAS'!E194 -> 271906.55 | E190: 0 | F190: 0 | G190: 148898.5149 | H190: 0.72 | I190: 0
A191: 151 | B191: 190 | C191: ='PR-RAS'!D195 -> 83040.57 | D191: ='PR-RAS'!E195 -> 132988.93 | E191: 0 | F191: 0 | G191: 66313.5017 | H191: 0.5 | I191: 0
A192: 151 | B192: 191 | C192: ='PR-RAS'!D196 -> 31125.14 | D192: ='PR-RAS'!E196 -> 56187.35 | E192: 0 | F192: 0 | G192: 27408.46944 | H192: 0.49 | I192: 0
A193: 151 | B193: 192 | C193: ='PR-RAS'!D197 -> 40418.3 | D193: ='PR-RAS'!E197 -> 31764.03 | E193: 0 | F193: 0 | G193: 19957.70112 | H193: 0.33 | I193: 0
A194: 151 | B194: 193 | C194: ='PR-RAS'!D198 -> 7354.46 | D194: ='PR-RAS'!E198 -> 8872.3 | E194: 0 | F194: 0 | G194: 4844.11858 | H194: 0.76 | I194: 0
A195: 151 | B195: 194 | C195: ='PR-RAS'!D199 -> 38872.61 | D195: ='PR-RAS'!E199 -> 5438.91 | E195: 0 | F195: 0 | G195: 9651.58342 | H195: 0.48 | I195: 0
A196: 151 | B196: 195 | C196: ='PR-RAS'!D200 -> 0 | D196: ='PR-RAS'!E200 -> 4970 | E196: 0 | F196: 0 | G196: 1938.3 | H196: 0 | I196: 0
A197: 151 | B197: 196 | C197: ='PR-RAS'!D201 -> 43198.65 | D197: ='PR-RAS'!E201 -> 31685.03 | E197: 0 | F197: 0 | G197: 20887.46716 | H197: 0.38 | I197: 0
A198: 151 | B198: 197 | C198: ='PR-RAS'!D202 -> 70587.15 | D198: ='PR-RAS'!E202 -> 84054.1 | E198: 0 | F198: 0 | G198: 47022.98395 | H198: 0.25 | I198: 0
A199: 151 | B199: 198 | C199: ='PR-RAS'!D203 -> 0 | D199: ='PR-RAS'!E203 -> 0 | E199: 0 | F199: 0 | G199: 0 | H199: 0 | I199: 0
A200: 151 | B200: 199 | C200: ='PR-RAS'!D204 -> 0 | D200: ='PR-RAS'!E204 -> 0 | E200: 0 | F200: 0 | G200: 0 | H200: 0 | I200: 0
... 1486 more rows

Sheet Upute
A1: OSNOVNE UPUTE ZA UNOS PODATAKA
A4: Sva bitna pravila o popunjavanju obrazaca, poslovnim pravilima navedena su u nastavku uputa, ono što nije objašnjeno u uputama opisano je u kontrolama koje javljaju pogrešku. Prije nego rješenje problema potražite na broju telefona ili adresi e-pošte na dnu uputa, pokušajte ga pronaći u sklopu uputa. Također, novost je da prilikom uvoza samog dokumenta u aplikaciju, u slučaju pogreški, aplikacija će iste javiti!
A5: Analizom najčešćih pogrešaka prilikom popunjavanja i predaje, nastojali smo na najmanju moguću mjeru smanjiti mogućnost pogreške pri popunjavanju te olakšati pronalaženje pogrešaki. Pozadina ćelije koja je upisana s predznakom minus tamo gdje to nije dopušteno obojat će se crvenom bojom. Iako je onemogućen ručni upis takvih podataka, programi koji pune Excel datoteku mogu u svaku ćeliju "zgurati" bilo kakvu vrijednost pa je kontrola ovog tipa potrebna. Također, novost je da prilikom uvoza samog dokumenta u aplikaciju, u slučaju pogreški, aplikacija će iste javiti!
A6: U nastavku su dane tehničke upute o popunjavanju obrazaca.
A7: U obrasce se unose iznosi samo pojedinačnih stavki. Sumarne stavke zaštićene su, u njih nije moguć unos, a izračunavaju se automatski na osnovu upisanih pojedinačnih iznosa. Iznosi s centima su dopušteni. Sumarne stavke u obrascu su plave boje s podebljanim tipom slova (bold) da se bolje razlikuju. Vrijednosti tih pozicija izračunat će se automatski na osnovu upisanih pojedinačnih stavaka. Na obrascima koji imaju stupac indeks, taj podatak se ne upisuje već se izračunava automatski na osnovu upisanih vrijednosti. Tamo gdje indeks nije moguće izračunati pojavit će se crtica "-", a tamo gdje je indeks veći od 1000 pojavit će se tekst ">>100".
A8: Vrlo važno: Kod unosa vrijednosti naprednijim metodama Kopiraj/Zalijepi (Copy/Paste) iz nekih drugih dokumenata OBAVEZNO koristite metodu Copy (Kopiraj), a ne Cut (Izreži), jer se kod korištenja metode Cut/Paste nepovratno pokvari struktura datoteke. Isto tako, kod Paste metode koristite opciju Paste Special (Posebno lijepljenje), pa odaberite Vrijednosti (Value). Ni u kom slučaju ne prenosite krivo upisane iznose s jedne pozicije u excel-u na drugu tako da ih odvlačite mišem na ispravno mjesto. Ovo je i dalje vrlo česta pogreška i takav način rada trajno oštećuje Excel datoteku (potrebno je novu popuniti od nule). Ni u kom slučaju ne brišite postojeće radne listove, ne mijenjajte nazive postojećih, ne uključujte dijeljenje ili zaštitu radne knjige, ne ubacujte linkove na neke druge dokumente. S obzirom da su svi radni listovi međusobno povezani formulama koje služe kao kontrola, svaka od spomenutih radnji rezultira da Excel datoteka postane neupotrebljiva za računalnu obradu i morat ćete ispuniti novu datoteku.
A9: Kontrole obrazaca su na razini pojedinog obrasca. Kontrole na razini pojedinog obrasca provjeravajte nakon popunjavanja tog obrasca. Ako neka kontrola nije zadovoljena ispravite podatak.
A10: Korisnici Open Office-a: Koristite li starije verzije OpenOffice-a možete s Interneta besplatno skinuti zadnju verziju OpenOffice-a, jer obrasci popunjeni u starijim verzijama mogli bi biti nečitki nakon predaje u aplikaciju. Također, neke verzije Excel-a ne rade dobro bez svih zakrpa (Service Pack-ova), zato provjerite sa svojim informatičarima imate li na računalu instalirane sve zakrpe za program koji koristitie za popunjavanje. Ispravan format ima nastavak .xlsx. Promjena samo nastavka u nazivu datoteke ne mijenja stvarni format datoteke pa će takva datoteka i dalje biti problem ako je samo preimenujete iz *.xls u *.xlsx.
A11: Imate li problema tehničke naravi s popunjavanjem obrasca, radom kontrola i slično, dostavite nam popunjenu problematičnu Excel datoteku zajedno s Vašim kontakt podacima te podacima o programu koji i koju verziju koristite za popunjavanje na adresu e-pošte: rkpfi@mfin.hr.

Sheet RefStr
A2: REFERENTNA STRANICA
I3: Verzija 8.3.0
A4: Izvještaji proračuna, proračunskih i izvanproračunskih korisnika
B6: RKP: | C6: 31171 | H6: Popunjen | I6: Broj pogrešaka
E7: Pregled popunjenosti obrazaca i stanje kontrola: | F7: PR-RAS | H7: =IF(OR(MAX(Skriveni!C2:F1010)>0,MIN(Skriveni!C2:F1010)<0),"DA","NE") -> DA | I7: =IF(AND(H7="DA",Kont!E23>0),Kont!E23,"Nema") -> Nema
B8: Naziv obveznika: | C8: OPĆINA VIŠKOVO | F8: BILANCA | H8: =IF(OR(MAX(Skriveni!C1011:D1400)>0,MIN(Skriveni!C1011:D1400)<0),"DA","NE") -> DA | I8: =IF(AND(H8="DA",Kont!E298>0),Kont!E298,"Nema") -> Nema
F9: RAS funkcijski | H9: =IF(OR(MAX(Skriveni!C1401:D1537)>0,MIN(Skriveni!C1401:D1537)<0),"DA","NE") -> DA | I9: =IF(AND(H9="DA",Kont!E347>0),Kont!E347,"Nema") -> Nema
B10: Razina: | C10: 22 | F10: P-VRIO | H10: =IF(OR(SUMPRODUCT(--('P-VRIO'!D8:E13<>""))<>0,SUMPRODUCT(--('P-VRIO'!D15:E21<>""))<>0,SUMPRODUCT(--('P-VRIO'!D24:E29<>""))<>0,SUMPRODUCT(--('P-VRIO'!D31:E37<>""))<>0,SUMPRODUCT(--('P-VRIO'!D40:E43<>""))<>0,SUMPRODUCT(--('P-VRIO'!D45:E48<>""))<>0),"DA","NE") -> DA | I10: =IF(Kont!E345>0,Kont!E345,"Nema") -> Nema
F11: OBVEZE | H11: =IF(OR(MAX(Skriveni!C1582:C1686)>0,MIN(Skriveni!C1582:C1686)<0),"DA","NE") -> DA | I11: =IF(AND(H11="DA",Kont!E342>0),Kont!E342,"Nema") -> Nema
F12: EU IZVJEŠTAJ | H12: DA | I12: Nema
B13: Oznaka razdoblja: | C13: 2025-12 | F13: Kontrole između dva različita obrasa | I13: =IF(Kont!E14>0,Kont!E14,"Nema") -> Nema
A16: Obrazac | B16: Opis stavke | G16: Šifra | H16: Ostvareno u izvještajnom razdoblju preth. godine | I16: Ostvareno u izvještajnom razdoblju tekuće godine
A17: PR-RAS | B17: ='PR-RAS'!B6 -> PRIHODI POSLOVANJA (šifre 61+62+63+64+65+66+67+68) | G17: ='PR-RAS'!C6 -> 6 | H17: ='PR-RAS'!D6 -> 15445508.34 | I17: ='PR-RAS'!E6 -> 17776623.7
B18: ='PR-RAS'!B152 -> RASHODI POSLOVANJA (šifre 31+32+34+35+36+37+38) | G18: ='PR-RAS'!C152 -> 3 | H18: ='PR-RAS'!D152 -> 10464083.56 | I18: ='PR-RAS'!E152 -> 15269535.37
B19: ='PR-RAS'!B649 -> Višak prihoda i primitaka raspoloživ u sljedećem razdoblju (šifre X005 + '9221-9222' - Y005 - '9222-9221') | G19: ='PR-RAS'!C649 -> X006 | H19: ='PR-RAS'!D649 -> 1073808.96 | I19: ='PR-RAS'!E649 -> 0
B20: ='PR-RAS'!B650 -> Manjak prihoda i primitaka za pokriće u sljedećem razdoblju (šifre Y005 + '9222-9221' - X005 - '9221-9222' ) | G20: ='PR-RAS'!C650 -> Y006 | H20: ='PR-RAS'!D650 -> 0 | I20: ='PR-RAS'!E650 -> 162055.65
A21: Obrazac | B21: Opis stavke | G21: Šifra | H21: Stanje 1. siječnja | I21: Stanje 31. prosinca
A22: BILANCA | B22: =BILANCA!B7 -> Nefinancijska imovina (šifre 01+02+03+04+05+06) | G22: =BILANCA!C7 -> B002 | H22: =BILANCA!D7 -> 55520233.24 | I22: =BILANCA!E7 -> 58933674.56
B23: =BILANCA!B69 -> Financijska imovina (šifre 11+12+13+14+15+16+17+19) | G23: =BILANCA!C69 -> 1 | H23: =BILANCA!D69 -> 6260687.36 | I23: =BILANCA!E69 -> 6131412.94
B24: =BILANCA!B177 -> Obveze (šifre 23+24+25+26+27+29) | G24: =BILANCA!C177 -> 2 | H24: =BILANCA!D177 -> 5454474.5 | I24: =BILANCA!E177 -> 7922500.98
B25: =BILANCA!B251 -> Vlastiti izvori (šifre 91 + 922 - 93 + 96 + 97) | G25: =BILANCA!C251 -> 9 | H25: =BILANCA!D251 -> 56326446.1 | I25: =BILANCA!E251 -> 57142586.52
A26: Obrazac | B26: Opis stavke | G26: Šifra | H26: Ostvareno u izvještajnom razdoblju preth. godine | I26: Ostvareno u izvještajnom razdoblju tekuće godine
A27: RAS-funkcijski | B27: ='RAS-funkcijski'!B5 -> Opće javne usluge (šifre 011+012+013+014 do 018) | G27: ='RAS-funkcijski'!C5 -> 01 | H27: ='RAS-funkcijski'!D5 -> 1978193.82 | I27: ='RAS-funkcijski'!E5 -> 2965994.46
B28: ='RAS-funkcijski'!B35 -> Ekonomski poslovi (šifre 041+042+043+044+045+046+047+048+049) | G28: ='RAS-funkcijski'!C35 -> 04 | H28: ='RAS-funkcijski'!D35 -> 1432258.91 | I28: ='RAS-funkcijski'!E35 -> 3327072.79
B29: ='RAS-funkcijski'!B88 -> Rashodi vezani za stanovanje i kom. pogodnosti koji nisu drugdje svrstani | G29: ='RAS-funkcijski'!C88 -> 066 | H29: ='RAS-funkcijski'!D88 -> 1770374.28 | I29: ='RAS-funkcijski'!E88 -> 2969387.4
B30: ='RAS-funkcijski'!B114 -> Obrazovanje (šifre 091+092+093+094+095+096+097+098) | G30: ='RAS-funkcijski'!C114 -> 09 | H30: ='RAS-funkcijski'!D114 -> 3445745.27 | I30: ='RAS-funkcijski'!E114 -> 6432655.59
B31: ='RAS-funkcijski'!B141 -> Kontrolni zbroj (šifre 01+02+03+04+05+06+07+08+09+10) | G31: ='RAS-funkcijski'!C141 -> R1 | H31: ='RAS-funkcijski'!D141 -> 12412440.61 | I31: ='RAS-funkcijski'!E141 -> 17881448.91
A32: Obrazac | B32: Opis stavke | G32: Šifra | H32: Iznos povećanja | I32: Iznos smanjenja
A33: P-VRIO | B33: ='P-VRIO'!B5 -> Promjene u vrijednosti i obujmu imovine (šifre 91511+91512) | G33: ='P-VRIO'!C5 -> 9151 | H33: ='P-VRIO'!D5 -> 92643.37 | I33: ='P-VRIO'!E5 -> 64884.14
B34: ='P-VRIO'!B22 -> Promjene u obujmu imovine (šifre P016+P023) | G34: ='P-VRIO'!C22 -> 91512 | H34: ='P-VRIO'!D22 -> 0 | I34: ='P-VRIO'!E22 -> 64884.14
B35: ='P-VRIO'!B38 -> Promjene u vrijednosti i obujmu obveza (šifre 91521+91522) | G35: ='P-VRIO'!C38 -> 9152 | H35: ='P-VRIO'!D38 -> 0 | I35: ='P-VRIO'!E38 -> 0
B36: ='P-VRIO'!B44 -> Promjene u obujmu obveza (šifre P035 do P038) | G36: ='P-VRIO'!C44 -> 91522 | H36: ='P-VRIO'!D44 -> 0 | I36: ='P-VRIO'!E44 -> 0
A37: Obrazac | B37: Opis stavke | G37: Šifra | H37: Stanje 1. siječnja | I37: Stanje na kraju izvještajnog razdoblja
A38: OBVEZE | B38: =OBVEZE!B5 -> Stanje obveza 1. siječnja (=stanju obveza iz Izvještaja o obvezama na 31. prosinca prethodne godine) | G38: =OBVEZE!C5 -> V001 | H38: =OBVEZE!D5 -> 5454474.5 | I38: -
B39: =OBVEZE!B44 -> Stanje obveza na kraju izvještajnog razdoblja (šifre V001+V002-V004) i (šifre V007+V009) | G39: =OBVEZE!C44 -> V006 | H39: - | I39: =OBVEZE!D44 -> 7922500.98
B40: =OBVEZE!B45 -> Stanje dospjelih obveza na kraju izvještajnog razdoblja (šifre V008+D23+D24 + 'D dio 25,26' + D27) | G40: =OBVEZE!C45 -> V007 | H40: - | I40: =OBVEZE!D45 -> 0
B41: =OBVEZE!B104 -> Stanje nedospjelih obveza na kraju izvještajnog razdoblja (šifre V010 + ND23 + ND24 + 'ND dio 25,26' + ND27) | G41: =OBVEZE!C104 -> V009 | H41: - | I41: =OBVEZE!D104 -> 7922500.98
E44: Potpis osobe odgovorne za računovodstvo | H44: Potpis odgovorne osobe subjekta i pečat

Sheet PR-RAS
A1: Obveznik: | B1: OPĆINA VIŠKOVO | C1: Razina: | D1: 22 | E1: Razdoblje: | F1: 2025-12
A2: IZVJEŠTAJ O PRIHODIMA I RASHODIMA, PRIMICIMA I IZDACIMA
A3: Račun iz Rač. plana | B3: Opis stavke | C3: Šifra | D3: Ostvareno u izvještajnom razdoblju preth. godine | E3: Ostvareno u izvještajnom razdoblju tekuće godine | F3: Indeks (5/4)
A4: 1 | B4: 2 | C4: 3 | D4: 4 | E4: 5 | F4: 6
A5: Prihodi i rashodi poslovanja
A6: 6 | B6: PRIHODI POSLOVANJA (šifre 61+62+63+64+65+66+67+68) | C6: 6 | D6: =D7+D43+D49+D82+D106+D125+D134+D140 -> 15445508.34 | E6: =E7+E43+E49+E82+E106+E125+E134+E140 -> 17776623.7 | F6: =IF(D6<>0,IF(E6/D6>=100,">>100",E6/D6*100),"-") -> 115.092513
A7: 61 | B7: Prihodi od poreza (šifre 611+612+613+614+615+616) | C7: 61 | D7: =D8+D17+D23+D29+D36+D39 -> 11373631.66 | E7: =E8+E17+E23+E29+E36+E39 -> 13667770.9 | F7: 120.1706835
A8: 611 | B8: Porez na dohodak (šifre 6111 do 6116 - 6117 - 6119) | C8: 611 | D8: =SUM(D9:D14)-D15-D16 -> 10392462.44 | E8: =SUM(E9:E14)-E15-E16 -> 12627355.02 | F8: 121.5049378
A9: 6111 | B9: Porez na dohodak od nesamostalnog rada | C9: 6111 | D9: 9096229.6 | E9: 11085413.38 | F9: 121.8682231
A10: 6112 | B10: Porez na dohodak od samostalnih djelatnosti | C10: 6112 | D10: 634915.44 | E10: 769889.74 | F10: 121.2586262
A11: 6113 | B11: Porez na dohodak od imovine i imovinskih prava | C11: 6113 | D11: 392678.5 | E11: 429214.14 | F11: 109.304212
A12: 6114 | B12: Porez na dohodak od kapitala | C12: 6114 | D12: 846021.11 | E12: 1084742.89 | F12: 128.2170004
A13: 6115 | B13: Porez na dohodak po godišnjoj prijavi | C13: 6115 | D13: 345486.71 | E13: 470952.25 | F13: 136.3155908
A14: 6116 | B14: Porez na dohodak utvrđen u postupku nadzora za prethodne godine | C14: 6116 | D14: 1311.53 | E14: 1234.62 | F14: 94.13585659
A15: 6117 | B15: Povrat poreza na dohodak po godišnjoj prijavi | C15: 6117 | D15: 924180.45 | E15: 1214092 | F15: 131.3695826
A16: 6119 | B16: Povrat više ostvarenog poreza na dohodak za decentralizirane funkcije | C16: 6119 | D16: 0 | E16: 0 | F16: -
A17: 612 | B17: Porez na dobit (šifre 6121 do 6124 - 6125) | C17: 612 | D17: =SUM(D18:D21)-D22 -> 0 | E17: 0 | F17: -
A18: 6121 | B18: Porez na dobit od poduzetnika | C18: 6121 | D18: 0 | E18: 0 | F18: -
A19: 6122 | B19: Porez na dobit po odbitku na naknade za korištenje prava i za usluge | C19: 6122 | D19: 0 | E19: 0 | F19: -
A20: 6123 | B20: Porez na dobit po odbitku na kamate, dividende i udjele u dobiti | C20: 6123 | D20: 0 | E20: 0 | F20: -
A21: 6124 | B21: Porez na dobit po godišnjoj prijavi | C21: 6124 | D21: 0 | E21: 0 | F21: -
A22: 6125 | B22: Povrat poreza na dobit po godišnjoj prijavi | C22: 6125 | D22: 0 | E22: 0 | F22: -
A23: 613 | B23: Porezi na imovinu (šifre 6131 do 6135) | C23: 613 | D23: =SUM(D24:D28) -> 909330.78 | E23: 947878.88 | F23: 104.2391725
A24: 6131 | B24: Stalni porezi na nepokretnu imovinu (zemlju, zgrade, kuće i ostalo) | C24: 6131 | D24: 13638.42 | E24: 15843.15 | F24: 116.1655822
A25: 6132 | B25: Porez na nasljedstva i darove | C25: 6132 | D25: 0 | E25: 0 | F25: -
A26: 6133 | B26: Porez na kapitalne i financijske transakcije | C26: 6133 | D26: 0 | E26: 0 | F26: -
A27: 6134 | B27: Povremeni porezi na imovinu | C27: 6134 | D27: 895692.36 | E27: 932035.73 | F27: 104.0575728
A28: 6135 | B28: Ostali stalni porezi na imovinu | C28: 6135 | D28: 0 | E28: 0 | F28: -
A29: 614 | B29: Porezi na robu i usluge (šifre 6141 do 6147) | C29: 614 | D29: =SUM(D30:D35) -> 71838.44 | E29: =SUM(E30:E35) -> 92537 | F29: 128.8126524
A30: 6141 | B30: Porez na dodanu vrijednost | C30: 6141 | D30: 0 | E30: 0 | F30: -
A31: 6142 | B31: Porez na promet | C31: 6142 | D31: 71838.44 | E31: 92537 | F31: 128.8126524
A32: 6143 | B32: Posebni porezi i trošarine | C32: 6143 | D32: 0 | E32: 0 | F32: -
A33: 6145 | B33: Porezi na korištenje dobara ili izvođenje aktivnosti | C33: 6145 | D33: 0 | E33: 0 | F33: -
A34: 6146 | B34: Ostali porezi na robu i usluge | C34: 6146 | D34: 0 | E34: 0 | F34: -
A35: 6147 | B35: Porez na dobitke od igara na sreću i ostali porezi od igara na sreću | C35: 6147 | D35: 0 | E35: 0 | F35: -
A36: 615 | B36: Porezi na međunarodnu trgovinu i transakcije (šifre 6151+6152) | C36: 615 | D36: =SUM(D37:D38) -> 0 | E36: 0 | F36: -
A37: 6151 | B37: Carine i carinske pristojbe | C37: 6151 | D37: 0 | E37: 0 | F37: -
A38: 6152 | B38: Ostali porezi na međunarodnu trgovinu i transakcije | C38: 6152 | D38: 0 | E38: 0 | F38: -
A39: 616 | B39: Ostali prihodi od poreza (šifre 6161 do 6163) | C39: 616 | D39: =SUM(D40:D42) -> 0 | E39: 0 | F39: -
A40: 6161 | B40: Ostali prihodi od poreza koje plaćaju pravne osobe | C40: 6161 | D40: 0 | E40: 0 | F40: -
A41: 6162 | B41: Ostali prihodi od poreza koje plaćaju fizičke osobe | C41: 6162 | D41: 0 | E41: 0 | F41: -
A42: 6163 | B42: Ostali neraspoređeni prihodi od poreza | C42: 6163 | D42: 0 | E42: 0 | F42: -
A43: 62 | B43: Doprinosi (šifre 621+622+623) | C43: 62 | D43: =D44+D47+D48 -> 0 | E43: 0 | F43: -
A44: 621 | B44: Doprinosi za zdravstveno osiguranje (šifre 6211+6212) | C44: 621 | D44: =SUM(D45:D46) -> 0 | E44: 0 | F44: -
A45: 6211 | B45: Doprinosi za obvezno zdravstveno osiguranje | C45: 6211 | D45: 0 | E45: 0 | F45: -
A46: 6212 | B46: Doprinosi za obvezno zdravstveno osiguranje za slučaj ozljede na radu | C46: 6212 | D46: 0 | E46: 0 | F46: -
A47: 622 | B47: Doprinosi za mirovinsko osiguranje | C47: 622 | D47: 0 | E47: 0 | F47: -
A48: 623 | B48: Doprinosi za zapošljavanje | C48: 623 | D48: 0 | E48: 0 | F48: -
A49: 63 | B49: Pomoći iz inozemstva i od subjekata unutar općeg proračuna (šifre 631+632+633+634+635+636+637+638+639) | C49: 63 | D49: =D50+D53+D58+D61+D64+D68+D71+D74+D77 -> 1246837.72 | E49: =E50+E53+E58+E61+E64+E68+E71+E74+E77 -> 1726157.28 | F49: 138.4428184
A50: 631 | B50: Pomoći od inozemnih vlada (šifre 6311+6312) | C50: 631 | D50: =D51+D52 -> 0 | E50: 0 | F50: -
A51: 6311 | B51: Tekuće pomoći od inozemnih vlada | C51: 6311 | D51: 0 | E51: 0 | F51: -
A52: 6312 | B52: Kapitalne pomoći od inozemnih vlada | C52: 6312 | D52: 0 | E52: 0 | F52: -
A53: 632 | B53: Pomoći od međunarodnih organizacija te institucija i tijela EU (šifre 6321 do 6324) | C53: 632 | D53: =SUM(D54:D57) -> 0 | E53: 0 | F53: -
A54: 6321 | B54: Tekuće pomoći od međunarodnih organizacija | C54: 6321 | D54: 0 | E54: 0 | F54: -
A55: 6322 | B55: Kapitalne pomoći od međunarodnih organizacija | C55: 6322 | D55: 0 | E55: 0 | F55: -
A56: 6323 | B56: Tekuće pomoći od institucija i tijela EU | C56: 6323 | D56: 0 | E56: 0 | F56: -
A57: 6324 | B57: Kapitalne pomoći od institucija i tijela EU | C57: 6324 | D57: 0 | E57: 0 | F57: -
A58: 633 | B58: Pomoći proračunu i izvanproračunskim korisnicima iz drugih proračuna (šifre 6331+6332) | C58: 633 | D58: =SUM(D59:D60) -> 679703.74 | E58: 305078.99 | F58: 44.8841123
A59: 6331 | B59: Tekuće pomoći proračunu i izvanproračunskim korisnicima iz drugih proračuna | C59: 6331 | D59: 251284.91 | E59: 240095.69 | F59: 95.5471978
A60: 6332 | B60: Kapitalne pomoći proračunu i izvanproračunskim korisnicima iz drugih proračuna | C60: 6332 | D60: 428418.83 | E60: 64983.3 | F60: 15.16817083
A61: 634 | B61: Pomoći od izvanproračunskih korisnika (šifre 6341+6342) | C61: 634 | D61: =SUM(D62:D63) -> 39714.03 | E61: 401303.2 | F61: 1010.48219
A62: 6341 | B62: Tekuće pomoći od izvanproračunskih korisnika | C62: 6341 | D62: 39714.03 | E62: 1580.39 | F62: 3.979424903
A63: 6342 | B63: Kapitalne pomoći od izvanproračunskih korisnika | C63: 6342 | E63: 399722.81 | F63: -
A64: 635 | B64: Pomoći izravnanja za decentralizirane funkcije i fiskalnog izravnanja (šifre 6351 do 6353) | C64: 635 | D64: =SUM(D65:D67) -> 0 | E64: =SUM(E65:E67) -> 0 | F64: -
A65: 6351 | B65: Tekuće pomoći izravnanja za decentralizirane funkcije | C65: 6351 | D65: 0 | E65: 0 | F65: -
A66: 6352 | B66: Kapitalne pomoći izravnanja za decentralizirane funkcije | C66: 6352 | D66: 0 | E66: 0 | F66: -
A67: 6353 | B67: Pomoći fiskalnog izravnanja | C67: 6353 | D67: 0 | E67: 0 | F67: -
A68: 636 | B68: Pomoći proračunskim korisnicima iz proračuna koji im nije nadležan (šifre 6361+6362) | C68: 636 | D68: =SUM(D69:D70) -> 0 | E68: 0 | F68: -
A69: 6361 | B69: Tekuće pomoći proračunskim korisnicima iz proračuna koji im nije nadležan | C69: 6361 | D69: 0 | E69: 0 | F69: -
A70: 6362 | B70: Kapitalne pomoći proračunskim korisnicima iz proračuna koji im nije nadležan | C70: 6362 | D70: 0 | E70: 0 | F70: -
A71: 637 | B71: Pomoći iz drugih proračuna i od izvanproračunskih korisnika temeljem protestiranih jamstava (šifra 6371+6372) | C71: 637 | D71: =SUM(D72:D73) -> 0 | E71: 0 | F71: -
A72: 6371 | B72: Pomoći primljene iz drugih proračuna i od izvanproračunskih korisnika po protestiranim jamstvima | C72: 6371 | D72: 0 | E72: 0 | F72: -
A73: 6372 | B73: Povrat pomoći danih drugim proračunima i izvanproračunskim korisnicima po protestiranim jamstvima | C73: 6372 | D73: 0 | E73: 0 | F73: -
A74: 638 | B74: Pomoći temeljem prijenosa EU sredstava (šifre 6381+6382) | C74: 638 | D74: =SUM(D75:D76) -> 527419.95 | E74: 1019775.09 | F74: 193.3516337
A75: 6381 | B75: Tekuće pomoći temeljem prijenosa EU sredstava | C75: 6381 | D75: 108000 | E75: 113178.01 | F75: 104.7944537
A76: 6382 | B76: Kapitalne pomoći temeljem prijenosa EU sredstava | C76: 6382 | D76: 419419.95 | E76: 906597.08 | F76: 216.1549731
A77: 639 | B77: Prijenosi između proračunskih korisnika istog proračuna (šifre 6391 do 6394) | C77: 639 | D77: =SUM(D78:D81) -> 0 | E77: 0 | F77: -
A78: 6391 | B78: Tekući prijenosi između proračunskih korisnika istog proračuna | C78: 6391 | D78: 0 | E78: 0 | F78: -
A79: 6392 | B79: Kapitalni prijenosi između proračunskih korisnika istog proračuna | C79: 6392 | D79: 0 | E79: 0 | F79: -
A80: 6393 | B80: Tekući prijenosi između proračunskih korisnika istog proračuna temeljem prijenosa EU sredstava | C80: 6393 | D80: 0 | E80: 0 | F80: -
A81: 6394 | B81: Kapitalni prijenosi između proračunskih korisnika istog proračuna temeljem prijenosa EU sredstava | C81: 6394 | D81: 0 | E81: 0 | F81: -
A82: 64 | B82: Prihodi od imovine (šifre 641+642+643) | C82: 64 | D82: =D83+D91+D98 -> 245408.95 | E82: 188575.13 | F82: 76.84117878
A83: 641 | B83: Prihodi od financijske imovine (šifre 6412 do 6419) | C83: 641 | D83: =SUM(D84:D90) -> 12790.87 | E83: 39900.98 | F83: 311.9489136
A84: 6412 | B84: Prihodi od kamata po vrijednosnim papirima | C84: 6412 | D84: 0 | E84: 0 | F84: -
A85: 6413 | B85: Kamate na oročena sredstva i depozite po viđenju | C85: 6413 | D85: 11704.28 | E85: 12713.51 | F85: 108.6227431
A86: 6414 | B86: Prihodi od zateznih kamata | C86: 6414 | D86: 1086.59 | E86: 27187.47 | F86: 2502.090945
A87: 6415 | B87: Prihodi od pozitivnih tečajnih razlika i razlika zbog primjene valutne klauzule | C87: 6415 | D87: 0 | E87: 0 | F87: -
A88: 6416 | B88: Prihodi od dividendi | C88: 6416 | D88: 0 | E88: 0 | F88: -
A89: 6417 | B89: Prihodi iz dobiti trgovačkih društava, kreditnih i ostalih financijskih institucija po posebnim propisima | C89: 6417 | D89: 0 | E89: 0 | F89: -
A90: 6419 | B90: Ostali prihodi od financijske imovine | C90: 6419 | D90: 0 | E90: 0 | F90: -
A91: 642 | B91: Prihodi od nefinancijske imovine (šifre 6421 do 6429) | C91: 642 | D91: =SUM(D92:D97) -> 232618.08 | E91: 148674.15 | F91: 63.9134112
A92: 6421 | B92: Naknade za koncesije | C92: 6421 | D92: 15373.23 | E92: 0.01 | F92: 6.504813888e-05
A93: 6422 | B93: Prihodi od zakupa i iznajmljivanja imovine | C93: 6422 | D93: 73077.31 | E93: 87672.31 | F93: 119.9719995
A94: 6423 | B94: Naknada za korištenje nefinancijske imovine | C94: 6423 | D94: 144167.54 | E94: 61001.83 | F94: 42.31315177
A95: 6424 | B95: Naknade za ceste | C95: 6424 | D95: 0 | E95: 0 | F95: -
A96: 6425 | B96: Prihodi od prodaje kratkotrajne nefinancijske imovine, sitnog inventara i autoguma | C96: 6425 | D96: 0 | E96: 0 | F96: -
A97: 6429 | B97: Ostali prihodi od nefinancijske imovine | C97: 6429 | D97: 0 | E97: 0 | F97: -
A98: 643 | B98: Prihodi od kamata na dane zajmove (šifre 6431 do 6437) | C98: 643 | D98: =SUM(D99:D105) -> 0 | E98: 0 | F98: -
A99: 6431 | B99: Prihodi od kamata na dane zajmove međunarodnim organizacijama, institucijama i tijelima EU te inozemnim vladama | C99: 6431 | D99: 0 | E99: 0 | F99: -
A100: 6432 | B100: Prihodi od kamata na dane zajmove neprofitnim organizacijama, građanima i kućanstvima | C100: 6432 | D100: 0 | E100: 0 | F100: -
A101: 6433 | B101: Prihodi od kamata na dane zajmove kreditnim i ostalim financijskim institucijama u javnom sektoru | C101: 6433 | D101: 0 | E101: 0 | F101: -
A102: 6434 | B102: Prihodi od kamata na dane zajmove trgovačkim društvima u javnom sektoru | C102: 6434 | D102: 0 | E102: 0 | F102: -
A103: 6435 | B103: Prihodi od kamata na dane zajmove kreditnim i ostalim financijskim institucijama izvan javnog sektora | C103: 6435 | D103: 0 | E103: 0 | F103: -
A104: 6436 | B104: Prihodi od kamata na dane zajmove trgovačkim društvima i obrtnicima izvan javnog sektora | C104: 6436 | D104: 0 | E104: 0 | F104: -
A105: 6437 | B105: Prihodi od kamata na dane zajmove drugim razinama vlasti | C105: 6437 | D105: 0 | E105: 0 | F105: -
A106: 65 | B106: Prihodi od upravnih i administrativnih pristojbi, pristojbi po posebnim propisima i naknada (šifre 651+652+653+654) | C106: 65 | D106: =D107+D112+D120+D124 -> 2377889.82 | E106: =E107+E112+E120+E124 -> 2016710.72 | F106: 84.81094048
A107: 651 | B107: Upravne i administrativne pristojbe (šifre 6511 do 6514) | C107: 651 | D107: =SUM(D108:D111) -> 11633.34 | E107: 9871.67 | F107: 84.85671355
A108: 6511 | B108: Državne upravne i sudske pristojbe | C108: 6511 | D108: 0 | E108: 0 | F108: -
A109: 6512 | B109: Županijske, gradske i općinske pristojbe i naknade | C109: 6512 | D109: 3075.58 | E109: 1197.83 | F109: 38.94647514
A110: 6513 | B110: Ostale upravne pristojbe i naknade | C110: 6513 | D110: 156.01 | E110: 72.95 | F110: 46.75982309
A111: 6514 | B111: Ostale pristojbe i naknade | C111: 6514 | D111: 8401.75 | E111: 8600.89 | F111: 102.3702205
A112: 652 | B112: Prihodi po posebnim propisima (šifre 6521 do 6528) | C112: 652 | D112: =SUM(D113:D119) -> 319247.67 | E112: 66871.24 | F112: 20.9465084
A113: 6521 | B113: Prihodi državne uprave | C113: 6521 | D113: 0 | E113: 0 | F113: -
A114: 6522 | B114: Prihodi vodnog gospodarstva | C114: 6522 | D114: 677.03 | E114: 62.41 | F114: 9.218203034
A115: 6524 | B115: Doprinosi za šume | C115: 6524 | D115: 0 | E115: 0 | F115: -
A116: 6525 | B116: Mjesni samodoprinos | C116: 6525 | D116: 0 | E116: 0 | F116: -
A117: 6526 | B117: Ostali nespomenuti prihodi | C117: 6526 | D117: 318570.64 | E117: 66808.83 | F117: 20.97143353
A118: 6527 | B118: Naknade od financijske imovine | C118: 6527 | D118: 0 | E118: 0 | F118: -
A119: 6528 | B119: Prihodi od novčane naknade poslodavca zbog nezapošljavanja osoba s invaliditetom | C119: 6528 | D119: 0 | E119: 0 | F119: -
A120: 653 | B120: Komunalni doprinosi i naknade (šifre 6531 do 6533) | C120: 653 | D120: =SUM(D121:D123) -> 2047008.81 | E120: 1939967.81 | F120: 94.77085787
A121: 6531 | B121: Komunalni doprinosi | C121: 6531 | D121: 420220.83 | E121: 267282.24 | F121: 63.60518587
A122: 6532 | B122: Komunalne naknade | C122: 6532 | D122: 1626787.98 | E122: 1672685.57 | F122: 102.8213627
A123: 6533 | B123: Naknade za priključak | C123: 6533 | D123: 0 | E123: 0 | F123: -
A124: 654 | B124: Naknade za priređivanje igara na sreću | C124: 654 | D124: 0 | E124: 0 | F124: -
A125: 66 | B125: Prihodi od prodaje proizvoda i robe te pruženih usluga, prihodi od donacija te povrati po protestiranim jamstvima (šifre 661+663) | C125: 66 | D125: =D126+D129 -> 69619.84 | E125: 65057.57 | F125: 93.44688238
A126: 661 | B126: Prihodi od prodaje proizvoda i robe te pruženih usluga (šifre 6614+6615) | C126: 661 | D126: =SUM(D127:D128) -> 66469.92 | E126: 65057.57 | F126: 97.8752043
A127: 6614 | B127: Prihodi od prodaje proizvoda i robe | C127: 6614 | D127: 0 | E127: 0 | F127: -
A128: 6615 | B128: Prihodi od pruženih usluga | C128: 6615 | D128: 66469.92 | E128: 65057.57 | F128: 97.8752043
A129: 663 | B129: Donacije od pravnih i fizičkih osoba izvan općeg proračuna te povrat donacija i kapitalnih pomoći po protestiranim jamstvima (šifre 6631 do 6634) | C129: 663 | D129: =SUM(D130:D133) -> 3149.92 | E129: 0 | F129: 0
A130: 6631 | B130: Tekuće donacije | C130: 6631 | D130: 0 | E130: 0 | F130: -
A131: 6632 | B131: Kapitalne donacije | C131: 6632 | D131: 3149.92 | F131: 0
A132: 6633 | B132: Povrat donacija danih neprofitnim organizacijama, građanima i kućanstvima u tuzemstvu po protestiranim jamstvima | C132: 6633 | D132: 0 | E132: 0 | F132: -
A133: 6634 | B133: Povrat kapitalnih pomoći danih trgovačkim društvima i obrtnicima po protestiranim jamstvima | C133: 6634 | D133: 0 | E133: 0 | F133: =IF(D133<>0,IF(E133/D133>=100,">>100",E133/D133*100),"-") -> -
A134: 67 | B134: Prihodi iz nadležnog proračuna i od HZZO-a na temelju ugovornih obveza (šifre 671+673) | C134: 67 | D134: =D135+D139 -> 0 | E134: 0 | F134: =IF(D134<>0,IF(E134/D134>=100,">>100",E134/D134*100),"-") -> -
A135: 671 | B135: Prihodi iz nadležnog proračuna za financiranje redovne djelatnosti proračunskih korisnika (šifre 6711 do 6714) | C135: 671 | D135: =SUM(D136:D138) -> 0 | E135: 0 | F135: -
A136: 6711 | B136: Prihodi iz nadležnog proračuna za financiranje rashoda poslovanja | C136: 6711 | D136: 0 | E136: 0 | F136: -
A137: 6712 | B137: Prihodi iz nadležnog proračuna za financiranje rashoda za nabavu nefinancijske imovine | C137: 6712 | D137: 0 | E137: 0 | F137: -
A138: 6714 | B138: Prihodi iz nadležnog proračuna za financiranje izdataka za financijsku imovinu i otplatu zajmova | C138: 6714 | D138: 0 | E138: 0 | F138: -
A139: 673 | B139: Prihodi od HZZO-a na temelju ugovornih obveza | C139: 673 | D139: 0 | E139: 0 | F139: -
A140: 68 | B140: Kazne, upravne mjere i ostali prihodi (šifre 681+683) | C140: 68 | D140: =D141+D151 -> 132120.35 | E140: 112352.1 | F140: 85.0376948
A141: 681 | B141: Kazne i upravne mjere (šifre 6811 do 6819) | C141: 681 | D141: =SUM(D142:D150) -> 132120.35 | E141: 112352.1 | F141: 85.0376948
A142: 6811 | B142: Kazne za carinske prekršaje | C142: 6811 | D142: 0 | E142: 0 | F142: -
A143: 6812 | B143: Kazne za devizne prekršaje | C143: 6812 | D143: 0 | E143: 0 | F143: -
A144: 6813 | B144: Kazne za porezne prekršaje | C144: 6813 | D144: 0 | E144: 0 | F144: -
A145: 6814 | B145: Kazne za prekršaje trgovačkih društava | C145: 6814 | D145: 0 | E145: 0 | F145: -
A146: 6815 | B146: Kazne za prometne i ostale prekršaje u nadležnosti MUP-a | C146: 6815 | D146: 0 | E146: 0 | F146: -
A147: 6816 | B147: Kazne i druge mjere u kaznenom postupku | C147: 6816 | D147: 0 | E147: 0 | F147: -
A148: 6817 | B148: Kazne za prekršaje na kulturnim dobrima | C148: 6817 | D148: 0 | E148: 0 | F148: -
A149: 6818 | B149: Upravne mjere | C149: 6818 | D149: 0 | E149: 0 | F149: -
A150: 6819 | B150: Ostale kazne | C150: 6819 | D150: 132120.35 | E150: 112352.1 | F150: 85.0376948
A151: 683 | B151: Ostali prihodi | C151: 683 | D151: 0 | E151: 0 | F151: -
A152: 3 | B152: RASHODI POSLOVANJA (šifre 31+32+34+35+36+37+38) | C152: 3 | D152: =D153+D164+D202+D221+D230+D262+D273 -> 10464083.56 | E152: =E153+E164+E202+E221+E230+E262+E273 -> 15269535.37 | F152: 145.9232935
A153: 31 | B153: Rashodi za zaposlene (šifre 311+312+313) | C153: 31 | D153: =D154+D159+D160 -> 1258937.47 | E153: 2140042.15 | F153: 169.9879622
A154: 311 | B154: Plaće (bruto) (šifre 3111 do 3114) | C154: 311 | D154: =SUM(D155:D158) -> 1006733.3 | E154: 1732514.64 | F154: 172.0927121
A155: 3111 | B155: Plaće za redovan rad | C155: 3111 | D155: 996776.61 | E155: 1718958.75 | F155: 172.4517543
A156: 3112 | B156: Plaće u naravi | C156: 3112 | D156: 0 | E156: 0 | F156: -
A157: 3113 | B157: Plaće za prekovremeni rad | C157: 3113 | D157: 9956.69 | E157: 13555.89 | F157: 136.1485594
A158: 3114 | B158: Plaće za posebne uvjete rada | C158: 3114 | D158: 0 | E158: 0 | F158: -
A159: 312 | B159: Ostali rashodi za zaposlene | C159: 312 | D159: 91282.47 | E159: 126045.64 | F159: 138.0830733
A160: 313 | B160: Doprinosi na plaće (šifre 3131 do 3133) | C160: 313 | D160: =SUM(D161:D163) -> 160921.7 | E160: 281481.87 | F160: 174.9185287
A161: 3131 | B161: Doprinosi za mirovinsko osiguranje za staž s povećanim trajanjem | C161: 3131 | D161: 1770.66 | E161: 2632.26 | F161: 148.6598218
A162: 3132 | B162: Doprinosi za obvezno zdravstveno osiguranje | C162: 3132 | D162: 159151.04 | E162: 278849.61 | F162: 175.2106741
A163: 3133 | B163: Doprinosi za obvezno osiguranje u slučaju nezaposlenosti | C163: 3133 | D163: 0 | E163: 0 | F163: -
A164: 32 | B164: Materijalni rashodi (šifre 321+322+323+324+325+329) | C164: 32 | D164: =D165+D170+D178+D188+D189+D194 -> 2324932.98 | E164: =E165+E170+E178+E188+E189+E194 -> 3276375.85 | F164: 140.9234536
A165: 321 | B165: Naknade troškova zaposlenima (šifre 3211 do 3214) | C165: 321 | D165: =SUM(D166:D169) -> 30902.24 | E165: 43103.32 | F165: 139.4828336
A166: 3211 | B166: Službena putovanja | C166: 3211 | D166: 7257.17 | E166: 2238.64 | F166: 30.8472862
A167: 3212 | B167: Naknade za prijevoz, za rad na terenu i odvojeni život | C167: 3212 | D167: 19257.08 | E167: 33617.27 | F167: 174.570963
A168: 3213 | B168: Stručno usavršavanje zaposlenika | C168: 3213 | D168: 4370.99 | E168: 7172.91 | F168: 164.1026404
A169: 3214 | B169: Ostale naknade troškova zaposlenima | C169: 3214 | D169: 17 | E169: 74.5 | F169: 438.2352941
A170: 322 | B170: Rashodi za materijal i energiju (šifre 3221 do 3227) | C170: 322 | D170: =SUM(D171:D177) -> 252991.97 | E170: 262666.71 | F170: 103.8241293
A171: 3221 | B171: Uredski materijal i ostali materijalni rashodi | C171: 3221 | D171: 8648.51 | E171: 19840.5 | F171: 229.409459
A172: 3222 | B172: Materijal i sirovine | C172: 3222 | D172: 0 | E172: 0 | F172: -
A173: 3223 | B173: Energija | C173: 3223 | D173: 239249.51 | E173: 242028.33 | F173: 101.1614736
A174: 3224 | B174: Materijal i dijelovi za tekuće i investicijsko održavanje | C174: 3224 | D174: 52.32 | E174: 44.64 | F174: 85.32110092
A175: 3225 | B175: Sitni inventar i autogume | C175: 3225 | D175: 2514.4 | E175: 753.24 | F175: 29.95704741
A176: 3226 | B176: Vojna sredstva za jednokratnu upotrebu | C176: 3226 | D176: 0 | E176: 0 | F176: -
A177: 3227 | B177: Službena, radna i zaštitna odjeća i obuća | C177: 3227 | D177: 2527.23 | F177: 0
A178: 323 | B178: Rashodi za usluge (šifre 3231 do 3239) | C178: 323 | D178: =SUM(D179:D187) -> 1797029.04 | E178: 2698699.27 | F178: 150.1756071
A179: 3231 | B179: Usluge telefona, interneta, pošte i prijevoza | C179: 3231 | D179: 71581.43 | E179: 78390.33 | F179: 109.5121039
A180: 3232 | B180: Usluge tekućeg i investicijskog održavanja | C180: 3232 | D180: 797650.77 | E180: 1611001.08 | F180: 201.9682223
A181: 3233 | B181: Usluge promidžbe i informiranja | C181: 3233 | D181: 41674.79 | E181: 39975.25 | F181: 95.92189907
A182: 3234 | B182: Komunalne usluge | C182: 3234 | D182: 234287.89 | E182: 277133.54 | F182: 118.2876076
A183: 3235 | B183: Zakupnine i najamnine | C183: 3235 | D183: 84118.42 | E183: 101975.04 | F183: 121.2279546
A184: 3236 | B184: Zdravstvene i veterinarske usluge | C184: 3236 | D184: 27052.8 | E184: 23359.78 | F184: 86.34884374
A185: 3237 | B185: Intelektualne i osobne usluge | C185: 3237 | D185: 291555.67 | E185: 257097.55 | F185: 88.1812897
A186: 3238 | B186: Računalne usluge | C186: 3238 | D186: 58545.41 | E186: 76692.8 | F186: 130.9971183
A187: 3239 | B187: Ostale usluge | C187: 3239 | D187: 190561.86 | E187: 233073.9 | F187: 122.3087873
A188: 324 | B188: Naknade troškova osobama izvan radnog odnosa | C188: 324 | D188: 0 | E188: 0 | F188: -
A189: 325 | B189: Rashodi lijekova i potrošnog medicinskog materijala kod zdravstvenih ustanova (šifre 3251 do 3254) | C189: 325 | D189: =SUM(D190:D193) -> 0 | E189: =SUM(E190:E193) -> 0 | F189: =IF(D189<>0,IF(E189/D189>=100,">>100",E189/D189*100),"-") -> -
A190: 3251 | B190: Rashodi po osnovi utroška lijekova i potrošnog medicinskog materijala | C190: 3251 | D190: 0 | E190: 0 | F190: =IF(D190<>0,IF(E190/D190>=100,">>100",E190/D190*100),"-") -> -
A191: 3252 | B191: Rashodi po osnovi otpisa lijekova i potrošnog medicinskog materijala | C191: 3252 | D191: 0 | E191: 0 | F191: =IF(D191<>0,IF(E191/D191>=100,">>100",E191/D191*100),"-") -> -
A192: 3253 | B192: Rashodi po osnovi donacije lijekova i potrošnog medicinskog materijala | C192: 3253 | D192: 0 | E192: 0 | F192: =IF(D192<>0,IF(E192/D192>=100,">>100",E192/D192*100),"-") -> -
A193: 3254 | B193: Rashodi po osnovi prodaje lijekova i potrošnog medicinskog materijala | C193: 3254 | D193: 0 | E193: 0 | F193: =IF(D193<>0,IF(E193/D193>=100,">>100",E193/D193*100),"-") -> -
A194: 329 | B194: Ostali nespomenuti rashodi poslovanja (šifre 3291 do 3299) | C194: 329 | D194: =SUM(D195:D201) -> 244009.73 | E194: 271906.55 | F194: 111.432667
A195: 3291 | B195: Naknade za rad predstavničkih i izvršnih tijela, povjerenstava i slično | C195: 3291 | D195: 83040.57 | E195: 132988.93 | F195: 160.1493463
A196: 3292 | B196: Premije osiguranja | C196: 3292 | D196: 31125.14 | E196: 56187.35 | F196: 180.5207944
A197: 3293 | B197: Reprezentacija | C197: 3293 | D197: 40418.3 | E197: 31764.03 | F197: 78.5882385
A198: 3294 | B198: Članarine i norme | C198: 3294 | D198: 7354.46 | E198: 8872.3 | F198: 120.6383609
A199: 3295 | B199: Pristojbe i naknade | C199: 3295 | D199: 38872.61 | E199: 5438.91 | F199: 13.99162547
A200: 3296 | B200: Troškovi sudskih postupaka | C200: 3296 | E200: 4970 | F200: -
... 819 more rows

Sheet BILANCA
A1: Obveznik: | B1: OPĆINA VIŠKOVO | C1: Razina: | D1: 22 | E1: Razdoblje: | F1: 2025-12
A2: BILANCA
A3: Račun iz Rač. plana | B3: Opis stavke | C3: Šifra | D3: Stanje 1. siječnja | E3: Stanje 31. prosinca | F3: Indeks (5/4)
A4: 1 | B4: 2 | C4: 3 | D4: 4 | E4: 5 | F4: 6
A5: IMOVINA
B6: IMOVINA (šifre B002+1) | C6: B001 | D6: =D7+D69 -> 61780920.6 | E6: 65065087.5 | F6: =IF(D6>0,IF(E6/D6>=100,">>100",E6/D6*100),"-") -> 105.3158271
A7: 0 | B7: Nefinancijska imovina (šifre 01+02+03+04+05+06) | C7: B002 | D7: =D8+D12+D51+D52+D56+D63 -> 55520233.24 | E7: 58933674.56 | F7: 106.1481034
A8: 01 | B8: Neproizvedena dugotrajna imovina (šifre 011+012-019) | C8: 01 | D8: =D9+D10-D11 -> 25753064.47 | E8: =E9+E10-E11 -> 26445242.7 | F8: 102.6877509
A9: 011 | B9: Materijalna imovina - prirodna bogatstva | C9: 011 | D9: 25740329.39 | E9: 26345034.13 | F9: 102.3492502
A10: 012 | B10: Nematerijalna imovina | C10: 012 | D10: 61033.92 | E10: 153677.29 | F10: 251.7899719
A11: 019 | B11: Ispravak vrijednosti neproizvedene dugotrajne imovine | C11: 019 | D11: 48298.84 | E11: 53468.72 | F11: 110.7039424
A12: 02 | B12: Proizvedena dugotrajna imovina (šifre '021 i 02921' + '022 i 02922' + '023 i 02923' + '024 i 02924' + '025 i 02925' + '026 i 02926') | C12: 02 | D12: =D13+D19+D29+D35+D41+D45 -> 26082174.12 | E12: 25416401.78 | F12: 97.44740474
A13: 021 i 02921 | B13: Građevinski objekti (šifre 0211 do 0214 - 02921) | C13: 021 i 02921 | D13: =SUM(D14:D17)-D18 -> 24087502.23 | E13: 23633420.99 | F13: 98.11486789
A14: 0211 | B14: Stambeni objekti | C14: 0211 | D14: 0 | E14: 0 | F14: -
A15: 0212 | B15: Poslovni objekti | C15: 0212 | D15: 15441056.72 | E15: 15444419.39 | F15: 100.0217775
A16: 0213 | B16: Ceste, željeznice i ostali prometni objekti | C16: 0213 | D16: 11616813.67 | E16: 11819290.85 | F16: 101.7429666
A17: 0214 | B17: Ostali građevinski objekti | C17: 0214 | D17: 10551405.35 | E17: 11127164.48 | F17: 105.4567056
A18: 02921 | B18: Ispravak vrijednosti građevinskih objekata | C18: 02921 | D18: 13521773.51 | E18: 14757453.73 | F18: 109.1384478
A19: 022 i 02922 | B19: Postrojenja i oprema (šifre 0221 do 0228 - 02922) | C19: 022 i 02922 | D19: =SUM(D20:D27)-D28 -> 1541310.47 | E19: 1416734.72 | F19: 91.91754339
A20: 0221 | B20: Uredska oprema i namještaj | C20: 0221 | D20: 645481.06 | E20: 669852.47 | F20: 103.7756972
A21: 0222 | B21: Komunikacijska oprema | C21: 0222 | D21: 20420.37 | E21: 20880.23 | F21: 102.251967
A22: 0223 | B22: Oprema za održavanje i zaštitu | C22: 0223 | D22: 634121.64 | E22: 749617.61 | F22: 118.2135355
A23: 0224 | B23: Medicinska i laboratorijska oprema | C23: 0224 | D23: 65459.83 | E23: 69028.57 | F23: 105.4518015
A24: 0225 | B24: Instrumenti i uređaji | C24: 0225 | D24: 2234.52 | E24: 2234.52 | F24: 100
A25: 0226 | B25: Sportska i glazbena oprema | C25: 0226 | D25: 2462.51 | E25: 3196.85 | F25: 129.8207926
A26: 0227 | B26: Uređaji, strojevi i oprema za ostale namjene | C26: 0227 | D26: 1105766.23 | E26: 1251259.11 | F26: 113.1576527
A27: 0228 | B27: Vojna oprema | C27: 0228 | D27: 0 | E27: 0 | F27: -
A28: 02922 | B28: Ispravak vrijednosti postrojenja i opreme | C28: 02922 | D28: 934635.69 | E28: 1349334.64 | F28: 144.3701171
A29: 023 i 02923 | B29: Prijevozna sredstva (šifre 0231 do 0234 - 02923) | C29: 023 i 02923 | D29: =SUM(D30:D33)-D34 -> 27931.72 | E29: 15906.77 | F29: 56.94876649
A30: 0231 | B30: Prijevozna sredstva u cestovnom prometu | C30: 0231 | D30: 99512 | E30: 99512 | F30: 100
A31: 0232 | B31: Prijevozna sredstva u željezničkom prometu | C31: 0232 | D31: 0 | E31: 0 | F31: -
A32: 0233 | B32: Prijevozna sredstva u pomorskom i riječnom prometu | C32: 0233 | D32: 0 | E32: 0 | F32: -
A33: 0234 | B33: Prijevozna sredstva u zračnom prometu | C33: 0234 | D33: 0 | E33: 0 | F33: -
A34: 02923 | B34: Ispravak vrijednosti prijevoznih sredstava | C34: 02923 | D34: 71580.28 | E34: 83605.23 | F34: 116.7992497
A35: 024 i 02924 | B35: Knjige, umjetnička djela i ostale izložbene vrijednosti (šifre 0241 do 0244 - 02924) | C35: 024 i 02924 | D35: =SUM(D36:D39)-D40 -> 393087.98 | E35: 278190.41 | F35: 70.77052064
A36: 0241 | B36: Knjige | C36: 0241 | D36: 0 | E36: 0 | F36: -
A37: 0242 | B37: Umjetnička djela (izložena u galerijama, muzejima i slično) | C37: 0242 | D37: 995.41 | E37: 995.41 | F37: 100
A38: 0243 | B38: Muzejski izlošci i predmeti prirodnih rijetkosti | C38: 0243 | D38: 0 | E38: 0 | F38: -
A39: 0244 | B39: Ostale nespomenute izložbene vrijednosti | C39: 0244 | D39: 459588.67 | E39: 459588.67 | F39: 100
A40: 02924 | B40: Ispravak vrijednosti knjiga, umjetničkih djela i ostalih izložbenih vrijednosti | C40: 02924 | D40: 67496.1 | E40: 182393.67 | F40: 270.2284576
A41: 025 i 02925 | B41: Višegodišnji nasadi i osnovno stado (šifre 0251+0252-02925) | C41: 025 i 02925 | D41: =SUM(D42:D43)-D44 -> 0 | E41: 0 | F41: -
A42: 0251 | B42: Višegodišnji nasadi | C42: 0251 | D42: 0 | E42: 0 | F42: -
A43: 0252 | B43: Osnovno stado | C43: 0252 | D43: 0 | E43: 0 | F43: -
A44: 02925 | B44: Ispravak vrijednosti višegodišnjih nasada i osnovnog stada | C44: 02925 | D44: 0 | E44: 0 | F44: -
A45: 026 i 02926 | B45: Nematerijalna proizvedena imovina (šifre 0261 do 0264 - 02926) | C45: 026 i 02926 | D45: =SUM(D46:D49)-D50 -> 32341.72 | E45: 72148.89 | F45: 223.0830333
A46: 0261 | B46: Istraživanje rudnih bogatstava | C46: 0261 | D46: 0 | E46: 0 | F46: -
A47: 0262 | B47: Ulaganja u računalne programe | C47: 0262 | D47: 121001.68 | E47: 136305.68 | F47: 112.6477583
A48: 0263 | B48: Umjetnička, literarna i znanstvena djela | C48: 0263 | D48: 609429.96 | E48: 639034.96 | F48: 104.8578183
A49: 0264 | B49: Ostala nematerijalna proizvedena imovina | C49: 0264 | D49: 247389.1 | E49: 269864.1 | F49: 109.0848788
A50: 02926 | B50: Ispravak vrijednosti nematerijalne proizvedene imovine | C50: 02926 | D50: 945479.02 | E50: 973055.85 | F50: 102.9167046
A51: 03 | B51: Plemeniti metali i ostale pohranjene vrijednosti | C51: 03 | D51: 0 | E51: 0 | F51: -
A52: 04 | B52: Sitni inventar i autogume (šifre 041+042-049) | C52: 04 | D52: =SUM(D53:D54)-D55 -> 0 | E52: 0 | F52: -
A53: 041 | B53: Zalihe sitnog inventara i autoguma | C53: 041 | D53: 0 | E53: 0 | F53: -
A54: 042 | B54: Sitni inventar i autogume u upotrebi | C54: 042 | D54: 64303.45 | E54: 60784.1 | F54: 94.5269655
A55: 049 | B55: Ispravak vrijednosti sitnog inventara i autoguma u upotrebi | C55: 049 | D55: 64303.45 | E55: 60784.1 | F55: 94.5269655
A56: 05 | B56: Dugotrajna nefinancijska imovina u pripremi (šifre 051 do 056) | C56: 05 | D56: =SUM(D57:D62) -> 3684994.65 | E56: 7072030.08 | F56: 191.9142564
A57: 051 | B57: Građevinski objekti u pripremi | C57: 051 | D57: 1966413.4 | E57: 5167465.11 | F57: 262.7863048
A58: 052 | B58: Postrojenja i oprema u pripremi | C58: 052 | D58: 5419.65 | E58: 11371 | F58: 209.8105966
A59: 053 | B59: Prijevozna sredstva u pripremi | C59: 053 | D59: 0 | E59: 0 | F59: -
A60: 054 | B60: Višegodišnji nasadi i osnovno stado u pripremi | C60: 054 | D60: 0 | E60: 0 | F60: -
A61: 055 | B61: Ostala nematerijalna proizvedena imovina u pripremi | C61: 055 | D61: 1692699.09 | E61: 1863106.46 | F61: 110.0671981
A62: 056 | B62: Ostala nefinancijska dugotrajna imovina u pripremi | C62: 056 | D62: 20462.51 | E62: 30087.51 | F62: 147.0372403
A63: 06 | B63: Proizvedena kratkotrajna imovina (šifre 061 do 065) | C63: 06 | D63: =SUM(D64:D68) -> 0 | E63: =SUM(E64:E68) -> 0 | F63: =IF(D63>0,IF(E63/D63>=100,">>100",E63/D63*100),"-") -> -
A64: 061 | B64: Zalihe za obavljanje djelatnosti | C64: 061 | D64: 0 | E64: 0 | F64: -
A65: 062 | B65: Proizvodnja u tijeku i gotovi proizvodi | C65: 062 | D65: 0 | E65: 0 | F65: -
A66: 063 | B66: Zalihe vojnih sredstava za jednokratnu upotrebu | C66: 063 | D66: 0 | E66: 0 | F66: -
A67: 064 | B67: Zaliha robe za daljnju prodaju | C67: 064 | D67: 0 | E67: 0 | F67: -
A68: 065 | B68: Zalihe lijekova i potrošnog medicinskog materijala kod zdravstvenih ustanova | C68: 065 | D68: 0 | E68: 0 | F68: -
A69: 1 | B69: Financijska imovina (šifre 11+12+13+14+15+16+17+19) | C69: 1 | D69: =D70+D82+D88+D119+D135+D147+D165+D171 -> 6260687.36 | E69: =E70+E82+E88+E119+E135+E147+E165+E171 -> 6131412.94 | F69: 97.93514014
A70: 11 | B70: Novac u banci i blagajni (šifre 111+112 do 114) | C70: 11 | D70: =+D71+D76+D80+D81 -> 1954640.02 | E70: 2020927.82 | F70: 103.3913048
A71: 111 | B71: Novac u banci (šifre 1111 do 1114) | C71: 111 | D71: =SUM(D72:D75) -> 1514533.63 | E71: 1918381.33 | F71: 126.6648222
A72: 1111 | B72: Novac na računu kod Hrvatske narodne banke | C72: 1111 | D72: 0 | E72: 0 | F72: -
A73: 1112 | B73: Novac na računu kod tuzemnih poslovnih banaka | C73: 1112 | D73: 1514533.63 | E73: 1918381.33 | F73: 126.6648222
A74: 1113 | B74: Novac na računu kod inozemnih poslovnih banaka | C74: 1113 | D74: 0 | E74: 0 | F74: -
A75: 1114 | B75: Prijelazni račun | C75: 1114 | D75: 0 | E75: 0 | F75: -
A76: 112 | B76: Izdvojena novčana sredstva i depoziti u kreditnim i financijskim institucijama (šifre 1121 do 1123) | C76: 112 | D76: =SUM(D77:D79) -> 440106.39 | E76: =SUM(E77:E79) -> 102546.49 | F76: 23.30038653
A77: 1121 | B77: Izdvojena novčana sredstva | C77: 1121 | D77: 378445.21 | E77: 41585.31 | F77: =IF(D77>0,IF(E77/D77>=100,">>100",E77/D77*100),"-") -> 10.9884625
A78: 1122 | B78: Depoziti kod kreditnih i ostalih financijskih institucija - tuzemni | C78: 1122 | D78: 61661.18 | E78: 60961.18 | F78: 98.86476386
A79: 1123 | B79: Depoziti kod kreditnih i ostalih financijskih institucija - inozemni | C79: 1123 | D79: 0 | E79: 0 | F79: -
A80: 113 | B80: Novac u blagajni | C80: 113 | D80: 0 | E80: 0 | F80: -
A81: 114 | B81: Vrijednosnice u blagajni | C81: 114 | D81: 0 | E81: 0 | F81: -
A82: 12 | B82: Potraživanja za jamčevne pologe, od zaposlenih te za više plaćene poreze i ostalo (šifre 122 do 124 - 125 + 129) | C82: 12 | D82: =SUM(D83:D85)-D86+D87 -> 1467.8 | E82: =SUM(E83:E85)-E86+E87 -> 14332.39 | F82: 976.4538765
A83: 122 | B83: Potraživanja za jamčevne pologe | C83: 122 | D83: 0 | E83: 0 | F83: -
A84: 123 | B84: Potraživanja od zaposlenih | C84: 123 | D84: 0 | E84: 0 | F84: -
A85: 124 | B85: Potraživanja za više plaćene poreze i doprinose | C85: 124 | D85: 0 | E85: 0 | F85: -
A86: 125 | B86: Ispravak vrijednosti potraživanja od zaposlenih te za više plaćene poreze i ostalo | C86: 125 | D86: 0 | E86: 0 | F86: -
A87: 129 | B87: Ostala potraživanja | C87: 129 | D87: 1467.8 | E87: 14332.39 | F87: 976.4538765
A88: 13 | B88: Potraživanja za dane zajmove (šifre 13X1+13X2-139) | C88: 13 | D88: =D89+D107-D118 -> 55130.97 | E88: 55130.97 | F88: 100
B89: Zajmovi - tuzemni (šifre 1321+1332+1333+1334+1341+1353+1354+1355+1363+1364+1371+1372+1373+1374+1375+1376+1377) | C89: 13X1 | D89: =SUM(D90:D106) -> 55130.97 | E89: 55130.97 | F89: 100
A90: 1321 | B90: Zajmovi neprofitnim organizacijama, građanima i kućanstvima u tuzemstvu | C90: 1321 | D90: 0 | E90: 0 | F90: -
A91: 1332 | B91: Zajmovi kreditnim institucijama u javnom sektoru | C91: 1332 | D91: 0 | E91: 0 | F91: -
A92: 1333 | B92: Zajmovi osiguravajućim društvima u javnom sektoru | C92: 1333 | D92: 0 | E92: 0 | F92: -
A93: 1334 | B93: Zajmovi ostalim financijskim institucijama u javnom sektoru | C93: 1334 | D93: 0 | E93: 0 | F93: -
A94: 1341 | B94: Zajmovi trgovačkim društvima u javnom sektoru | C94: 1341 | D94: 55130.97 | E94: 55130.97 | F94: 100
A95: 1353 | B95: Zajmovi tuzemnim kreditnim institucijama izvan javnog sektora | C95: 1353 | D95: 0 | E95: 0 | F95: -
A96: 1354 | B96: Zajmovi tuzemnim osiguravajućim društvima izvan javnog sektora | C96: 1354 | D96: 0 | E96: 0 | F96: -
A97: 1355 | B97: Zajmovi ostalim tuzemnim financijskim institucijama izvan javnog sektora | C97: 1355 | D97: 0 | E97: 0 | F97: -
A98: 1363 | B98: Zajmovi tuzemnim trgovačkim društvima izvan javnog sektora | C98: 1363 | D98: 0 | E98: 0 | F98: -
A99: 1364 | B99: Zajmovi tuzemnim obrtnicima | C99: 1364 | D99: 0 | E99: 0 | F99: -
A100: 1371 | B100: Zajmovi državnom proračunu | C100: 1371 | D100: 0 | E100: 0 | F100: -
A101: 1372 | B101: Zajmovi županijskim proračunima | C101: 1372 | D101: 0 | E101: 0 | F101: -
A102: 1373 | B102: Zajmovi gradskim proračunima | C102: 1373 | D102: 0 | E102: 0 | F102: -
A103: 1374 | B103: Zajmovi općinskim proračunima | C103: 1374 | D103: 0 | E103: 0 | F103: -
A104: 1375 | B104: Zajmovi HZMO-u, HZZ-u i HZZO-u | C104: 1375 | D104: 0 | E104: 0 | F104: -
A105: 1376 | B105: Zajmovi ostalim izvanproračunskim korisnicima državnog proračuna | C105: 1376 | D105: 0 | E105: 0 | F105: -
A106: 1377 | B106: Zajmovi izvanproračunskim korisnicima JLP(R)S | C106: 1377 | D106: 0 | E106: 0 | F106: -
B107: Zajmovi - inozemni (šifre 1313+1314+1315+1316+1322+1356+1357+1358+1365+1366) | C107: 13X2 | D107: =SUM(D108:D117) -> 0 | E107: 0 | F107: -
A108: 1313 | B108: Zajmovi međunarodnim organizacijama | C108: 1313 | D108: 0 | E108: 0 | F108: -
A109: 1314 | B109: Zajmovi institucijama i tijelima EU | C109: 1314 | D109: 0 | E109: 0 | F109: -
A110: 1315 | B110: Zajmovi inozemnim vladama u EU | C110: 1315 | D110: 0 | E110: 0 | F110: -
A111: 1316 | B111: Zajmovi inozemnim vladama izvan EU | C111: 1316 | D111: 0 | E111: 0 | F111: -
A112: 1322 | B112: Zajmovi neprofitnim organizacijama, građanima i kućanstvima u inozemstvu | C112: 1322 | D112: 0 | E112: 0 | F112: -
A113: 1356 | B113: Zajmovi inozemnim kreditnim institucijama | C113: 1356 | D113: 0 | E113: 0 | F113: -
A114: 1357 | B114: Zajmovi inozemnim osiguravajućim društvima | C114: 1357 | D114: 0 | E114: 0 | F114: -
A115: 1358 | B115: Zajmovi ostalim inozemnim financijskim institucijama | C115: 1358 | D115: 0 | E115: 0 | F115: -
A116: 1365 | B116: Zajmovi inozemnim trgovačkim društvima | C116: 1365 | D116: 0 | E116: 0 | F116: -
A117: 1366 | B117: Zajmovi inozemnim obrtnicima | C117: 1366 | D117: 0 | E117: 0 | F117: -
A118: 139 | B118: Ispravak vrijednosti potraživanja za dane zajmove | C118: 139 | D118: 0 | E118: 0 | F118: -
A119: 14 | B119: Financijski instrumenti - vrijednosni papiri (šifre 14X1+14X2-149) | C119: 14 | D119: =D120+D127-D134 -> 0 | E119: 0 | F119: -
B120: Vrijednosni papiri - tuzemni (šifre 1411+1421+1431+1441+1451+1461) | C120: 14X1 | D120: =SUM(D121:D126) -> 0 | E120: 0 | F120: -
A121: 1411 | B121: Čekovi | C121: 1411 | D121: 0 | E121: 0 | F121: -
A122: 1421 | B122: Komercijalni i blagajnički zapisi | C122: 1421 | D122: 0 | E122: 0 | F122: -
A123: 1431 | B123: Mjenice | C123: 1431 | D123: 0 | E123: 0 | F123: -
A124: 1441 | B124: Obveznice | C124: 1441 | D124: 0 | E124: 0 | F124: -
A125: 1451 | B125: Opcije i drugi financijski derivati | C125: 1451 | D125: 0 | E125: 0 | F125: -
A126: 1461 | B126: Ostali vrijednosni papiri | C126: 1461 | D126: 0 | E126: 0 | F126: -
B127: Vrijednosni papiri - inozemni (šifre 1412+1422+1432+1442+1452+1462) | C127: 14X2 | D127: =SUM(D128:D133) -> 0 | E127: 0 | F127: -
A128: 1412 | B128: Čekovi | C128: 1412 | D128: 0 | E128: 0 | F128: -
A129: 1422 | B129: Komercijalni i blagajnički zapisi | C129: 1422 | D129: 0 | E129: 0 | F129: -
A130: 1432 | B130: Mjenice | C130: 1432 | D130: 0 | E130: 0 | F130: -
A131: 1442 | B131: Obveznice | C131: 1442 | D131: 0 | E131: 0 | F131: -
A132: 1452 | B132: Opcije i drugi financijski derivati | C132: 1452 | D132: 0 | E132: 0 | F132: -
A133: 1462 | B133: Ostali vrijednosni papiri | C133: 1462 | D133: 0 | E133: 0 | F133: -
A134: 149 | B134: Ispravak vrijednosti vrijednosnih papira | C134: 149 | D134: 0 | E134: 0 | F134: -
A135: 15 | B135: Financijski instrumenti - dionice i udjeli u glavnici (šifre 15X1+15X2-159) | C135: 15 | D135: =D136+D143-D146 -> 3215838.68 | E135: 3215838.68 | F135: 100
B136: Dionice i udjeli u glavnici - tuzemni (šifre 1512+1513+1514+1521+1531+1541) | C136: 15X1 | D136: =SUM(D137:D142) -> 3215838.68 | E136: 3215838.68 | F136: 100
A137: 1512 | B137: Dionice i udjeli u glavnici kreditnih institucija u javnom sektoru | C137: 1512 | D137: 0 | E137: 0 | F137: -
A138: 1513 | B138: Dionice i udjeli u glavnici osiguravajućih društava u javnom sektoru | C138: 1513 | D138: 0 | E138: 0 | F138: -
A139: 1514 | B139: Dionice i udjeli u glavnici ostalih financijskih institucija u javnom sektoru | C139: 1514 | D139: 0 | E139: 0 | F139: -
A140: 1521 | B140: Dionice i udjeli u glavnici trgovačkih društava u javnom sektoru | C140: 1521 | D140: 3215838.68 | E140: 3215838.68 | F140: 100
A141: 1531 | B141: Dionice i udjeli u glavnici tuzemnih kreditnih i ostalih financijskih institucija izvan javnog sektora | C141: 1531 | D141: 0 | E141: 0 | F141: -
A142: 1541 | B142: Dionice i udjeli u glavnici tuzemnih trgovačkih društava izvan javnog sektora | C142: 1541 | D142: 0 | E142: 0 | F142: -
B143: Dionice i udjeli u glavnici - inozemni (šifre 1532+1542) | C143: 15X2 | D143: =SUM(D144:D145) -> 0 | E143: 0 | F143: -
A144: 1532 | B144: Dionice i udjeli u glavnici inozemnih kreditnih i ostalih financijskih institucija | C144: 1532 | D144: 0 | E144: 0 | F144: -
A145: 1542 | B145: Dionice i udjeli u glavnici inozemnih trgovačkih društava | C145: 1542 | D145: 0 | E145: 0 | F145: -
A146: 159 | B146: Ispravak vrijednosti dionica i udjela u glavnici | C146: 159 | D146: 0 | E146: 0 | F146: -
A147: 16 | B147: Potraživanja za prihode poslovanja (šifre 161 do 163 + 164 do 168-169) | C147: 16 | D147: =SUM(D148:D150)+SUM(D159:D163)-D164 -> 610099.62 | E147: 823665.23 | F147: 135.005039
A148: 161 | B148: Potraživanja za poreze | C148: 161 | D148: 461865.36 | E148: 353105.98 | F148: 76.45214614
A149: 162 | B149: Potraživanja za doprinose | C149: 162 | D149: 0 | E149: 0 | F149: -
A150: 163 | B150: Potraživanja za pomoći iz inozemstva i od subjekata unutar općeg proračuna (šifre 1631 do 1638) | C150: 163 | D150: =SUM(D151:D158) -> 0 | E150: 0 | F150: -
A151: 1631 | B151: Potraživanja za pomoći od inozemnih vlada | C151: 1631 | D151: 0 | E151: 0 | F151: -
A152: 1632 | B152: Potraživanja za pomoći od međunarodnih organizacija te institucija i tijela EU | C152: 1632 | D152: 0 | E152: 0 | F152: -
A153: 1633 | B153: Potraživanja za pomoći proračunu i izvanproračunskim korisnicima iz drugih proračuna | C153: 1633 | D153: 0 | E153: 0 | F153: -
A154: 1634 | B154: Potraživanja za pomoći od izvanproračunskih korisnika | C154: 1634 | D154: 0 | E154: 0 | F154: -
A155: 1635 | B155: Potraživanja za pomoći izravnanja za decentralizirane funkcije i fiskalnog izravnanja | C155: 1635 | D155: 0 | E155: 0 | F155: -
A156: 1636 | B156: Potraživanja za pomoći proračunskim korisnicima iz proračuna koji im nije nadležan | C156: 1636 | D156: 0 | E156: 0 | F156: -
A157: 1637 | B157: Potraživanja za povrat pomoći danih drugim proračunima i izvanproračunskim korisnicima po protestiranim jamstvima | C157: 1637 | D157: 0 | E157: 0 | F157: -
A158: 1638 | B158: Potraživanja za pomoći temeljem prijenosa EU sredstava | C158: 1638 | D158: 0 | E158: 0 | F158: -
A159: 164 | B159: Potraživanja za prihode od imovine | C159: 164 | D159: 16124 | E159: 9726.95 | F159: 60.32591168
A160: 165 | B160: Potraživanja za upravne i administrativne pristojbe, pristojbe po posebnim propisima i naknade | C160: 165 | D160: 451455.33 | E160: 539947.54 | F160: 119.6015429
A161: 166 | B161: Potraživanja za prihode od prodaje proizvoda i robe te pruženih usluga i za povrat po protestiranim jamstvima | C161: 166 | D161: 0 | E161: 0 | F161: -
A162: 167 | B162: Potraživanja proračunskih korisnika za sredstva uplaćena u nadležni proračun i za prihode od HZZO-a na temelju ugovornih obveza | C162: 167 | D162: 0 | E162: 0 | F162: -
A163: 168 | B163: Potraživanja za kazne i upravne mjere te ostale prihode | C163: 168 | D163: 47901.59 | E163: 72795.36 | F163: 151.9685672
A164: 169 | B164: Ispravak vrijednosti potraživanja | C164: 169 | D164: 367246.66 | E164: 151910.6 | F164: 41.3647329
A165: 17 | B165: Potraživanja od prodaje nefinancijske imovine (šifre 171 do 174 - 179) | C165: 17 | D165: =SUM(D166:D169)-D170 -> 1849.05 | E165: 1517.85 | F165: 82.08809929
A166: 171 | B166: Potraživanje od prodaje neproizvedene dugotrajne imovine | C166: 171 | D166: 0 | E166: 0 | F166: -
A167: 172 | B167: Potraživanja od prodaje proizvedene dugotrajne imovine | C167: 172 | D167: 1849.05 | E167: 1517.85 | F167: 82.08809929
A168: 173 | B168: Potraživanja od prodaje plemenitih metala i ostalih pohranjenih vrijednosti | C168: 173 | D168: 0 | E168: 0 | F168: -
A169: 174 | B169: Potraživanja od prodaje proizvedene kratkotrajne imovine | C169: 174 | D169: 0 | E169: 0 | F169: -
A170: 179 | B170: Ispravak vrijednosti potraživanja za prodanu nefinancijsku imovinu | C170: 179 | D170: 0 | E170: 0 | F170: -
A171: 19 | B171: Rashodi budućih razdoblja i nedospjela naplata prihoda (aktivna vremenska razgraničenja) (šifre 191 do 193) | C171: 19 | D171: =SUM(D172:D174) -> 421661.22 | E171: 0 | F171: 0
A172: 191 | B172: Rashodi budućih razdoblja | C172: 191 | D172: 0 | E172: 0 | F172: -
A173: 192 | B173: Nedospjela naplata prihoda | C173: 192 | D173: 0 | E173: 0 | F173: -
A174: 193 | B174: Kontinuirani rashodi budućih razdoblja | C174: 193 | D174: 421661.22 | E174: 0 | F174: 0
A175: OBVEZE I VLASTITI IZVORI
B176: OBVEZE I VLASTITI IZVORI (šifre 2+9) | C176: B003 | D176: =D177+D251 -> 61780920.6 | E176: =E177+E251 -> 65065087.5 | F176: 105.3158271
A177: 2 | B177: Obveze (šifre 23+24+25+26+27+29) | C177: 2 | D177: =D178+D197+D203+D219+D247+D248 -> 5454474.5 | E177: =E178+E197+E203+E219+E247+E248 -> 7922500.98 | F177: 145.2477407
A178: 23 | B178: Obveze za rashode poslovanja (šifre 231 do 234 + 235 + 236 + 237 do 239) | C178: 23 | D178: =SUM(D179:D181)+D185+D186+SUM(D194:D196) -> 769402.11 | E178: =SUM(E179:E181)+E185+E186+SUM(E194:E196) -> 1099588.25 | F178: 142.9146393
A179: 231 | B179: Obveze za zaposlene | C179: 231 | D179: 160068.95 | E179: 164995.39 | F179: 103.0776987
A180: 232 | B180: Obveze za materijalne rashode | C180: 232 | D180: 254217.78 | E180: 377722.87 | F180: 148.5823966
A181: 234 | B181: Obveze za financijske rashode (šifre 2341 do 2343) | C181: 234 | D181: =SUM(D182:D184) -> 1675.94 | E181: 17733.14 | F181: 1058.101125
A182: 2341 | B182: Obveze za kamate za izdane financijske instrumente - vrijednosne papire | C182: 2341 | D182: 0 | E182: 0 | F182: -
A183: 2342 | B183: Obveze za kamate na primljene kredite i zajmove | C183: 2342 | D183: 0 | E183: 15975.63 | F183: -
A184: 2343 | B184: Obveze za ostale financijske rashode | C184: 2343 | D184: 1675.94 | E184: 1757.51 | F184: 104.8671193
A185: 235 | B185: Obveze za subvencije | C185: 235 | D185: 53.81 | E185: 0 | F185: 0
A186: 236 | B186: Obveze za pomoći dane u inozemstvo i unutar općeg proračuna (šifre 2361 do 2368) | C186: 236 | D186: =SUM(D187:D193) -> 0 | E186: =SUM(E187:E193) -> 50 | F186: =IF(D186>0,IF(E186/D186>=100,">>100",E186/D186*100),"-") -> -
A187: 2361 | B187: Obveze za pomoći inozemnim vladama | C187: 2361 | D187: 0 | E187: 0 | F187: =IF(D187>0,IF(E187/D187>=100,">>100",E187/D187*100),"-") -> -
A188: 2362 | B188: Obveze za pomoći međunarodnim organizacijama te institucijama i tijelima EU | C188: 2362 | D188: 0 | E188: 0 | F188: -
A189: 2363 | B189: Obveze za pomoći drugom proračunu i izvanproračunskim korisnicima | C189: 2363 | D189: 0 | E189: 0 | F189: -
A190: 2364 | B190: Obveze za pomoći proračunskim korisnicima drugih proračuna | C190: 2364 | D190: 0 | E190: 50 | F190: -
A191: 2365 | B191: Obveze za pomoći izravnanja za decentralizirane funkcije i fiskalnog izravnanja | C191: 2365 | D191: 0 | E191: 0 | F191: -
A192: 2366 | B192: Obveze za povrat pomoći primljenih iz drugih proračuna i od izvanproračunskih korisnika po protestiranim jamstvima | C192: 2366 | D192: 0 | E192: 0 | F192: -
A193: 2368 | B193: Obveze za pomoći temeljem prijenosa EU sredstava | C193: 2368 | D193: 0 | E193: 0 | F193: -
A194: 237 | B194: Obveze za naknade građanima i kućanstvima | C194: 237 | D194: 316573.31 | E194: 448040.62 | F194: 141.5282356
A195: 238 | B195: Obveze za donacije, kazne, naknade šteta i kapitalne pomoći | C195: 238 | D195: 0 | E195: 9393.7 | F195: -
A196: 239 | B196: Ostale tekuće obveze | C196: 239 | D196: 36812.32 | E196: 81652.53 | F196: 221.8076177
A197: 24 | B197: Obveze za nabavu nefinancijske imovine (šifre 241 do 245) | C197: 24 | D197: =SUM(D198:D202) -> 416219.12 | E197: =SUM(E198:E202) -> 969194.06 | F197: 232.8566886
A198: 241 | B198: Obveze za nabavu neproizvedene dugotrajne imovine | C198: 241 | D198: 0 | E198: 131303.37 | F198: -
A199: 242 | B199: Obveze za nabavu proizvedene dugotrajne imovine | C199: 242 | D199: 269742.45 | E199: 678557.7 | F199: =IF(D199>0,IF(E199/D199>=100,">>100",E199/D199*100),"-") -> 251.5576247
A200: 243 | B200: Obveze za plemenite metale i ostale pohranjene vrijednosti | C200: 243 | D200: 0 | E200: 0 | F200: -
... 197 more rows

Sheet RAS-funkcijski
A1: Obveznik: | B1: OPĆINA VIŠKOVO | C1: Razina: | D1: 22 | E1: Razdoblje: | F1: 2025-12
A2: IZVJEŠTAJ O RASHODIMA PREMA FUNKCIJSKOJ KLASIFIKACIJI
A3: Brojč. ozn. funk. klas. | B3: Opis stavke | C3: Šifra | D3: Ostvareno u izvještajnom razdoblju preth. godine | E3: Ostvareno u izvještajnom razdoblju tekuće godine | F3: Indeks (5/4)
A4: 1 | B4: 2 | C4: 3 | D4: 4 | E4: 5 | F4: 6
A5: 01 | B5: Opće javne usluge (šifre 011+012+013+014 do 018) | C5: 01 | D5: =D6+D10+D13+SUM(D17:D21) -> 1978193.82 | E5: 2965994.46 | F5: =IF(D5>0,IF(E5/D5>=100,">>100",E5/D5*100),"-") -> 149.934472
A6: 011 | B6: Izvršna i zakonodavna tijela, financijski i fiskalni poslovi, vanjski poslovi (šifre 0111 do 0113) | C6: 011 | D6: =SUM(D7:D9) -> 203362.41 | E6: 288944.64 | F6: 142.0836034
A7: 0111 | B7: Izvršna i zakonodavna tijela | C7: 0111 | D7: 196386.45 | E7: 282627.06 | F7: 143.9137272
A8: 0112 | B8: Financijski i fiskalni poslovi | C8: 0112 | D8: 6975.96 | E8: 6317.58 | F8: 90.56215919
A9: 0113 | B9: Vanjski poslovi | C9: 0113 | D9: 0 | E9: 0 | F9: -
A10: 012 | B10: Inozemna ekonomska pomoć (šifre 0121+0122) | C10: 012 | D10: =SUM(D11:D12) -> 0 | E10: 0 | F10: -
A11: 0121 | B11: Ekonomska pomoć zemljama u razvoju i zemljama u tranziciji | C11: 0121 | D11: 0 | E11: 0 | F11: -
A12: 0122 | B12: Ekonomska pomoć usmjerena preko međunarodnih agencija | C12: 0122 | D12: 0 | E12: 0 | F12: -
A13: 013 | B13: Opće usluge (šifre 0131 do 0133) | C13: 013 | D13: =SUM(D14:D16) -> 1669938.29 | E13: 2496309.76 | F13: 149.4851501
A14: 0131 | B14: Opće usluge vezane za službenike | C14: 0131 | D14: 0 | E14: 0 | F14: -
A15: 0132 | B15: Sveukupno planiranje i statističke usluge | C15: 0132 | D15: 0 | E15: 0 | F15: -
A16: 0133 | B16: Ostale opće usluge | C16: 0133 | D16: 1669938.29 | E16: 2496309.76 | F16: 149.4851501
A17: 014 | B17: Osnovna istraživanja | C17: 014 | D17: 0 | E17: 0 | F17: -
A18: 015 | B18: Istraživanje i razvoj: Opće javne usluge | C18: 015 | D18: 0 | E18: 0 | F18: -
A19: 016 | B19: Opće javne usluge koje nisu drugdje svrstane | C19: 016 | D19: 48267.59 | E19: 110873.49 | F19: 229.7058751
A20: 017 | B20: Transakcije vezane za javni dug | C20: 017 | D20: 56625.53 | E20: 69866.57 | F20: 123.3835162
A21: 018 | B21: Prijenosi općeg karaktera između različitih državnih razina | C21: 018 | D21: 0 | E21: 0 | F21: -
A22: 02 | B22: Obrana (šifre 021 do 025) | C22: 02 | D22: =SUM(D23:D27) -> 0 | E22: 0 | F22: -
A23: 021 | B23: Vojna obrana | C23: 021 | D23: 0 | E23: 0 | F23: -
A24: 022 | B24: Civilna obrana | C24: 022 | D24: 0 | E24: 0 | F24: -
A25: 023 | B25: Inozemna vojna pomoć | C25: 023 | D25: 0 | E25: 0 | F25: -
A26: 024 | B26: Istraživanje i razvoj obrane | C26: 024 | D26: 0 | E26: 0 | F26: -
A27: 025 | B27: Rashodi za obranu koji nisu drugdje svrstani | C27: 025 | D27: 0 | E27: 0 | F27: -
A28: 03 | B28: Javni red i sigurnost (šifre 031 do 036) | C28: 03 | D28: =SUM(D29:D34) -> 131224.65 | E28: 248003.76 | F28: 188.9917481
A29: 031 | B29: Usluge policije | C29: 031 | D29: 0 | E29: 0 | F29: -
A30: 032 | B30: Usluge protupožarne zaštite | C30: 032 | D30: 127549.64 | E30: 243574.01 | F30: 190.9640905
A31: 033 | B31: Sudovi | C31: 033 | D31: 0 | E31: 0 | F31: -
A32: 034 | B32: Zatvori | C32: 034 | D32: 0 | E32: 0 | F32: -
A33: 035 | B33: Istraživanje i razvoj: Javni red i sigurnost | C33: 035 | D33: 0 | E33: 0 | F33: -
A34: 036 | B34: Rashodi za javni red i sigurnost koji nisu drugdje svrstani | C34: 036 | D34: 3675.01 | E34: 4429.75 | F34: 120.537087
A35: 04 | B35: Ekonomski poslovi (šifre 041+042+043+044+045+046+047+048+049) | C35: 04 | D35: =D36+D39+D43+D50+D54+D60+D61+D66+D74 -> 1432258.91 | E35: 3327072.79 | F35: 232.2954856
A36: 041 | B36: Opći ekonomski, trgovački i poslovi vezani uz rad (šifre 0411+0412) | C36: 041 | D36: =SUM(D37:D38) -> 46957.96 | E36: 49660.21 | F36: 105.7546154
A37: 0411 | B37: Opći ekonomski i trgovački poslovi | C37: 0411 | D37: 46957.96 | E37: 49660.21 | F37: 105.7546154
A38: 0412 | B38: Opći poslovi vezani uz rad | C38: 0412 | D38: 0 | E38: 0 | F38: -
A39: 042 | B39: Poljoprivreda, šumarstvo, ribarstvo i lov (šifre 0421 do 0423) | C39: 042 | D39: =SUM(D40:D42) -> 2654.46 | E39: 2654.46 | F39: 100
A40: 0421 | B40: Poljoprivreda | C40: 0421 | D40: 2654.46 | E40: 2654.46 | F40: 100
A41: 0422 | B41: Šumarstvo | C41: 0422 | D41: 0 | E41: 0 | F41: -
A42: 0423 | B42: Ribarstvo i lov | C42: 0423 | D42: 0 | E42: 0 | F42: -
A43: 043 | B43: Gorivo i energija (šifre 0431 do 0436) | C43: 043 | D43: =SUM(D44:D49) -> 0 | E43: 0 | F43: -
A44: 0431 | B44: Ugljen i ostala kruta mineralna goriva | C44: 0431 | D44: 0 | E44: 0 | F44: -
A45: 0432 | B45: Nafta i prirodni plin | C45: 0432 | D45: 0 | E45: 0 | F45: -
A46: 0433 | B46: Nuklearno gorivo | C46: 0433 | D46: 0 | E46: 0 | F46: -
A47: 0434 | B47: Ostala goriva | C47: 0434 | D47: 0 | E47: 0 | F47: -
A48: 0435 | B48: Električna energija | C48: 0435 | D48: 0 | E48: 0 | F48: -
A49: 0436 | B49: Ostale vrste energije | C49: 0436 | D49: 0 | E49: 0 | F49: -
A50: 044 | B50: Rudarstvo, proizvodnja i građevinarstvo (šifre 0441 do 0443) | C50: 044 | D50: =SUM(D51:D53) -> 0 | E50: 0 | F50: -
A51: 0441 | B51: Rudarstvo, mineralni resursi i ostala mineralna goriva | C51: 0441 | D51: 0 | E51: 0 | F51: -
A52: 0442 | B52: Proizvodnja | C52: 0442 | D52: 0 | E52: 0 | F52: -
A53: 0443 | B53: Građevinarstvo | C53: 0443 | D53: 0 | E53: 0 | F53: -
A54: 045 | B54: Promet (šifre 0451 do 0455) | C54: 045 | D54: =SUM(D55:D59) -> 1177517.5 | E54: 2425176.42 | F54: 205.95672
A55: 0451 | B55: Cestovni promet | C55: 0451 | D55: 1177517.5 | E55: 2425176.42 | F55: 205.95672
A56: 0452 | B56: Promet vodnim putovima | C56: 0452 | D56: 0 | E56: 0 | F56: -
A57: 0453 | B57: Željeznički promet | C57: 0453 | D57: 0 | E57: 0 | F57: -
A58: 0454 | B58: Zračni promet | C58: 0454 | D58: 0 | E58: 0 | F58: -
A59: 0455 | B59: Promet cjevovodima i ostali promet | C59: 0455 | D59: 0 | E59: 0 | F59: -
A60: 046 | B60: Komunikacije | C60: 046 | D60: 0 | E60: 0 | F60: -
A61: 047 | B61: Ostale industrije (šifre 0471 do 0474) | C61: 047 | D61: =SUM(D62:D65) -> 205128.99 | E61: 849581.7 | F61: 414.169494
A62: 0471 | B62: Distribucija i skladištenje | C62: 0471 | D62: 0 | E62: 0 | F62: -
A63: 0472 | B63: Hoteli i restorani | C63: 0472 | D63: 0 | E63: 0 | F63: -
A64: 0473 | B64: Turizam | C64: 0473 | D64: 167517 | E64: 214541.85 | F64: 128.0716882
A65: 0474 | B65: Višenamjenski razvojni projekti | C65: 0474 | D65: 37611.99 | E65: 635039.85 | F65: 1688.39737
A66: 048 | B66: Istraživanje i razvoj: Ekonomski poslovi (šifre 0481 do 0487) | C66: 048 | D66: =SUM(D67:D73) -> 0 | E66: 0 | F66: -
A67: 0481 | B67: Istraživanje i razvoj: Opći ekonomski, trgovački i poslovi vezani uz rad | C67: 0481 | D67: 0 | E67: 0 | F67: -
A68: 0482 | B68: Istraživanje i razvoj: Poljoprivreda, šumarstvo, ribarstvo i lov | C68: 0482 | D68: 0 | E68: 0 | F68: -
A69: 0483 | B69: Istraživanje i razvoj: Gorivo i energija | C69: 0483 | D69: 0 | E69: 0 | F69: -
A70: 0484 | B70: Istraživanje i razvoj: Rudarstvo, proizvodnja i građevinarstvo | C70: 0484 | D70: 0 | E70: 0 | F70: -
A71: 0485 | B71: Istraživanje i razvoj: Promet | C71: 0485 | D71: 0 | E71: 0 | F71: -
A72: 0486 | B72: Istraživanje i razvoj: Komunikacije | C72: 0486 | D72: 0 | E72: 0 | F72: -
A73: 0487 | B73: Istraživanje i razvoj: Ostale industrije | C73: 0487 | D73: 0 | E73: 0 | F73: -
A74: 049 | B74: Ekonomski poslovi koji nisu drugdje svrstani | C74: 049 | D74: 0 | E74: 0 | F74: -
A75: 05 | B75: Zaštita okoliša (šifre 051 do 056) | C75: 05 | D75: =SUM(D76:D81) -> 53039.68 | E75: 72491.88 | F75: 136.6748065
A76: 051 | B76: Gospodarenje otpadom | C76: 051 | D76: 41099.68 | E76: 55372.63 | F76: 134.7276426
A77: 052 | B77: Gospodarenje otpadnim vodama | C77: 052 | D77: 0 | E77: 0 | F77: -
A78: 053 | B78: Smanjenje zagađivanja | C78: 053 | D78: 0 | E78: 0 | F78: -
A79: 054 | B79: Zaštita bioraznolikosti i krajolika | C79: 054 | D79: 0 | E79: 0 | F79: -
A80: 055 | B80: Istraživanje i razvoj: Zaštita okoliša | C80: 055 | D80: 0 | E80: 0 | F80: -
A81: 056 | B81: Poslovi i usluge zaštite okoliša koji nisu drugdje svrstani | C81: 056 | D81: 11940 | E81: 17119.25 | F81: 143.3773032
A82: 06 | B82: Usluge unapređenja stanovanja i zajednice (šifre 061 do 066) | C82: 06 | D82: =SUM(D83:D88) -> 2246057.56 | E82: 3540211.39 | F82: 157.6189076
A83: 061 | B83: Razvoj stanovanja | C83: 061 | D83: 0 | E83: 0 | F83: -
A84: 062 | B84: Razvoj zajednice | C84: 062 | D84: 185951.98 | E84: 248844.96 | F84: 133.822162
A85: 063 | B85: Opskrba vodom | C85: 063 | D85: 2000 | F85: 0
A86: 064 | B86: Ulična rasvjeta | C86: 064 | D86: 266465.72 | E86: 290670.65 | F86: 109.0836938
A87: 065 | B87: Istraživanje i razvoj stanovanja i komunalnih pogodnosti | C87: 065 | D87: 21265.58 | E87: 31308.38 | F87: 147.2256106
A88: 066 | B88: Rashodi vezani za stanovanje i kom. pogodnosti koji nisu drugdje svrstani | C88: 066 | D88: 1770374.28 | E88: 2969387.4 | F88: 167.7265329
A89: 07 | B89: Zdravstvo (šifre 071+072+073+074+075+076) | C89: 07 | D89: =D90+D94+D99+D104+D105+D106 -> 84910.21 | E89: 84387 | F89: 99.38380791
A90: 071 | B90: Medicinski proizvodi, pribor i oprema (šifre 0711 do 0713) | C90: 071 | D90: =SUM(D91:D93) -> 0 | E90: 0 | F90: -
A91: 0711 | B91: Farmaceutski proizvodi | C91: 0711 | D91: 0 | E91: 0 | F91: -
A92: 0712 | B92: Ostali medicinski proizvodi | C92: 0712 | D92: 0 | E92: 0 | F92: -
A93: 0713 | B93: Terapeutski pribor i oprema | C93: 0713 | D93: 0 | E93: 0 | F93: -
A94: 072 | B94: Službe za vanjske pacijente (šifre 0721 do 0724) | C94: 072 | D94: =SUM(D95:D98) -> 0 | E94: 0 | F94: -
A95: 0721 | B95: Opće medicinske usluge | C95: 0721 | D95: 0 | E95: 0 | F95: -
A96: 0722 | B96: Specijalističke medicinske usluge | C96: 0722 | D96: 0 | E96: 0 | F96: -
A97: 0723 | B97: Zubarske usluge | C97: 0723 | D97: 0 | E97: 0 | F97: -
A98: 0724 | B98: Paramedicinske usluge | C98: 0724 | D98: 0 | E98: 0 | F98: -
A99: 073 | B99: Bolničke službe (šifre 0731 do 0734) | C99: 073 | D99: =SUM(D100:D103) -> 15452 | E99: 10817 | F99: 70.00388299
A100: 0731 | B100: Usluge općih bolnica | C100: 0731 | D100: 0 | E100: 0 | F100: -
A101: 0732 | B101: Usluge specijalističkih bolnica | C101: 0732 | D101: 0 | E101: 0 | F101: -
A102: 0733 | B102: Usluge medicinskih centara i centara za majčinstvo | C102: 0733 | D102: 15452 | E102: 10817 | F102: 70.00388299
A103: 0734 | B103: Usluge centara za njegu i oporavak | C103: 0734 | D103: 0 | E103: 0 | F103: -
A104: 074 | B104: Službe javnog zdravstva | C104: 074 | D104: 0 | E104: 0 | F104: -
A105: 075 | B105: Istraživanje i razvoj zdravstva | C105: 075 | D105: 0 | E105: 0 | F105: -
A106: 076 | B106: Poslovi i usluge zdravstva koji nisu drugdje svrstani | C106: 076 | D106: 69458.21 | E106: 73570 | F106: 105.9198042
A107: 08 | B107: Rekreacija, kultura i religija (šifre 081 do 086) | C107: 08 | D107: =SUM(D108:D113) -> 2530652.91 | E107: 610038.31 | F107: 24.10596521
A108: 081 | B108: Službe rekreacije i sporta | C108: 081 | D108: 255039.68 | E108: 445705.64 | F108: 174.7593316
A109: 082 | B109: Službe kulture | C109: 082 | D109: 6897.06 | E109: 4902.95 | F109: 71.08753585
A110: 083 | B110: Službe emitiranja i izdavanja | C110: 083 | D110: 0 | E110: 0 | F110: -
A111: 084 | B111: Religijske i druge službe zajednice | C111: 084 | D111: 0 | E111: 0 | F111: -
A112: 085 | B112: Istraživanje i razvoj rekreacije, kulture i religije | C112: 085 | D112: 0 | E112: 0 | F112: -
A113: 086 | B113: Rashodi za rekreaciju, kulturu i religiju koji nisu drugdje svrstani | C113: 086 | D113: 2268716.17 | E113: 159429.72 | F113: 7.027310076
A114: 09 | B114: Obrazovanje (šifre 091+092+093+094+095+096+097+098) | C114: 09 | D114: =D115+D118+D121+D122+SUM(D125:D128) -> 3445745.27 | E114: 6432655.59 | F114: 186.6840142
A115: 091 | B115: Predškolsko i osnovno obrazovanje (šifre 0911+0912) | C115: 091 | D115: =SUM(D116:D117) -> 3365502.83 | E115: 6297994.09 | F115: 187.1338224
A116: 0911 | B116: Predškolsko obrazovanje | C116: 0911 | D116: 3145567.12 | E116: 5923175.76 | F116: 188.3023167
A117: 0912 | B117: Osnovno obrazovanje | C117: 0912 | D117: 219935.71 | E117: 374818.33 | F117: 170.4217701
A118: 092 | B118: Srednjoškolsko obrazovanje (šifre 0921+0922) | C118: 092 | D118: =SUM(D119:D120) -> 0 | E118: 0 | F118: -
A119: 0921 | B119: Niže srednjoškolsko obrazovanje | C119: 0921 | D119: 0 | E119: 0 | F119: -
A120: 0922 | B120: Više srednjoškolsko obrazovanje | C120: 0922 | D120: 0 | E120: 0 | F120: -
A121: 093 | B121: Poslije srednjoškolsko, ali ne visoko obrazovanje | C121: 093 | D121: 0 | E121: 0 | F121: -
A122: 094 | B122: Visoka naobrazba (šifre 0941+0942) | C122: 094 | D122: =SUM(D123:D124) -> 0 | E122: 0 | F122: -
A123: 0941 | B123: Prvi stupanj visoke naobrazbe | C123: 0941 | D123: 0 | E123: 0 | F123: -
A124: 0942 | B124: Drugi stupanj visoke naobrazbe | C124: 0942 | D124: 0 | E124: 0 | F124: -
A125: 095 | B125: Obrazovanje koje se ne može definirati po stupnju | C125: 095 | D125: 80242.44 | E125: 134661.5 | F125: 167.8183016
A126: 096 | B126: Dodatne usluge u obrazovanju | C126: 096 | D126: 0 | E126: 0 | F126: -
A127: 097 | B127: Istraživanje i razvoj obrazovanja | C127: 097 | D127: 0 | E127: 0 | F127: -
A128: 098 | B128: Usluge obrazovanja koje nisu drugdje svrstane | C128: 098 | D128: 0 | E128: 0 | F128: -
A129: 10 | B129: Socijalna zaštita (šifre 101+102+103+104+105+106+107+108+109) | C129: 10 | D129: =D130+D133+SUM(D134:D140) -> 510357.6 | E129: 600593.73 | F129: 117.6809613
A130: 101 | B130: Bolest i invaliditet (šifre 1011+1012) | C130: 101 | D130: =SUM(D131:D132) -> 14321.67 | E130: 20409.38 | F130: 142.5069842
A131: 1011 | B131: Bolest | C131: 1011 | D131: 9456.5 | F131: 0
A132: 1012 | B132: Invaliditet | C132: 1012 | D132: 4865.17 | E132: 20409.38 | F132: 419.4998325
A133: 102 | B133: Starost | C133: 102 | D133: 99188.74 | E133: 116138 | F133: 117.0878872
A134: 103 | B134: Slijednici | C134: 103 | D134: 0 | E134: 0 | F134: -
A135: 104 | B135: Obitelj i djeca | C135: 104 | D135: 258383.82 | E135: 300671.39 | F135: 116.3661835
A136: 105 | B136: Nezaposlenost | C136: 105 | D136: 0 | E136: 0 | F136: -
A137: 106 | B137: Stanovanje | C137: 106 | D137: 38679.26 | E137: 45003.82 | F137: 116.3512952
A138: 107 | B138: Socijalna pomoć stanovništvu koje nije obuhvaćeno redovnim socijalnim programima | C138: 107 | D138: 99784.11 | E138: 118371.14 | F138: 118.6272444
A139: 108 | B139: Istraživanje i razvoj socijalne zaštite | C139: 108 | D139: 0 | E139: 0 | F139: -
A140: 109 | B140: Aktivnosti socijalne zaštite koje nisu drugdje svrstane | C140: 109 | D140: 0 | E140: 0 | F140: -
B141: Kontrolni zbroj (šifre 01+02+03+04+05+06+07+08+09+10) | C141: R1 | D141: =D5+D22+D28+D35+D75+D82+D89+D107+D114+D129 -> 12412440.61 | E141: 17881448.91 | F141: 144.0607006

Sheet P-VRIO
A1: Obveznik: | B1: OPĆINA VIŠKOVO | C1: Razina: | D1: 22 | E1: Razdoblje: | F1: 2025-12
A2: IZVJEŠTAJ O PROMJENAMA U VRIJEDNOSTI I OBUJMU IMOVINE I OBVEZA
A3: Račun iz rač. plana | B3: Opis stavke | C3: Šifra | D3: Iznos povećanja | E3: Iznos smanjenja
A4: 1 | B4: 2 | C4: 3 | D4: 4 | E4: 5
A5: 9151 | B5: Promjene u vrijednosti i obujmu imovine (šifre 91511+91512) | C5: 9151 | D5: =D6+D22 -> 92643.37 | E5: 64884.14
A6: 91511 | B6: Promjene u vrijednosti imovine (šifre P001+P008) | C6: 91511 | D6: =D7+D14 -> 92643.37 | E6: 0
B7: Promjene u vrijednosti nefinancijske imovine (šifre P002 do P007) | C7: P001 | D7: =SUM(D8:D13) -> 92643.37 | E7: 0
B8: Neproizvedena dugotrajna imovina | C8: P002 | D8: 92643.37
B9: Proizvedena dugotrajna imovina | C9: P003
B10: Plemeniti metali i ostale pohranjene vrijednosti | C10: P004
B11: Sitni inventar i autogume | C11: P005
B12: Dugotrajna nefinancijska imovina u pripremi | C12: P006
B13: Proizvedena kratkotrajna imovina | C13: P007
B14: Promjene u vrijednosti financijske imovine (šifre P009 do P015) | C14: P008 | D14: =SUM(D15:D21) -> 0 | E14: =SUM(E15:E21) -> 0
B15: Novac u banci i blagajni | C15: P009
B16: Potraživanja za jamčevne pologe, od zaposlenih te za više plaćene poreze i ostalo | C16: P010
B17: Potraživanja za dane zajmove | C17: P011
B18: Financijski instrumenti - vrijednosni papiri | C18: P012
B19: Financijski instrumenti - dionice i udjeli u glavnici | C19: P013
B20: Potraživanja za prihode poslovanja | C20: P014
B21: Potraživanja od prodaje nefinancijske imovine | C21: P015
A22: 91512 | B22: Promjene u obujmu imovine (šifre P016+P023) | C22: 91512 | D22: =D23+D30 -> 0 | E22: 64884.14
B23: Promjene u obujmu nefinancijske imovine (šifre P017 do P022) | C23: P016 | D23: =SUM(D24:D29) -> 0 | E23: 64884.14
B24: Neproizvedena dugotrajna imovina | C24: P017
B25: Proizvedena dugotrajna imovina | C25: P018 | E25: 64884.14
B26: Plemeniti metali i ostale pohranjene vrijednosti | C26: P019
B27: Sitni inventar i autogume | C27: P020
B28: Dugotrajna nefinancijska imovina u pripremi | C28: P021
B29: Proizvedena kratkotrajna imovina | C29: P022
B30: Promjene u obujmu financijske imovine (šifre P024 do P030) | C30: P023 | D30: =SUM(D31:D37) -> 0 | E30: =SUM(E31:E37) -> 0
B31: Novac u banci i blagajni | C31: P024
B32: Potraživanja za jamčevne pologe, od zaposlenih te za više plaćene poreze i ostalo | C32: P025
B33: Potraživanja za dane zajmove | C33: P026
B34: Financijski instrumenti - vrijednosni papiri | C34: P027
B35: Financijski instrumenti - dionice i udjeli u glavnici | C35: P028
B36: Potraživanja za prihode poslovanja | C36: P029
B37: Potraživanja od prodaje nefinancijske imovine | C37: P030
A38: 9152 | B38: Promjene u vrijednosti i obujmu obveza (šifre 91521+91522) | C38: 9152 | D38: =D39+D44 -> 0 | E38: =E39+E44 -> 0
A39: 91521 | B39: Promjene u vrijednosti obveza (šifre P031 do P034) | C39: 91521 | D39: =SUM(D40:D43) -> 0 | E39: 0
B40: Obveze za rashode poslovanja | C40: P031
B41: Obveze za nabavu nefinancijske imovine | C41: P032
B42: Obveze za financijske instrumente - vrijednosne papire | C42: P033
B43: Obveze za kredite i zajmove | C43: P034
A44: 91522 | B44: Promjene u obujmu obveza (šifre P035 do P038) | C44: 91522 | D44: =SUM(D45:D48) -> 0 | E44: 0
B45: Obveze za rashode poslovanja | C45: P035
B46: Obveze za nabavu nefinancijske imovine | C46: P036
B47: Obveze za financijske instrumente - vrijednosne papire | C47: P037
B48: Obveze za kredite i zajmove | C48: P038

Sheet OBVEZE
A1: Obveznik: | B1: OPĆINA VIŠKOVO | C1: Razina: | D1: 22 | E1: Razdoblje: | F1: 25-012
A2: IZVJEŠTAJ O OBVEZAMA
A3: Račun iz rač. plana | B3: Opis stavke | C3: Šifra | D3: Iznos
A4: 1 | B4: 2 | C4: 3 | D4: 4
B5: Stanje obveza 1. siječnja (=stanju obveza iz Izvještaja o obvezama na 31. prosinca prethodne godine) | C5: V001 | D5: 5454474.5
B6: Povećanje obveza u izvještajnom razdoblju (šifre V003+N23+N24 + 'N dio 25,26'+N27) | C6: V002 | D6: =D7+D8+D17+D18+D24 -> 21201696.02
B7: Međusobne obveze subjekata općeg proračuna | C7: V003 | D7: 0
A8: 23 | B8: Obveze za rashode poslovanja (šifre N231 do N239) | C8: N23 | D8: =SUM(D9:D16) -> 13617445.18
A9: 231 | B9: Obveze za zaposlene | C9: N231 | D9: 1987865.69
A10: 232 | B10: Obveze za materijalne rashode | C10: N232 | D10: 3215399.28
A11: 234 | B11: Obveze za financijske rashode | C11: N234 | D11: 83452.85
A12: 235 | B12: Obveze za subvencije | C12: N235 | D12: 920637.87
A13: 236 | B13: Obveze za pomoći dane u inozemstvo i unutar općeg proračuna | C13: N236 | D13: 30760.99
A14: 237 | B14: Obveze za naknade građanima i kućanstvima | C14: N237 | D14: 4486386.22
A15: 238 | B15: Obveze za donacije, kazne, naknade šteta i kapitalne pomoći | C15: N238 | D15: 1152047.8
A16: 239 | B16: Ostale tekuće obveze | C16: N239 | D16: 1740894.48
A17: 24 | B17: Obveze za nabavu nefinancijske imovine | C17: N24 | D17: 4562705.94
A18: dio 25,26 | B18: Obveze za financijsku imovinu (šifre 'N251, 253' + N254 + N256 + 'N262,263,2643,2644,2645,2653,2654,267' + 'N261,2646,2647,2648,2655,2656') | C18: N dio 25,26 | D18: =SUM(D19:D23) -> 2257070.04
A19: 251.253 | B19: Obveze za čekove i mjenice | C19: N251, 253 | D19: 0
A20: 254 | B20: Obveze za obveznice | C20: N254
A21: 256 | B21: Obveze za ostale vrijednosne papire | C21: N256
A22: 262,263,2643,2644, 2645,2653,2654,267 | B22: Obveze za tuzemne kredite i zajmove | C22: N262,263,2643,2644,2645,2653,2654,267 | D22: 2257070.04
A23: 261,2646,2647, 2648,2655,2656 | B23: Obveze za inozemne kredite i zajmove | C23: N261,2646,2647,2648,2655,2656 | D23: 0
A24: 27 | B24: Obveze za predujmove, depozite, jamčevne pologe i tuđe prihode | C24: N27 | D24: 764474.86
B25: Podmirene obveze u izvještajnom razdoblju (šifre V005+P23+P24 + 'P dio 25,26'+P27) | C25: V004 | D25: =D26+D27+D36+D37+D43 -> 18733669.54
B26: Međusobne obveze subjekata općeg proračuna | C26: V005 | D26: 0
A27: 23 | B27: Obveze za rashode poslovanja (šifre P231 do P239) | C27: P23 | D27: =SUM(D28:D35) -> 13287259.04
A28: 231 | B28: Obveze za zaposlene | C28: P231 | D28: 1982939.25
A29: 232 | B29: Obveze za materijalne rashode | C29: P232 | D29: 3091894.19
A30: 234 | B30: Obveze za financijske rashode | C30: P234 | D30: 67395.65
A31: 235 | B31: Obveze za subvencije | C31: P235 | D31: 920691.68
A32: 236 | B32: Obveze za pomoći dane u inozemstvo i unutar općeg proračuna | C32: P236 | D32: 30710.99
A33: 237 | B33: Obveze za naknade građanima i kućanstvima | C33: P237 | D33: 4354918.91
A34: 238 | B34: Obveze za donacije, kazne, naknade šteta i kapitalne pomoći | C34: P238 | D34: 1142654.1
A35: 239 | B35: Ostale tekuće obveze | C35: P239 | D35: 1696054.27
A36: 24 | B36: Obveze za nabavu nefinancijske imovine | C36: P24 | D36: 4009731
A37: dio 25,26 | B37: Obveze za financijsku imovinu (šifre 'P251,253' + P254 + P256 + 'P262,263,2643,2644, 2645,2653,2654,267' + 'P261,2646,2647, 2648,2655,2656') | C37: P dio 25, 26 | D37: =SUM(D38:D42) -> 683304.36
A38: 251.253 | B38: Obveze za čekove i mjenice | C38: P251, 253 | D38: 0
A39: 254 | B39: Obveze za obveznice | C39: P254
A40: 256 | B40: Obveze za ostale vrijednosne papire | C40: P256
A41: 262,263,2643,2644, 2645,2653,2654,267 | B41: Obveze za tuzemne kredite i zajmove | C41: P262,263,2643,2644, 2645,2653,2654,267 | D41: 683304.36
A42: 261,2646,2647, 2648,2655,2656 | B42: Obveze za inozemne kredite i zajmove | C42: P261,2646,2647, 2648,2655,2656
A43: 27 | B43: Obveze za predujmove, depozite, jamčevne pologe i tuđe prihode | C43: P27 | D43: 753375.14
B44: Stanje obveza na kraju izvještajnog razdoblja (šifre V001+V002-V004) i (šifre V007+V009) | C44: V006 | D44: =D5+D6-D25 -> 7922500.98
B45: Stanje dospjelih obveza na kraju izvještajnog razdoblja (šifre V008+D23+D24 + 'D dio 25,26' + D27) | C45: V007 | D45: =D46+D51+D92+D97+D103 -> 0
B46: Međusobne obveze subjekata općeg proračuna (šifre M001 do M004) | C46: V008 | D46: =SUM(D47:D50) -> 0
B47: a) Prekoračenje 1 do 60 dana | C47: M001 | D47: 0
B48: b) Prekoračenje 61 do 180 dana | C48: M002 | D48: 0
B49: c) Prekoračenje 181 do 360 dana | C49: M003 | D49: 0
B50: d) Prekoračenje preko 360 dana | C50: M004 | D50: 0
A51: 23 | B51: Ukupno obveze za rashode poslovanja (šifre D231+D232+D234+D235+D236+D237+D 238+D239) | C51: D23 | D51: =D52+D57+D62+D67+D72+D77+D82+D87 -> 0
A52: 231 | B52: Obveze za zaposlene (šifre D231A do D231D) | C52: D231 | D52: =SUM(D53:D56) -> 0
B53: a) Prekoračenje 1 do 60 dana | C53: D231A | D53: 0
B54: b) Prekoračenje 61 do 180 dana | C54: D231B | D54: 0
B55: c) Prekoračenje 181 do 360 dana | C55: D231C | D55: 0
B56: d) Prekoračenje preko 360 dana | C56: D231D | D56: 0
A57: 232 | B57: Obveze za materijalne rashode (šifre D232A do D232D) | C57: D232 | D57: =SUM(D58:D61) -> 0
B58: a) Prekoračenje 1 do 60 dana | C58: D232A | D58: 0
B59: b) Prekoračenje 61 do 180 dana | C59: D232B | D59: 0
B60: c) Prekoračenje 181 do 360 dana | C60: D232C | D60: 0
B61: d) Prekoračenje preko 360 dana | C61: D232D | D61: 0
A62: 234 | B62: Obveze za financijske rashode (šifre D234A do D234D) | C62: D234 | D62: =SUM(D63:D66) -> 0
B63: a) Prekoračenje 1 do 60 dana | C63: D234A | D63: 0
B64: b) Prekoračenje 61 do 180 dana | C64: D234B | D64: 0
B65: c) Prekoračenje 181 do 360 dana | C65: D234C | D65: 0
B66: d) Prekoračenje preko 360 dana | C66: D234D | D66: 0
A67: 235 | B67: Obveze za subvencije (šifre D235A do D235D) | C67: D235 | D67: =SUM(D68:D71) -> 0
B68: a) Prekoračenje 1 do 60 dana | C68: D235A | D68: 0
B69: b) Prekoračenje 61 do 180 dana | C69: D235B | D69: 0
B70: c) Prekoračenje 181 do 360 dana | C70: D235C | D70: 0
B71: d) Prekoračenje preko 360 dana | C71: D235D | D71: 0
A72: 236 | B72: Obveze za pomoći dane u inozemstvo i unutar općeg proračuna (šifre D236A do D236D) | C72: D236 | D72: =SUM(D73:D76) -> 0
B73: a) Prekoračenje 1 do 60 dana | C73: D236A | D73: 0
B74: b) Prekoračenje 61 do 180 dana | C74: D236B | D74: 0
B75: c) Prekoračenje 181 do 360 dana | C75: D236C | D75: 0
B76: d) Prekoračenje preko 360 dana | C76: D236D | D76: 0
A77: 237 | B77: Obveze za naknade građanima i kućanstvima (šifre D237A do D237D) | C77: D237 | D77: =SUM(D78:D81) -> 0
B78: a) Prekoračenje 1 do 60 dana | C78: D237A | D78: 0
B79: b) Prekoračenje 61 do 180 dana | C79: D237B | D79: 0
B80: c) Prekoračenje 181 do 360 dana | C80: D237C | D80: 0
B81: d) Prekoračenje preko 360 dana | C81: D237D | D81: 0
A82: 238 | B82: Obveze za donacije, kazne, naknade šteta i kapitalne pomoći (šifre D238A do D238D) | C82: D 238 | D82: =SUM(D83:D86) -> 0
B83: a) Prekoračenje 1 do 60 dana | C83: D238A | D83: 0
B84: b) Prekoračenje 61 do 180 dana | C84: D238B | D84: 0
B85: c) Prekoračenje 181 do 360 dana | C85: D238C | D85: 0
B86: d) Prekoračenje preko 360 dana | C86: D238D | D86: 0
A87: 239 | B87: Ostale tekuće obveze (šifre D239A do D239D) | C87: D239 | D87: =SUM(D88:D91) -> 0
B88: a) Prekoračenje 1 do 60 dana | C88: D239A | D88: 0
B89: b) Prekoračenje 61 do 180 dana | C89: D239B | D89: 0
B90: c) Prekoračenje 181 do 360 dana | C90: D239C | D90: 0
B91: d) Prekoračenje preko 360 dana | C91: D239D | D91: 0
A92: 24 | B92: Obveze za nabavu nefinancijske imovine (šifre D24A do D24D) | C92: D24 | D92: =SUM(D93:D96) -> 0
B93: a) Prekoračenje 1 do 60 dana | C93: D24A | D93: 0
B94: b) Prekoračenje 61 do 180 dana | C94: D24B | D94: 0
B95: c) Prekoračenje 181 do 360 dana | C95: D24C | D95: 0
B96: d) Prekoračenje preko 360 dana | C96: D24D | D96: 0
A97: dio 25,26 | B97: Obveze za financijsku imovinu (šifre 'D 251,253' + D254 + D256 + 'D262,263,2643,2644, 2645,2653,2654,267' + 'D261,2646,2647, 2648,2655,2656') | C97: D dio 25,26 | D97: =SUM(D98:D102) -> 0
A98: 251.253 | B98: Obveze za čekove i mjenice | C98: D 251,253 | D98: 0
A99: 254 | B99: Obveze za obveznice | C99: D254 | D99: 0
A100: 256 | B100: Obveze za ostale vrijednosne papire | C100: D256 | D100: 0
A101: 262,263,2643,2644, 2645,2653,2654,267 | B101: Obveze za tuzemne kredite i zajmove | C101: D262,263,2643,2644, 2645,2653,2654,267 | D101: 0
A102: 261,2646,2647, 2648,2655,2656 | B102: Obveze za inozemne kredite i zajmove | C102: D261,2646,2647, 2648,2655,2656 | D102: 0
A103: 27 | B103: Obveze za predujmove, depozite, jamčevne pologe i tuđe prihode | C103: D27 | D103: 0
B104: Stanje nedospjelih obveza na kraju izvještajnog razdoblja (šifre V010 + ND23 + ND24 + 'ND dio 25,26' + ND27) | C104: V009 | D104: =SUM(D105:D109) -> 7922500.98
B105: Međusobne obveze subjekata općeg proračuna | C105: V010 | D105: 0
A106: 23 | B106: Obveze za rashode poslovanja | C106: ND23 | D106: 1099588.25
A107: 24 | B107: Obveze za nabavu nefinancijske imovine | C107: ND24 | D107: 969194.06
A108: dio 25,26 | B108: Obveze za financijsku imovinu | C108: ND dio 25,26 | D108: 5784074.55
A109: 27 | B109: Obveze za predujmove, depozite, jamčevne pologe i tuđe prihode | C109: ND27 | D109: 69644.12

Sheet Kont
A1: IZVJEŠTAJ O OBVEZAMA | E1: REZ
A2: KONTROLE | E2: KONTROLE | F2: UPOZORENJA | G2: RAZDOBLJE | H2: RAZDOBLJE | I2: RAZINA | J2: PR-RAS | K2: RAS-F | L2: P-VRIO | M2: BIL | N2: OBV | O2: RKP
A3: Rbr. | B3: Rezultat kontrole | C3: Opis kontrole | E3: =E4+E14+E23+E298+E342+E345+E347 -> 0 | F3: =F4+F14+F23+F298+F342+F345+F347 -> 5 | G3: =IF(RefStr!C13<>"",INT(VALUE(MID(RefStr!C13,1,4))),0) -> 2025 | H3: =IF(RefStr!C13<>"",INT(VALUE(MID(RefStr!C13,6,2))),0) -> 12 | I3: =RefStr!C10*1 -> 22 | J3: =RefStr!H7 -> DA | K3: =RefStr!H9 -> DA | L3: =RefStr!H10 -> DA | M3: =RefStr!H8 -> DA | N3: =RefStr!H11 -> DA | O3: =RefStr!C6 -> 31171
A4: OPĆE KONTROLE - Kontrole podataka iz zaglavlja i kontrole popunjenosti obrazaca | E4: =SUM(E5:E13) -> 0 | F4: =SUM(F5:F13) -> 0 | I4: 3 i 9 mjesec | J4: 6. mjesec | K4: 12. mjeseci
A5: 1 | B5: =IF(E5=1,"Pogreška",IF(F5=1,"Provjera","O.K.")) -> O.K. | C5: Razina 11 - za kvartale te za polugodište (I.-III., I.-VI., I.-IX.) predaje obrasce PR-RAS i Obveze - za kraj godine predaje SVE obrasce: PR-RAS, BIL, P-VRIO, RAS-funkcijski i Obveze. Ova kontrola javlja pogrešku ako je popunjen obrazac koji se za upisano razdoblje i razinu ne treba popuniti, ili ako nije popunjen neki koji se treba popuniti. | E5: =MAX(G5:K5) -> 0 | F5: 0 | I5: =IF(AND($I$3=11,OR($H$3=3,$H$3=9),OR($J$3<>"DA",$K$3<>"NE",$L$3<>"NE",$M$3<>"NE",$N$3<>"DA")),1,0) -> 0 | J5: =IF(AND($I$3=11,$H$3=6,OR($J$3<>"DA",$K$3<>"NE",$L$3<>"NE",$M$3<>"NE",$N$3<>"DA")),1,0) -> 0 | K5: =IF(AND($I$3=11,$H$3=12,OR($J$3<>"DA",$K$3<>"DA",$L$3<>"DA",$M$3<>"DA",$N$3<>"DA")),1,0) -> 0
A6: 2 | B6: O.K. | C6: Razina 12 - za kvartale (I.-III., I.-IX.) predaje samo obrazac Obveze, - za polugodište predaje obrazac PR-RAS te obrazac Obveze - za kraj godine predaje SVE obrasce: PR-RAS, BIL, P-VRIO, RAS-funkcijski i Obveze. Ova kontrola javlja pogrešku ako je popunjen obrazac koji se za upisano razdoblje i razinu ne treba popuniti, ili ako nije popunjen neki koji se treba popuniti. | E6: 0 | F6: 0 | I6: =IF(AND($I$3=12,OR($H$3=3,$H$3=9),OR($J$3<>"NE",$K$3<>"NE",$L$3<>"NE",$M$3<>"NE",$N$3<>"DA")),1,0) -> 0 | J6: =IF(AND($I$3=12,$H$3=6,OR($J$3<>"DA",$K$3<>"NE",$L$3<>"NE",$M$3<>"NE",$N$3<>"DA")),1,0) -> 0 | K6: =IF(AND($I$3=12,$H$3=12,OR(J3<>"DA",K3<>"DA",L3<>"DA",M3<>"DA",N3<>"DA")),1,0) -> 0
A7: 3 | B7: O.K. | C7: Razina 13 - za kvartale te za polugodište (I.-III., I.-VI., I.-IX.) predaje samo obrazac PR-RAS - za kraj godine predaje obrasce: PR-RAS, BIL, P-VRIO i RAS-funkcijski. Ova kontrola javlja pogrešku ako je popunjen obrazac koji se za upisano razdoblje i razinu ne treba popuniti, ili ako nije popunjen neki koji se treba popuniti. | E7: 0 | F7: 0 | I7: =IF(AND($I$3=13,OR($H$3=3,$H$3=9),OR($J$3<>"DA",$K$3<>"NE",$L$3<>"NE",$M$3<>"NE",$N$3<>"NE")),1,0) -> 0 | J7: =IF(AND($I$3=13,$H$3=6,OR($J$3<>"DA",$K$3<>"NE",$L$3<>"NE",$M$3<>"NE",$N$3<>"NE")),1,0) -> 0 | K7: =IF(AND($I$3=13,$H$3=12,OR($J$3<>"DA",$K$3<>"DA",$L$3<>"DA",$M$3<>"DA",$N$3<>"NE")),1,0) -> 0
A8: 4 | B8: O.K. | C8: Razina 21 - za kvartale (I.-III., I.-IX.) predaje samo obrazac PR-RAS - za polugodište predaje obrasce PR-RAS i Obveze, - na godišnjoj razini predaje sve obrasce: PR-RAS, BIL, RAS-funkcijski, P-VRIO i Obveze. Ova kontrola javlja pogrešku ako je popunjen obrazac koji se za upisano razdoblje i razinu ne treba popuniti, ili ako nije popunjen neki koji se treba popuniti. | E8: 0 | F8: 0 | I8: =IF(AND($I$3=21,OR($H$3=3,$H$3=9),OR($J$3<>"DA",$K$3<>"NE",$L$3<>"NE",$M$3<>"NE",$N$3<>"NE")),1,0) -> 0 | J8: =IF(AND($I$3=21,$H$3=6,OR($J$3<>"DA",$K$3<>"NE",$L$3<>"NE",$M$3<>"NE",$N$3<>"DA")),1,0) -> 0 | K8: =IF(AND($I$3=21,$H$3=12,OR($J$3<>"DA",$K$3<>"DA",$L$3<>"DA",$M$3<>"DA",$N$3<>"DA")),1,0) -> 0
A9: 5 | B9: O.K. | C9: Razina 22 - za kvartale te za polugodište (I.-III., I.-VI., I.-IX.) predaje obrasce PR-RAS i Obveze - za kraj godine predaje SVE obrasce: PR-RAS, BIL, P-VRIO, RAS-funkcijski i Obveze. Ova kontrola javlja pogrešku ako je popunjen obrazac koji se za upisano razdoblje i razinu ne treba popuniti, ili ako nije popunjen neki koji se treba popuniti. | E9: 0 | F9: 0 | I9: =IF(AND($I$3=22,OR($H$3=3,$H$3=9),OR($J$3<>"DA",$K$3<>"NE",$L$3<>"NE",$M$3<>"NE",$N$3<>"DA")),1,0) -> 0 | J9: =IF(AND($I$3=22,$H$3=6,OR($J$3<>"DA",$K$3<>"NE",$L$3<>"NE",$M$3<>"NE",$N$3<>"DA")),1,0) -> 0 | K9: =IF(AND($I$3=22,$H$3=12,OR($J$3<>"DA",$K$3<>"DA",$L$3<>"DA",$M$3<>"DA",$N$3<>"DA")),1,0) -> 0
A10: 6 | B10: O.K. | C10: Razina 23 - za kvartale ne predaje ništa, nema konsolidacije, - za polugodište (I.-VI.) predaje obrasce PR-RAS i Obveze - za kraj godine predaje SVE obrasce: PR-RAS, BIL, P-VRIO, RAS-funkcijski i Obveze. Ova kontrola javlja pogrešku ako je popunjen obrazac koji se za upisano razdoblje i razinu ne treba popuniti, ili ako nije popunjen neki koji se treba popuniti. | E10: 0 | F10: 0 | I10: =IF(AND($I$3=23,OR($H$3=3,$H$3=9)),1,0) -> 0 | J10: =IF(AND($I$3=23,$H$3=6,OR($J$3<>"DA",$K$3<>"NE",$L$3<>"NE",$M$3<>"NE",$N$3<>"DA")),1,0) -> 0 | K10: =IF(AND($I$3=23,$H$3=12,OR($J$3<>"DA",$K$3<>"DA",$L$3<>"DA",$M$3<>"DA",$N$3<>"DA")),1,0) -> 0
A11: 7 | B11: O.K. | C11: Razine 31 - za kvartale (I.-III., I.-IX.) predaje samo obrazac PR-RAS - za polugodište predaje obrasce PR-RAS i Obveze - na godišnjoj razini predaje sve obrasce: PR-RAS, BIL, RAS-funkcijski, P-VRIO i Obveze. Ova kontrola javlja pogrešku ako je popunjen obrazac koji se za upisano razdoblje i razinu ne treba popuniti, ili ako nije popunjen neki koji se treba popuniti. | E11: 0 | F11: 0 | I11: =IF(AND($I$3=31,OR($H$3=3,$H$3=9),OR($J$3<>"DA",$K$3<>"NE",$L$3<>"NE",$M$3<>"NE",$N$3<>"NE")),1,0) -> 0 | J11: =IF(AND($I$3=31,$H$3=6,OR($J$3<>"DA",$K$3<>"NE",$L$3<>"NE",$M$3<>"NE",$N$3<>"DA")),1,0) -> 0 | K11: =IF(AND($I$3=31,$H$3=12,OR($J$3<>"DA",$K$3<>"DA",$L$3<>"DA",$M$3<>"DA",$N$3<>"DA")),1,0) -> 0
A12: 8 | B12: O.K. | C12: Razina 41 - za kvartale i polugodište (I.-III., I.-VI. i I.-IX.) predaje obrasce PR-RAS i Obveze - na godišnjoj razini predaje sve obrasce: PR-RAS, BIL, RAS-funkcijski, P-VRIO i Obveze. Ova kontrola javlja pogrešku ako je popunjen obrazac koji se za upisano razdoblje i razinu ne treba popuniti, ili ako nije popunjen neki koji se treba popuniti. | E12: 0 | F12: 0 | I12: =IF(AND($I$3=41,OR($H$3=3,$H$3=9),OR($J$3<>"DA",$K$3<>"NE",$L$3<>"NE",$M$3<>"NE",$N$3<>"DA")),1,0) -> 0 | J12: =IF(AND($I$3=41,$H$3=6,OR($J$3<>"DA",$K$3<>"NE",$L$3<>"NE",$M$3<>"NE",$N$3<>"DA")),1,0) -> 0 | K12: =IF(AND($I$3=41,$H$3=12,OR($J$3<>"DA",$K$3<>"DA",$L$3<>"DA",$M$3<>"DA",$N$3<>"DA")),1,0) -> 0
A13: 9 | B13: O.K. | C13: Razine 42 - za kvartale (I.-III., I.-IX.) predaje samo obrazac PR-RAS - za polugodište predaje obrasce PR-RAS i Obveze - na godišnjoj razini predaje sve obrasce: PR-RAS, BIL, RAS-funkcijski, P-VRIO i Obveze. Ova kontrola javlja pogrešku ako je popunjen obrazac koji se za upisano razdoblje i razinu ne treba popuniti, ili ako nije popunjen neki koji se treba popuniti. | E13: 0 | F13: 0 | I13: =IF(AND($I$3=42,OR($H$3=3,$H$3=9),OR($J$3<>"DA",$K$3<>"NE",$L$3<>"NE",$M$3<>"NE",$N$3<>"NE")),1,0) -> 0 | J13: =IF(AND($I$3=42,$H$3=6,OR($J$3<>"DA",$K$3<>"NE",$L$3<>"NE",$M$3<>"NE",$N$3<>"DA")),1,0) -> 0 | K13: =IF(AND($I$3=42,$H$3=12,OR($J$3<>"DA",$K$3<>"DA",$L$3<>"DA",$M$3<>"DA",$N$3<>"DA")),1,0) -> 0
A14: Kontrole između dva različita obrasca | E14: =SUM(E15:E22) -> 0 | F14: =SUM(F15:F22) -> 0
A15: 1 | B15: =IF(E15=1,"Pogreška",IF(F15=1,"Provjera","O.K.")) -> O.K. | C15: Na godišnjoj razini, šifra 19 u obrascu Bilanca mora biti jednaka šifri 19 u obrascu PR-RAS. Ova kontrola je obvezujuća za razine 11, 21, 22, 31, 41, 42, a upozoravajuća za razine 12, 13 i 23. Ova kontrola vrijedi u oba stupca podataka, osim za obveznike kod kojih početak razdoblja nije ujedno i početak poslovne godine (obveznik je počeo s radom tokom godine). Za takve obveznike kontrola vrijedi samo za stupac tekuće godine (ne i prethodne). | E15: =MAX(G15:K15) -> 0 | F15: =MAX(L15:O15) -> 0 | G15: =IF(AND(H3=12,J3="DA",M3="DA",OR(I3=11,I3=21,I3=22,I3=31,I3=41,I3=42),ABS(BILANCA!D171-'PR-RAS'!D651)>0.001),1,0) -> 0 | H15: =IF(AND(H3=12,J3="DA",M3="DA",OR(I3=11,I3=21,I3=22,I3=31,I3=41,I3=42),ABS(BILANCA!E171-'PR-RAS'!E651)>0.001),1,0) -> 0 | L15: =IF(AND(H3=12,J3="DA",M3="DA",OR(I3=12,I3=13,I3=23),ABS(BILANCA!D171-'PR-RAS'!D651)>0.001),1,0) -> 0 | M15: =IF(AND(H3=12,J3="DA",M3="DA",OR(I3=12,I3=13,I3=23),ABS(BILANCA!E171-'PR-RAS'!E651)>0.001),1,0) -> 0
A16: 2 | B16: O.K. | C16: Na godišnjoj razini, šifra 11 u obrascu Bilanca mora biti jednaka šifri 11K u obrascu PR-RAS. Ova kontrola je obvezujuća za razine 11, 21, 22, 31, 41 i 42, a upozoravajuća za razine 12, 13, 23. Ova kontrola vrijedi u oba stupca podataka. | E16: =MAX(G16:K16) -> 0 | F16: =MAX(L16:O16) -> 0 | G16: =IF(AND(H3=12,J3="DA",M3="DA",OR(I3=11,I3=21,I3=22,I3=31,I3=41,I3=42),ABS(BILANCA!D70-'PR-RAS'!D656)>0.001),1,0) -> 0 | H16: =IF(AND(H3=12,J3="DA",M3="DA",OR(I3=11,I3=21,I3=22,I3=31,I3=41,I3=42),ABS(BILANCA!E70-'PR-RAS'!E656)>0.001),1,0) -> 0 | L16: =IF(AND(H3=12,J3="DA",M3="DA",OR(I3=12,I3=13,I3=23),ABS(BILANCA!D70-'PR-RAS'!D656)>0.001),1,0) -> 0 | M16: =IF(AND(H3=12,J3="DA",M3="DA",OR(I3=12,I3=13,I3=23),ABS(BILANCA!E70-'PR-RAS'!E656)>0.001),1,0) -> 0
A17: 3 | B17: O.K. | C17: Na godišnjoj razini, ako je u Bilanci šifra 9221 > 9222, tada šifra X006 u PR-RAS-u mora biti jednaka šifri 9221-9222 u Bilanci, a šifra Y006 mora biti nula. Ako je u Bilanci šifra 9222 > 9221 tada šifra Y006 u PR-RAS-u mora biti jednaka šifri 9222 - 9221 u Bilanci, a šifra X006 u PR-RAS-u mora biti nula. Ova kontrola vrijedi za obje godine osim u slučaju kada je u PR-RAS obrascu stupac prethodne godine nepopunjena. | E17: =MAX(G17:L17) -> 0 | F17: 0 | G17: =IF(AND(H3=12,J3="DA",M3="DA",BILANCA!D256-BILANCA!D260>0.001,OR(ABS(BILANCA!D256-BILANCA!D260-'PR-RAS'!D649)>0.001,ABS('PR-RAS'!D650)>0.001)),1,0) -> 0 | H17: =IF(AND(H3=12,J3="DA",M3="DA",BILANCA!E256-BILANCA!E260>0.001,OR(ABS(BILANCA!E256-BILANCA!E260-'PR-RAS'!E649)>0.001,ABS('PR-RAS'!E650)>0.001)),1,0) -> 0 | I17: =IF(AND(H3=12,J3="DA",M3="DA",BILANCA!D260-BILANCA!D256>0.001,OR(ABS(BILANCA!D260-BILANCA!D256-'PR-RAS'!D650)>0.001,ABS('PR-RAS'!D649)>0.001)),1,0) -> 0 | J17: =IF(AND(H3=12,J3="DA",M3="DA",BILANCA!E260-BILANCA!E256>0.001,OR(ABS(BILANCA!E260-BILANCA!E256-'PR-RAS'!E650)>0.001,ABS('PR-RAS'!E649)>0.001)),1,0) -> 0
A18: 4 | B18: O.K. | C18: Ako je obrazac RAS-funkcijski popunjen, tada razlika šifri Y034 i 367 (šifre Y034-367) u obrascu PR-RAS treba biti jednaka zbroju svih rashoda po vrstama, tj. šifri R1 u obrascu RAS-funkcijski. | E18: 0 | F18: 0 | G18: =IF(AND(J3="DA",K3="DA",ABS('PR-RAS'!D423-'PR-RAS'!D250-'RAS-funkcijski'!D141)>0.001),1,0) -> 0 | H18: =IF(AND(J3="DA",K3="DA",ABS('PR-RAS'!E423-'PR-RAS'!E250-'RAS-funkcijski'!E141)>0.001),1,0) -> 0
A19: 5 | B19: =IF(E19=1,"Pogreška",IF(F19=1,"Provjera","O.K.")) -> O.K. | C19: Na godišnjoj razini, stanje obveza na kraju izvještajnog razdoblja (šifra V006) u obrascu OBVEZE mora biti jednako razlici šifri 2 Obveze i 29 Odgođeno plaćanje rashoda i prihodi budućih razdoblja (šifre 2-29) na dan 31. prosinca u obrascu Bilanca. Ova kontrola je obvezujuća za razine 11, 12, 21, 31, 22, 23, 41 i 42. | E19: =MAX(H19:L19) -> 0 | F19: 0 | H19: =IF(AND(H3=12,I3<>13,ABS(BILANCA!E177-BILANCA!E248-OBVEZE!D44)>0.001),1,0) -> 0
A20: 6 | B20: =IF(E20=1,"Pogreška",IF(F20=1,"Provjera","O.K.")) -> O.K. | C20: Na godišnjoj razini, ako su ukupni rashodi (šifra Y034) u obrascu PR-RAS jednaki nuli, tada zbroj svih rashoda po funkcijskoj klasifikaciji (šifra R1) u obrascu RAS-funkcijski mora biti jednak nuli. Ova kontrola vrijedi za obveznike koji u oba stupca podataka na šifri Y034 u obrascu PR-RAS i šifri R1 u obrascu RAS-funkcijski nemaju popunjene podatke. | E20: =MAX(G20:K20) -> 0 | F20: 0 | G20: =IF(AND(H3=12,'PR-RAS'!D423=0), IF('RAS-funkcijski'!D141=0, 0, 1), 0) -> 0 | H20: =IF(AND(H3=12,'PR-RAS'!E423=0), IF('RAS-funkcijski'!E141=0, 0, 1), 0) -> 0
A21: 7 | B21: =IF(E21=1,"Pogreška",IF(F21=1,"Provjera","O.K.")) -> O.K. | C21: Na godišnjoj razini, šifra 96 u obrascu Bilanca mora biti jednaka šifri 96 u obrascu PR-RAS. Ova kontrola vrijedi u oba stupca podataka. | E21: =MAX(G21:K21) -> 0 | F21: 0 | G21: =IF(AND(H3=12, J3="DA", M3="DA", ABS(BILANCA!D274-'PR-RAS'!D304)>0.001), 1, 0) -> 0 | H21: =IF(AND(H3=12, J3="DA", M3="DA", ABS(BILANCA!E274-'PR-RAS'!E304)>0.001), 1, 0) -> 0
A22: 8 | B22: =IF(E22=1,"Pogreška",IF(F22=1,"Provjera","O.K.")) -> O.K. | C22: Na godišnjoj razini, šifra 97 u obrascu Bilanca mora biti jednaka šifri 97 u obrascu PR-RAS. Ova kontrola vrijedi u oba stupca podataka. | E22: =MAX(G22:K22) -> 0 | F22: 0 | G22: =IF(AND(H3=12, J3="DA", M3="DA", ABS(BILANCA!D291-'PR-RAS'!D421)>0.001), 1, 0) -> 0 | H22: =IF(AND(H3=12, J3="DA", M3="DA", ABS(BILANCA!E291-'PR-RAS'!E421)>0.001), 1, 0) -> 0
A23: Kontrole na obrascu PR-RAS | E23: =SUM(E24:E297) -> 0 | F23: =SUM(F24:F297) -> 5
A24: 1 | B24: =IF(E24=1,"Pogreška",IF(F24=1,"Provjera","O.K.")) -> O.K. | C24: Ako je u nekom stupcu na šiframa Z006 do Z009 (broj zaposlenih) podatak veći od nule, tada mora postojati podatak na šifri 31 (rashodi za zaposlene) veći od nule. Ako su na šifri 31 iskazani rashodi za zaposlene mora postojati i podatak o broju zaposlenih. | E24: =MAX(G24:K24) -> 0 | F24: =MAX(L24:O24) -> 0 | G24: =IF(OR(AND('PR-RAS'!D153=0,MAX('PR-RAS'!D657:D660)>0),AND('PR-RAS'!E153=0,MAX('PR-RAS'!E657:E660)>0)),1,0) -> 0 | H24: =IF(OR(AND('PR-RAS'!D153<>0,MAX('PR-RAS'!D657:D660)=0),AND('PR-RAS'!E153<>0,MAX('PR-RAS'!E657:E660)=0)),1,0) -> 0
A25: 2 | B25: =IF(E25=1,"Pogreška",IF(F25=1,"Provjera","O.K.")) -> O.K. | C25: Ako je u nekom stupcu na šifri Z006 broj veći od nule, tada i na šifri Z008 mora biti broj veći od nule i obrnuto. | E25: 0 | F25: =MAX(L25:O25) -> 0 | G25: =IF(OR(AND('PR-RAS'!D657=0,'PR-RAS'!D659<>0),AND('PR-RAS'!D657<>0,'PR-RAS'!D659=0)),1,0) -> 0 | H25: =IF(OR(AND('PR-RAS'!E657=0,'PR-RAS'!E659<>0),AND('PR-RAS'!E657<>0,'PR-RAS'!E659=0)),1,0) -> 0
A26: 3 | B26: O.K. | C26: Ako je u nekom stupcu na šifri Z007 broj veći od nule, tada i na šifri Z009 mora biti broj veći od nule i obrnuto. | E26: 0 | F26: 0 | G26: =IF(OR(AND('PR-RAS'!D658=0,'PR-RAS'!D660<>0),AND('PR-RAS'!D658<>0,'PR-RAS'!D660=0)),1,0) -> 0 | H26: =IF(OR(AND('PR-RAS'!E658=0,'PR-RAS'!E660<>0),AND('PR-RAS'!E658<>0,'PR-RAS'!E660=0)),1,0) -> 0
A27: 4 | B27: O.K. | C27: Zbroj šifri: 61315+61316 je samo dio šifre 6131 i mora joj biti manji ili jednak u oba stupca podataka. | E27: 0 | F27: 0 | G27: =IF(ROUND('PR-RAS'!D662+'PR-RAS'!D663,2)>ROUND('PR-RAS'!D24,2),1,0) -> 0 | H27: =IF(ROUND('PR-RAS'!E662+'PR-RAS'!E663,2)>ROUND('PR-RAS'!E24,2),1,0) -> 0
A28: 277 | B28: =IF(E28=1,"Pogreška",IF(F28=1,"Provjera","O.K.")) -> O.K. | C28: Šifra 61341 je samo dio šifre 6134 i mora joj biti manja ili jednaka u oba stupca podataka. | E28: =MAX(G28:K28) -> 0 | F28: =MAX(L28:O28) -> 0 | G28: =IF(ROUND('PR-RAS'!D664,2)>ROUND('PR-RAS'!D27,2),1,0) -> 0 | H28: =IF(ROUND('PR-RAS'!E664,2)>ROUND('PR-RAS'!E27,2),1,0) -> 0
A29: 5 | B29: O.K. | C29: Šifra 6145 mora biti jednaka zbroju šifri: 61451 do 61459 u oba stupca podataka. | E29: 0 | F29: 0 | G29: =IF(ROUND('PR-RAS'!D33,2) = ROUND(SUM('PR-RAS'!D665:D668),2), 0, 1) -> 0 | H29: =IF(ROUND('PR-RAS'!E33,2) = ROUND(SUM('PR-RAS'!E665:E668),2), 0, 1) -> 0
A30: 6 | B30: O.K. | C30: Šifra 6331 mora biti jednaka zbroju šifri: 63311 do 63314 u oba stupca podataka. | E30: 0 | F30: 0 | G30: =IF(ABS('PR-RAS'!D59-SUM('PR-RAS'!D669:D672))>0.001,1,0) -> 0 | H30: =IF(ABS('PR-RAS'!E59-SUM('PR-RAS'!E669:E672))>0.001,1,0) -> 0
A31: 7 | B31: O.K. | C31: Šifra 6332 mora biti jednaka zbroju šifri: 63321 do 63324 u oba stupca podataka. | E31: 0 | F31: 0 | G31: =IF(ABS('PR-RAS'!D60-SUM('PR-RAS'!D673:'PR-RAS'!D676))>0.001,1,0) -> 0 | H31: =IF(ABS('PR-RAS'!E60-SUM('PR-RAS'!E673:'PR-RAS'!E676))>0.001,1,0) -> 0
A32: 8 | B32: O.K. | C32: Šifra 6341 mora biti jednaka zbroju šifri: 63414 do 63416 u oba stupca podataka. | E32: 0 | F32: 0 | G32: =IF(ABS('PR-RAS'!D62-SUM('PR-RAS'!D677:D679))>0.001,1,0) -> 0 | H32: =IF(ABS('PR-RAS'!E62-SUM('PR-RAS'!E677:E679))>0.001,1,0) -> 0
A33: 9 | B33: O.K. | C33: Šifra 6342 mora biti jednaka zbroju šifri: 63424 do 63426 u oba stupca podataka. | E33: 0 | F33: 0 | G33: =IF(ABS('PR-RAS'!D63-SUM('PR-RAS'!D680:D682))>0.001,1,0) -> 0 | H33: =IF(ABS('PR-RAS'!E63-SUM('PR-RAS'!E680:E682))>0.001,1,0) -> 0
A34: 10 | B34: O.K. | C34: Šifra 6361 mora biti jednaka zbroju šifri: 63612 i 63613 u oba stupca podataka. | E34: 0 | F34: 0 | G34: =IF(ROUND('PR-RAS'!D69,2)<>ROUND('PR-RAS'!D683+'PR-RAS'!D684,2),1,0) -> 0 | H34: =IF(ROUND('PR-RAS'!E69,2)<>ROUND('PR-RAS'!E683+'PR-RAS'!E684,2),1,0) -> 0
A35: 11 | B35: O.K. | C35: Šifra 6362 mora biti jednaka zbroju šifri: 63622 i 63623 u oba stupca podataka. | E35: 0 | F35: 0 | G35: =IF(ABS('PR-RAS'!D70-'PR-RAS'!D685-'PR-RAS'!D686)>0.001,1,0) -> 0 | H35: =IF(ABS('PR-RAS'!E70-'PR-RAS'!E685-'PR-RAS'!E686)>0.001,1,0) -> 0
A36: 238 | B36: O.K. | C36: Šifra 6371 mora biti jednaka zbroju šifri: 63711 do 63717 u oba stupca podataka. | E36: 0 | F36: 0 | G36: =IF(ABS('PR-RAS'!D72-SUM('PR-RAS'!D687:'PR-RAS'!D693))>0.001,1,0) -> 0 | H36: =IF(ABS('PR-RAS'!E72-SUM('PR-RAS'!E687:'PR-RAS'!E693))>0.001,1,0) -> 0
A37: 239 | B37: O.K. | C37: Šifra 6372 mora biti jednaka zbroju šifri 63721 do 63728 u oba stupca podataka. | E37: 0 | F37: 0 | G37: =IF(ABS('PR-RAS'!D73-SUM('PR-RAS'!D694:'PR-RAS'!D701))>0.001,1,0) -> 0 | H37: =IF(ABS('PR-RAS'!E73-SUM('PR-RAS'!E694:'PR-RAS'!E701))>0.001,1,0) -> 0
A38: 12 | B38: =IF(E38=1,"Pogreška",IF(F38=1,"Provjera","O.K.")) -> O.K. | C38: Šifra 6381 mora biti jednaka zbroju šifri: 63811 do 63814 u oba stupca podataka. | E38: 0 | F38: 0 | G38: =IF(ABS('PR-RAS'!D75-SUM('PR-RAS'!D702:D705))>0.001,1,0) -> 0 | H38: =IF(ABS('PR-RAS'!E75-SUM('PR-RAS'!E702:E705))>0.001,1,0) -> 0
A39: 13 | B39: O.K. | C39: Šifra 6382 mora biti jednaka zbroju šifri: 63821 do 63824 u oba stupca podataka. | E39: 0 | F39: 0 | G39: =IF(ABS('PR-RAS'!D76-SUM('PR-RAS'!D706:D709))>0.001,1,0) -> 0 | H39: =IF(ABS('PR-RAS'!E76-SUM('PR-RAS'!E706:E709))>0.001,1,0) -> 0
A40: 14 | B40: O.K. | C40: Šifra 64191 je samo dio šifre 6419 i mora joj biti manja ili jednaka u oba stupca podataka. | E40: 0 | F40: 0 | G40: =IF(ROUND('PR-RAS'!D710,2)>ROUND('PR-RAS'!D90,2),1,0) -> 0 | H40: =IF(ROUND('PR-RAS'!E710,2)>ROUND('PR-RAS'!E90,2),1,0) -> 0
A41: 259 | B41: =IF(E41=1,"Pogreška",IF(F41=1,"Provjera","O.K.")) -> O.K. | C41: Šifra 64222 je samo dio šifre 6422 i mora joj biti manja ili jednaka u oba stupca podataka. | E41: =MAX(G41:K41) -> 0 | F41: =MAX(L41:O41) -> 0 | G41: =IF(ROUND('PR-RAS'!D711,2)>ROUND('PR-RAS'!D93,2),1,0) -> 0 | H41: =IF(ROUND('PR-RAS'!E711,2)>ROUND('PR-RAS'!E93,2),1,0) -> 0
A42: 260 | B42: =IF(E42=1,"Pogreška",IF(F42=1,"Provjera","O.K.")) -> O.K. | C42: Šifra 64236 je samo dio šifre 6423 i mora joj biti manja ili jednaka u oba stupca podataka. | E42: =MAX(G42:K42) -> 0 | F42: =MAX(L42:O42) -> 0 | G42: =IF(ROUND('PR-RAS'!D712,2)>ROUND('PR-RAS'!D94,2),1,0) -> 0 | H42: =IF(ROUND('PR-RAS'!E712,2)>ROUND('PR-RAS'!E94,2),1,0) -> 0
A43: 261 | B43: =IF(E43=1,"Pogreška",IF(F43=1,"Provjera","O.K.")) -> O.K. | C43: Zbroj šifri: 64241+64244 samo je dio šifre 6424 i mora joj biti manji ili jednak u oba stupca podataka. | E43: =MAX(G43:K43) -> 0 | F43: =MAX(L43:O43) -> 0 | G43: =IF(ROUND('PR-RAS'!D713+'PR-RAS'!D714,2)>ROUND('PR-RAS'!D95,2),1,0) -> 0 | H43: =IF(ROUND('PR-RAS'!E713+'PR-RAS'!E714,2)>ROUND('PR-RAS'!E95,2),1,0) -> 0
A44: 15 | B44: O.K. | C44: Šifra 6437 mora biti jednaka zbroju šifri: 64371 do 64377 u oba stupca podataka. | E44: 0 | F44: 0 | G44: =IF(ABS('PR-RAS'!D105-SUM('PR-RAS'!D715:D721))>0.001,1,0) -> 0 | H44: =IF(ABS('PR-RAS'!E105-SUM('PR-RAS'!E715:E721))>0.001,1,0) -> 0
A45: 262 | B45: =IF(E45=1,"Pogreška",IF(F45=1,"Provjera","O.K.")) -> O.K. | C45: Šifra 65141 je samo dio šifre 6514 i mora joj biti manja ili jednaka u oba stupca podataka. | E45: =MAX(G45:K45) -> 0 | F45: =MAX(L45:O45) -> 0 | G45: =IF(ROUND('PR-RAS'!D722,2)>ROUND('PR-RAS'!D111,2),1,0) -> 0 | H45: =IF(ROUND('PR-RAS'!E722,2)>ROUND('PR-RAS'!E111,2),1,0) -> 0
A46: 16 | B46: O.K. | C46: Zbroj šifri 65263 do 65267 je samo dio šifre 6526 i mora joj biti manji ili jednak u oba stupca podataka. | E46: 0 | F46: 0 | G46: =IF(ROUND(SUM('PR-RAS'!D723:D726),2)>ROUND('PR-RAS'!D117,2),1,0) -> 0 | H46: =IF(ROUND(SUM('PR-RAS'!E723:E726),2)>ROUND('PR-RAS'!E117,2),1,0) -> 0
A47: 240 | B47: O.K. | C47: Šifra 6634 mora biti jednaka zbroju šifri: 66341 do 66345 u oba stupca podataka. | E47: 0 | F47: 0 | G47: =IF(ABS('PR-RAS'!D133-SUM('PR-RAS'!D727:D731))>0.001,1,0) -> 0 | H47: =IF(ABS('PR-RAS'!E133-SUM('PR-RAS'!E727:E731))>0.001,1,0) -> 0
A48: 17 | B48: =IF(E48=1,"Pogreška",IF(F48=1,"Provjera","O.K.")) -> O.K. | C48: Zbroj šifri 31214 i 31215 je samo dio šifre 312 i mora joj biti manji ili jednak u oba stupca podataka. | E48: 0 | F48: 0 | G48: =IF(ROUND('PR-RAS'!D732+'PR-RAS'!D733,2)>ROUND('PR-RAS'!D159,2),1,0) -> 0 | H48: =IF(ROUND('PR-RAS'!E732+'PR-RAS'!E733,2)>ROUND('PR-RAS'!E159,2),1,0) -> 0
A49: 18 | B49: O.K. | C49: Šifra 32121 je samo dio šifre 3212 i mora joj biti manja ili jednaka u oba stupca podataka. | E49: 0 | F49: 0 | G49: =IF(ROUND('PR-RAS'!D734,2)>ROUND('PR-RAS'!D167,2),1,0) -> 0 | H49: =IF(ROUND('PR-RAS'!E734,2)>ROUND('PR-RAS'!E167,2),1,0) -> 0
A50: 19 | B50: O.K. | C50: Šifra 32351 je samo dio šifre 3235 i mora joj biti manja ili jednaka u oba stupca podataka. | E50: 0 | F50: 0 | G50: =IF(ROUND('PR-RAS'!D735,2)>ROUND('PR-RAS'!D183,2),1,0) -> 0 | H50: =IF(ROUND('PR-RAS'!E735,2)>ROUND('PR-RAS'!E183,2),1,0) -> 0
A51: 20 | B51: O.K. | C51: Šifra 32361 je samo dio šifre 3236 i mora joj biti manja ili jednaka u oba stupca podataka. | E51: 0 | F51: 0 | G51: =IF(ROUND('PR-RAS'!D736,2)>ROUND('PR-RAS'!D184,2),1,0) -> 0 | H51: =IF(ROUND('PR-RAS'!E736,2)>ROUND('PR-RAS'!E184,2),1,0) -> 0
A52: 21 | B52: O.K. | C52: Zbroj šifri 32371 do 32377 je samo dio šifre 3237 i mora joj biti manji ili jednak u oba stupca podataka. | E52: 0 | F52: 0 | G52: =IF(ROUND(SUM('PR-RAS'!D737:D739),2)>ROUND('PR-RAS'!D185,2),1,0) -> 0 | H52: =IF(ROUND(SUM('PR-RAS'!E737:E739),2)>ROUND('PR-RAS'!E185,2),1,0) -> 0
A53: 22 | B53: O.K. | C53: Šifra 32398 je samo dio šifre 3239 i mora joj biti manja ili jednaka u oba stupca podataka. | E53: 0 | F53: 0 | G53: =IF(ROUND('PR-RAS'!D740,2)>ROUND('PR-RAS'!D187,2),1,0) -> 0 | H53: =IF(ROUND('PR-RAS'!E740,2)>ROUND('PR-RAS'!E187,2),1,0) -> 0
A54: 23 | B54: O.K. | C54: Šifra 32911 je samo dio šifre 3291 i mora joj biti manja ili jednaka u oba stupca podataka. | E54: 0 | F54: 0 | G54: =IF(ROUND('PR-RAS'!D741,2)>ROUND('PR-RAS'!D195,2),1,0) -> 0 | H54: =IF(ROUND('PR-RAS'!E741,2)>ROUND('PR-RAS'!E195,2),1,0) -> 0
A55: 24 | B55: O.K. | C55: Šifra 32923 je samo dio šifre 3292 i mora joj biti manja ili jednaka u oba stupca podataka. | E55: 0 | F55: 0 | G55: =IF(ROUND('PR-RAS'!D742,2)>ROUND('PR-RAS'!D196,2),1,0) -> 0 | H55: =IF(ROUND('PR-RAS'!E742,2)>ROUND('PR-RAS'!E196,2),1,0) -> 0
A56: 263 | B56: =IF(E56=1,"Pogreška",IF(F56=1,"Provjera","O.K.")) -> O.K. | C56: Šifra 32942 je samo dio šifre 3294 i mora joj biti manja ili jednaka u oba stupca podataka. | E56: =MAX(G56:K56) -> 0 | F56: =MAX(L56:O56) -> 0 | G56: =IF(ROUND('PR-RAS'!D743,2)>ROUND('PR-RAS'!D198,2),1,0) -> 0 | H56: =IF(ROUND('PR-RAS'!E743,2)>ROUND('PR-RAS'!E198,2),1,0) -> 0
A57: 264 | B57: =IF(E57=1,"Pogreška",IF(F57=1,"Provjera","O.K.")) -> O.K. | C57: Šifra 32955 je samo dio šifre 3295 i mora joj biti manja ili jednaka u oba stupca podataka. | E57: =MAX(G57:K57) -> 0 | F57: =MAX(L57:O57) -> 0 | G57: =IF(ROUND('PR-RAS'!D744,2)>ROUND('PR-RAS'!D199,2),1,0) -> 0 | H57: =IF(ROUND('PR-RAS'!E744,2)>ROUND('PR-RAS'!E199,2),1,0) -> 0
A58: 25 | B58: O.K. | C58: Šifra 3411 mora biti jednaka zbroju šifri: 34111+34112 u oba stupca podataka. | E58: 0 | F58: 0 | G58: =IF(ABS('PR-RAS'!D745+'PR-RAS'!D746-'PR-RAS'!D204)>0.001,1,0) -> 0 | H58: =IF(ABS('PR-RAS'!E745+'PR-RAS'!E746-'PR-RAS'!E204)>0.001,1,0) -> 0
A59: 26 | B59: O.K. | C59: Šifra 3412 mora biti jednaka zbroju šifri: 34121+34122 u oba stupca podataka. | E59: 0 | F59: 0 | G59: =IF(ABS('PR-RAS'!D747+'PR-RAS'!D748-'PR-RAS'!D205)>0.001,1,0) -> 0 | H59: =IF(ABS('PR-RAS'!E747+'PR-RAS'!E748-'PR-RAS'!E205)>0.001,1,0) -> 0
A60: 27 | B60: O.K. | C60: Šifra 3413 mora biti jednaka zbroju šifri: 34131+34132 u oba stupca podataka. | E60: 0 | F60: 0 | G60: =IF(ABS('PR-RAS'!D749+'PR-RAS'!D750-'PR-RAS'!D206)>0.001,1,0) -> 0 | H60: =IF(ABS('PR-RAS'!E749+'PR-RAS'!E750-'PR-RAS'!E206)>0.001,1,0) -> 0
A61: 28 | B61: O.K. | C61: Šifra 3419 mora biti jednaka zbroju šifri: 34191+34192 u oba stupca podataka. | E61: 0 | F61: 0 | G61: =IF(ABS('PR-RAS'!D751+'PR-RAS'!D752-'PR-RAS'!D207)>0.001,1,0) -> 0 | H61: =IF(ABS('PR-RAS'!E751+'PR-RAS'!E752-'PR-RAS'!E207)>0.001,1,0) -> 0
A62: 29 | B62: O.K. | C62: Šifra 3421 mora biti jednaka zbroju šifri: 34213 do 34216 u oba stupca podataka. | E62: 0 | F62: 0 | G62: =IF(ABS('PR-RAS'!D209-SUM('PR-RAS'!D753:D756))>0.001,1,0) -> 0 | H62: =IF(ABS('PR-RAS'!E209-SUM('PR-RAS'!E753:E756))>0.001,1,0) -> 0
A63: 30 | B63: O.K. | C63: Šifra 3422 mora biti jednaka zbroju šifri: 34222 do 34224 u oba stupca podataka. | E63: 0 | F63: 0 | G63: =IF(ABS('PR-RAS'!D210-SUM('PR-RAS'!D757:D759))>0.001,1,0) -> 0 | H63: =IF(ABS('PR-RAS'!E210-SUM('PR-RAS'!E757:E759))>0.001,1,0) -> 0
A64: 31 | B64: O.K. | C64: Šifra 3423 mora biti jednaka zbroju šifri: 34233 do 34238 u oba stupca podataka. | E64: 0 | F64: 0 | G64: =IF(ABS('PR-RAS'!D211-SUM('PR-RAS'!D760:D765))>0.001,1,0) -> 0 | H64: =IF(ABS('PR-RAS'!E211-SUM('PR-RAS'!E760:E765))>0.001,1,0) -> 0
A65: 32 | B65: O.K. | C65: Zbroj šifri 34273 do 34275 je samo dio šifre 3427 i mora joj biti manji ili jednak u oba stupca podataka. | E65: 0 | F65: 0 | G65: =IF(ROUND(SUM('PR-RAS'!D766:D768),2)>ROUND('PR-RAS'!D214,2),1,0) -> 0 | H65: =IF(ROUND(SUM('PR-RAS'!E766:E768),2)>ROUND('PR-RAS'!E214,2),1,0) -> 0
A66: 33 | B66: O.K. | C66: Šifra 3428 mora biti jednaka zbroju šifri: 34281 do 34287 u oba stupca podataka. | E66: 0 | F66: 0 | G66: =IF(ABS('PR-RAS'!D215-SUM('PR-RAS'!D769:D775))>0.001,1,0) -> 0 | H66: =IF(ABS('PR-RAS'!E215-SUM('PR-RAS'!E769:E775))>0.001,1,0) -> 0
A67: 34 | B67: O.K. | C67: Šifra 34341 je samo dio šifre 3434 i mora joj biti manja ili jednaka u oba stupca podataka. | E67: 0 | F67: 0 | G67: =IF(ROUND('PR-RAS'!D776,2)>ROUND('PR-RAS'!D220,2),1,0) -> 0 | H67: =IF(ROUND('PR-RAS'!E776,2)>ROUND('PR-RAS'!E220,2),1,0) -> 0
A68: 35 | B68: O.K. | C68: Šifra 3523 mora biti jednaka zbroju šifri: 35231+35232 u oba stupca podataka. | E68: 0 | F68: 0 | G68: =IF(ABS('PR-RAS'!D228-'PR-RAS'!D777-'PR-RAS'!D778)>0.001,1,0) -> 0 | H68: =IF(ABS('PR-RAS'!E228-'PR-RAS'!E777-'PR-RAS'!E778)>0.001,1,0) -> 0
A69: 36 | B69: O.K. | C69: Šifra 3631 mora biti jednaka zbroju šifri: 36313 do 36319 u oba stupca podataka. | E69: 0 | F69: 0 | G69: =IF(ABS('PR-RAS'!D238-SUM('PR-RAS'!D779:D785))>0.001,1,0) -> 0 | H69: =IF(ABS('PR-RAS'!E238-SUM('PR-RAS'!E779:E785))>0.001,1,0) -> 0
A70: 37 | B70: O.K. | C70: Šifra 3632 mora biti jednaka zbroju šifri: 36323 do 36329 u oba stupca podataka. | E70: 0 | F70: 0 | G70: =IF(ABS('PR-RAS'!D239-SUM('PR-RAS'!D786:D792))>0.001,1,0) -> 0 | H70: =IF(ABS('PR-RAS'!E239-SUM('PR-RAS'!E786:E792))>0.001,1,0) -> 0
A71: 241 | B71: O.K. | C71: Šifra 3635 mora biti jednaka zbroju šifri: 36351 do 36356 u oba stupca podataka. | E71: 0 | F71: 0 | G71: =IF(ABS('PR-RAS'!D240-SUM('PR-RAS'!D793:D798))>0.001,1,0) -> 0 | H71: =IF(ABS('PR-RAS'!E240-SUM('PR-RAS'!E793:E798))>0.001,1,0) -> 0
A72: 242 | B72: O.K. | C72: Šifra 3636 mora biti jednaka zbroju šifri: 36361 do 36367 u oba stupca podataka. | E72: 0 | F72: 0 | G72: =IF(ABS('PR-RAS'!D241-SUM('PR-RAS'!D799:D805))>0.001,1,0) -> 0 | H72: =IF(ABS('PR-RAS'!E241-SUM('PR-RAS'!E799:E805))>0.001,1,0) -> 0
A73: 265 | B73: O.K. | C73: Šifra 3651 mora biti jednaka zbroju šifri: 36511 do 36513 u oba stupca podataka. | E73: =MAX(G73:K73) -> 0 | F73: =MAX(L73:O73) -> 0 | G73: =IF(ROUND('PR-RAS'!D243,2) = ROUND(SUM('PR-RAS'!D806:D808),2), 0, 1) -> 0 | H73: =IF(ROUND('PR-RAS'!E243,2) = ROUND(SUM('PR-RAS'!E806:E808),2), 0, 1) -> 0
A74: 266 | B74: O.K. | C74: Šifra 3652 mora biti jednaka zbroju šifri: 36521 do 36523 u oba stupca podataka. | E74: =MAX(G74:K74) -> 0 | F74: =MAX(L74:O74) -> 0 | G74: =IF(ROUND('PR-RAS'!D244,2) = ROUND(SUM('PR-RAS'!D809:D811),2), 0, 1) -> 0 | H74: =IF(ROUND('PR-RAS'!E244,2) = ROUND(SUM('PR-RAS'!E809:E811),2), 0, 1) -> 0
A75: 267 | B75: O.K. | C75: Šifra 3653 mora biti jednaka zbroju šifri: 36531 do 36533 u oba stupca podataka. | E75: =MAX(G75:K75) -> 0 | F75: =MAX(L75:O75) -> 0 | G75: =IF(ROUND('PR-RAS'!D245,2) = ROUND(SUM('PR-RAS'!D812:D814),2), 0, 1) -> 0 | H75: =IF(ROUND('PR-RAS'!E245,2) = ROUND(SUM('PR-RAS'!E812:E814),2), 0, 1) -> 0
A76: 243 | B76: O.K. | C76: Šifra 3663 mora biti jednaka zbroju šifri: 36631+36632 u oba stupca podataka. | E76: 0 | F76: 0 | G76: =IF(ABS('PR-RAS'!D249-SUM('PR-RAS'!D815:D816))>0.001,1,0) -> 0 | H76: =IF(ABS('PR-RAS'!E249-SUM('PR-RAS'!E815:E816))>0.001,1,0) -> 0
A77: 38 | B77: O.K. | C77: Šifra 3681 mora biti jednaka zbroju šifri: 36811 do 36819 u oba stupca podataka. | E77: 0 | F77: 0 | G77: =IF(ABS('PR-RAS'!D255-SUM('PR-RAS'!D817:D825))>0.001,1,0) -> 0 | H77: =IF(ABS('PR-RAS'!E255-SUM('PR-RAS'!E817:E825))>0.001,1,0) -> 0
A78: 39 | B78: O.K. | C78: Šifra 3682 mora biti jednaka zbroju šifri: 36821 do 36829 u oba stupca podataka. | E78: 0 | F78: 0 | G78: =IF(ABS('PR-RAS'!D256-SUM('PR-RAS'!D826:D834))>0.001,1,0) -> 0 | H78: =IF(ABS('PR-RAS'!E256-SUM('PR-RAS'!E826:E834))>0.001,1,0) -> 0
A79: 40 | B79: O.K. | C79: Šifra 3713 mora biti jednaka zbroju šifri: 37131 do 37139 u oba stupca podataka. | E79: 0 | F79: 0 | G79: =IF(ABS('PR-RAS'!D266-SUM('PR-RAS'!D835:D837))>0.001,1,0) -> 0 | H79: =IF(ABS('PR-RAS'!E266-SUM('PR-RAS'!E835:E837))>0.001,1,0) -> 0
A80: 41 | B80: O.K. | C80: Šifra 3714 mora biti jednaka zbroju šifri: 37141 do 37149 u oba stupca podataka. | E80: 0 | F80: 0 | G80: =IF(ABS('PR-RAS'!D267-SUM('PR-RAS'!D838:D841))>0.001,1,0) -> 0 | H80: =IF(ABS('PR-RAS'!E267-SUM('PR-RAS'!E838:E841))>0.001,1,0) -> 0
A81: 42 | B81: O.K. | C81: Šifra 3721 mora biti jednaka zbroju šifri: 37211 do 37219 u oba stupca podataka. | E81: 0 | F81: 0 | G81: =IF(ABS('PR-RAS'!D270-SUM('PR-RAS'!D842:D850))>0.001,1,0) -> 0 | H81: =IF(ABS('PR-RAS'!E270-SUM('PR-RAS'!E842:E850))>0.001,1,0) -> 0
A82: 43 | B82: O.K. | C82: Šifra 3722 mora biti jednaka zbroju šifri: 37221 do 37229 u oba stupca podataka. | E82: 0 | F82: 0 | G82: =IF(ABS('PR-RAS'!D271-SUM('PR-RAS'!D851:D855))>0.001,1,0) -> 0 | H82: =IF(ABS('PR-RAS'!E271-SUM('PR-RAS'!E851:E855))>0.001,1,0) -> 0
A83: 44 | B83: O.K. | C83: Šifra 38117 je samo dio šifre 3811 i mora joj biti manja ili jednaka u oba stupca podataka. | E83: 0 | F83: 0 | G83: =IF(ROUND('PR-RAS'!D856,2)>ROUND('PR-RAS'!D275,2),1,0) -> 0 | H83: =IF(ROUND('PR-RAS'!E856,2)>ROUND('PR-RAS'!E275,2),1,0) -> 0
A84: 45 | B84: O.K. | C84: Šifra 3861 mora biti jednaka zbroju šifri: 38612 do 38615 u oba stupca podataka. | E84: 0 | F84: 0 | G84: =IF(ABS('PR-RAS'!D290-SUM('PR-RAS'!D857:D860))>0.001,1,0) -> 0 | H84: =IF(ABS('PR-RAS'!E290-SUM('PR-RAS'!E857:E860))>0.001,1,0) -> 0
A85: 46 | B85: O.K. | C85: Šifra 3862 mora biti jednaka zbroju šifri: 38622 do 38626 u oba stupca podataka. | E85: 0 | F85: 0 | G85: =IF(ABS('PR-RAS'!D291-SUM('PR-RAS'!D861:D865))>0.001,1,0) -> 0 | H85: =IF(ABS('PR-RAS'!E291-SUM('PR-RAS'!E861:E865))>0.001,1,0) -> 0
A86: 47 | B86: O.K. | C86: Šifra 3863 mora biti jednaka zbroju šifri: 38631+38632 u oba stupca podataka. | E86: 0 | F86: 0 | G86: =IF(ABS('PR-RAS'!D292-SUM('PR-RAS'!D866:D867))>0.001,1,0) -> 0 | H86: =IF(ABS('PR-RAS'!E292-SUM('PR-RAS'!E866:E867))>0.001,1,0) -> 0
A87: 48 | B87: O.K. | C87: Šifra 3864 mora biti jednaka zbroju šifri: 38641+38642 u oba stupca podataka. | E87: 0 | F87: 0 | G87: =IF(ABS('PR-RAS'!D293-SUM('PR-RAS'!D868:D869))>0.001,1,0) -> 0 | H87: =IF(ABS('PR-RAS'!E293-SUM('PR-RAS'!E868:E869))>0.001,1,0) -> 0
A88: 244 | B88: O.K. | C88: Šifra 3865 mora biti jednaka zbroju šifri: 38651 do 38653 u oba stupca podataka. | E88: 0 | F88: 0 | G88: =IF(ABS('PR-RAS'!D294-SUM('PR-RAS'!D870:D872))>0.001,1,0) -> 0 | H88: =IF(ABS('PR-RAS'!E294-SUM('PR-RAS'!E870:E872))>0.001,1,0) -> 0
A89: 49 | B89: O.K. | C89: Šifra 81212 je samo dio šifre 8121 i mora joj biti manja ili jednaka u oba stupca podataka. | E89: 0 | F89: 0 | G89: =IF(ROUND('PR-RAS'!D873,2)>ROUND('PR-RAS'!D438,2),1,0) -> 0 | H89: =IF(ROUND('PR-RAS'!E873,2)>ROUND('PR-RAS'!E438,2),1,0) -> 0
A90: 50 | B90: O.K. | C90: Šifra 81322 je samo dio šifre 8132 i mora joj biti manja ili jednaka u oba stupca podataka. | E90: 0 | F90: 0 | G90: =IF(ROUND('PR-RAS'!D874,2)>ROUND('PR-RAS'!D441,2),1,0) -> 0 | H90: =IF(ROUND('PR-RAS'!E874,2)>ROUND('PR-RAS'!E441,2),1,0) -> 0
A91: 51 | B91: O.K. | C91: Šifra 81332 je samo dio šifre 8133 i mora joj biti manja ili jednaka u oba stupca podataka. | E91: 0 | F91: 0 | G91: =IF(ROUND('PR-RAS'!D875,2)>ROUND('PR-RAS'!D442,2),1,0) -> 0 | H91: =IF(ROUND('PR-RAS'!E875,2)>ROUND('PR-RAS'!E442,2),1,0) -> 0
A92: 52 | B92: O.K. | C92: Šifra 81342 je samo dio šifre 8134 i mora joj biti manja ili jednaka u oba stupca podataka. | E92: 0 | F92: 0 | G92: =IF(ROUND('PR-RAS'!D876,2)>ROUND('PR-RAS'!D443,2),1,0) -> 0 | H92: =IF(ROUND('PR-RAS'!E876,2)>ROUND('PR-RAS'!E443,2),1,0) -> 0
A93: 53 | B93: O.K. | C93: Šifra 814 mora biti jednaka zbroju šifri: 81411+81412 u oba stupca podataka. | E93: 0 | F93: 0 | G93: =IF(ABS('PR-RAS'!D444-SUM('PR-RAS'!D877:D878))>0.001,1,0) -> 0 | H93: =IF(ABS('PR-RAS'!E444-SUM('PR-RAS'!E877:E878))>0.001,1,0) -> 0
A94: 54 | B94: O.K. | C94: Šifra 81532 je samo dio šifre 8153 i mora joj biti manja ili jednaka u oba stupca podataka. | E94: 0 | F94: 0 | G94: =IF(ROUND('PR-RAS'!D879,2)>ROUND('PR-RAS'!D446,2),1,0) -> 0 | H94: =IF(ROUND('PR-RAS'!E879,2)>ROUND('PR-RAS'!E446,2),1,0) -> 0
A95: 55 | B95: O.K. | C95: Šifra 81542 je samo dio šifre 8154 i mora joj biti manja ili jednaka u oba stupca podataka. | E95: 0 | F95: 0 | G95: =IF(ROUND('PR-RAS'!D880,2)>ROUND('PR-RAS'!D447,2),1,0) -> 0 | H95: =IF(ROUND('PR-RAS'!E880,2)>ROUND('PR-RAS'!E447,2),1,0) -> 0
A96: 56 | B96: O.K. | C96: Šifra 81552 je samo dio šifre 8155 i mora joj biti manja ili jednaka u oba stupca podataka. | E96: 0 | F96: 0 | G96: =IF(ROUND('PR-RAS'!D881,2)>ROUND('PR-RAS'!D448,2),1,0) -> 0 | H96: =IF(ROUND('PR-RAS'!E881,2)>ROUND('PR-RAS'!E448,2),1,0) -> 0
A97: 57 | B97: O.K. | C97: Šifra 8163 mora biti jednaka zbroju šifri: 81631+81632 u oba stupca podataka. | E97: 0 | F97: 0 | G97: =IF(ABS('PR-RAS'!D453-SUM('PR-RAS'!D882:D883))>0.001,1,0) -> 0 | H97: =IF(ABS('PR-RAS'!E453-SUM('PR-RAS'!E882:E883))>0.001,1,0) -> 0
A98: 58 | B98: O.K. | C98: Šifra 8164 mora biti jednaka zbroju šifri: 81641+81642 u oba stupca podataka. | E98: =MAX(G98:K98) -> 0 | F98: 0 | G98: =IF(ABS('PR-RAS'!D454-SUM('PR-RAS'!D884:D885))>0.001,1,0) -> 0 | H98: =IF(ABS('PR-RAS'!E454-SUM('PR-RAS'!E884:E885))>0.001,1,0) -> 0
A99: 59 | B99: O.K. | C99: Šifra 8171 mora biti jednaka zbroju šifri: 81711+81712 u oba stupca podataka. | E99: 0 | F99: =MAX(L99:O99) -> 0 | G99: =IF(ABS('PR-RAS'!D458-SUM('PR-RAS'!D886:D887))>0.001,1,0) -> 0 | H99: =IF(ABS('PR-RAS'!E458-SUM('PR-RAS'!E886:E887))>0.001,1,0) -> 0
A100: 60 | B100: O.K. | C100: Šifra 8172 mora biti jednaka zbroju šifri: 81721+81722 u oba stupca podataka. | E100: 0 | F100: 0 | G100: =IF(ABS('PR-RAS'!D459-SUM('PR-RAS'!D888:D889))>0.001,1,0) -> 0 | H100: =IF(ABS('PR-RAS'!E459-SUM('PR-RAS'!E888:E889))>0.001,1,0) -> 0
A101: 61 | B101: O.K. | C101: Šifra 8173 mora biti jednaka zbroju šifri: 81731+81732 u oba stupca podataka. | E101: 0 | F101: 0 | G101: =IF(ABS('PR-RAS'!D460-SUM('PR-RAS'!D890:D891))>0.001,1,0) -> 0 | H101: =IF(ABS('PR-RAS'!E460-SUM('PR-RAS'!E890:E891))>0.001,1,0) -> 0
A102: 62 | B102: O.K. | C102: Šifra 8174 mora biti jednaka zbroju šifri: 81741+81742 u oba stupca podataka. | E102: 0 | F102: 0 | G102: =IF(ABS('PR-RAS'!D461-SUM('PR-RAS'!D892:D893))>0.001,1,0) -> 0 | H102: =IF(ABS('PR-RAS'!E461-SUM('PR-RAS'!E892:E893))>0.001,1,0) -> 0
A103: 63 | B103: O.K. | C103: Šifra 8175 mora biti jednaka zbroju šifri: 81751+81752 u oba stupca podataka. | E103: 0 | F103: 0 | G103: =IF(ABS('PR-RAS'!D462-SUM('PR-RAS'!D894:D895))>0.001,1,0) -> 0 | H103: =IF(ABS('PR-RAS'!E462-SUM('PR-RAS'!E894:E895))>0.001,1,0) -> 0
A104: 64 | B104: O.K. | C104: Šifra 8176 mora biti jednaka zbroju šifri: 81761+81762 u oba stupca podataka. | E104: 0 | F104: 0 | G104: =IF(ABS('PR-RAS'!D463-SUM('PR-RAS'!D896:D897))>0.001,1,0) -> 0 | H104: =IF(ABS('PR-RAS'!E463-SUM('PR-RAS'!E896:E897))>0.001,1,0) -> 0
A105: 65 | B105: O.K. | C105: Šifra 8177 mora biti jednaka zbroju šifri: 81771+81772 u oba stupca podataka. | E105: 0 | F105: 0 | G105: =IF(ABS('PR-RAS'!D464-SUM('PR-RAS'!D898:D899))>0.001,1,0) -> 0 | H105: =IF(ABS('PR-RAS'!E464-SUM('PR-RAS'!E898:E899))>0.001,1,0) -> 0
A106: 66 | B106: O.K. | C106: Šifra 82412 je samo dio šifre 8241 i mora joj biti manja ili jednaka u oba stupca podataka. | E106: 0 | F106: 0 | G106: =IF(ROUND('PR-RAS'!D900,2)>ROUND('PR-RAS'!D477,2),1,0) -> 0 | H106: =IF(ROUND('PR-RAS'!E900,2)>ROUND('PR-RAS'!E477,2),1,0) -> 0
A107: 67 | B107: O.K. | C107: Šifra 84132 je samo dio šifre 8413 i mora joj biti manja ili jednaka u oba stupca podataka. | E107: 0 | F107: 0 | G107: =IF(ROUND('PR-RAS'!D901,2)>ROUND('PR-RAS'!D493,2),1,0) -> 0 | H107: =IF(ROUND('PR-RAS'!E901,2)>ROUND('PR-RAS'!E493,2),1,0) -> 0
A108: 68 | B108: =IF(E108=1,"Pogreška",IF(F108=1,"Provjera","O.K.")) -> O.K. | C108: Šifra 84142 je samo dio šifre 8414 i mora joj biti manja ili jednaka u oba stupca podataka. | E108: 0 | F108: 0 | G108: =IF(ROUND('PR-RAS'!D902,2)>ROUND('PR-RAS'!D494,2),1,0) -> 0 | H108: =IF(ROUND('PR-RAS'!E902,2)>ROUND('PR-RAS'!E494,2),1,0) -> 0
A109: 69 | B109: O.K. | C109: Šifra 84152 je samo dio šifre 8415 i mora joj biti manja ili jednaka u oba stupca podataka. | E109: 0 | F109: 0 | G109: =IF(ROUND('PR-RAS'!D903,2)>ROUND('PR-RAS'!D495,2),1,0) -> 0 | H109: =IF(ROUND('PR-RAS'!E903,2)>ROUND('PR-RAS'!E495,2),1,0) -> 0
A110: 70 | B110: O.K. | C110: Šifra 84162 je samo dio šifre 8416 i mora joj biti manja ili jednaka u oba stupca podataka. | E110: 0 | F110: 0 | G110: =IF(ROUND('PR-RAS'!D904,2)>ROUND('PR-RAS'!D496,2),1,0) -> 0 | H110: =IF(ROUND('PR-RAS'!E904,2)>ROUND('PR-RAS'!E496,2),1,0) -> 0
A111: 71 | B111: O.K. | C111: Zbroj šifri: 84221 do 84223 je samo dio šifre 8422 i mora joj biti manji ili jednak u oba stupca podataka. | E111: 0 | F111: 0 | G111: =IF(ROUND(SUM('PR-RAS'!D905:D907),2)>ROUND('PR-RAS'!D498,2),1,0) -> 0 | H111: =IF(ROUND(SUM('PR-RAS'!E905:E907),2)>ROUND('PR-RAS'!E498,2),1,0) -> 0
A112: 72 | B112: O.K. | C112: Šifra 84232 je samo dio šifre 8423 i mora joj biti manja ili jednaka u oba stupca podataka. | E112: 0 | F112: 0 | G112: =IF(ROUND('PR-RAS'!D908,2)>ROUND('PR-RAS'!D499,2),1,0) -> 0 | H112: =IF(ROUND('PR-RAS'!E908,2)>ROUND('PR-RAS'!E499,2),1,0) -> 0
A113: 73 | B113: O.K. | C113: Zbroj šifri: 84242+84243 je samo dio šifre 8424 i mora joj biti manji ili jednak u oba stupca podataka. | E113: 0 | F113: 0 | G113: =IF(ROUND(SUM('PR-RAS'!D909:D910),2)>ROUND('PR-RAS'!D500,2),1,0) -> 0 | H113: =IF(ROUND(SUM('PR-RAS'!E909:E910),2)>ROUND('PR-RAS'!E500,2),1,0) -> 0
A114: 74 | B114: O.K. | C114: Šifra 84312 je samo dio šifre 843 i mora joj biti manja ili jednaka u oba stupca podataka. | E114: 0 | F114: 0 | G114: =IF(ROUND('PR-RAS'!D911,2)>ROUND('PR-RAS'!D501,2),1,0) -> 0 | H114: =IF(ROUND('PR-RAS'!E911,2)>ROUND('PR-RAS'!E501,2),1,0) -> 0
A115: 75 | B115: O.K. | C115: Zbroj šifri: 84431 do 84433 je samo dio šifre 8443 i mora joj biti manji ili jednak u oba stupca podataka. | E115: 0 | F115: 0 | G115: =IF(ROUND(SUM('PR-RAS'!D912:D914),2)>ROUND('PR-RAS'!D503,2),1,0) -> 0 | H115: =IF(ROUND(SUM('PR-RAS'!E912:E914),2)>ROUND('PR-RAS'!E503,2),1,0) -> 0
A116: 76 | B116: O.K. | C116: Šifra 84442 je samo dio šifre 8444 i mora joj biti manja ili jednaka u oba stupca podataka. | E116: 0 | F116: 0 | G116: =IF(ROUND('PR-RAS'!D915,2)>ROUND('PR-RAS'!D504,2),1,0) -> 0 | H116: =IF(ROUND('PR-RAS'!E915,2)>ROUND('PR-RAS'!E504,2),1,0) -> 0
A117: 77 | B117: O.K. | C117: Zbroj šifri: 84452+84453 je samo dio šifre 8445 i mora joj biti manji ili jednak u oba stupca podataka. | E117: 0 | F117: 0 | G117: =IF(ROUND(SUM('PR-RAS'!D916:D917),2)>ROUND('PR-RAS'!D505,2),1,0) -> 0 | H117: =IF(ROUND(SUM('PR-RAS'!E916:E917),2)>ROUND('PR-RAS'!E505,2),1,0) -> 0
A118: 78 | B118: O.K. | C118: Zbroj šifri: 84461 do 84463 je samo dio šifre 8446 i mora joj biti manji ili jednak u oba stupca podataka. | E118: 0 | F118: 0 | G118: =IF(ROUND(SUM('PR-RAS'!D918:D920),2)>ROUND('PR-RAS'!D506,2),1,0) -> 0 | H118: =IF(ROUND(SUM('PR-RAS'!E918:E920),2)>ROUND('PR-RAS'!E506,2),1,0) -> 0
A119: 79 | B119: O.K. | C119: Šifra 84472 je samo dio šifre 8447 i mora joj biti manja ili jednaka u oba stupca podataka. | E119: 0 | F119: 0 | G119: =IF(ROUND('PR-RAS'!D921,2)>ROUND('PR-RAS'!D507,2),1,0) -> 0 | H119: =IF(ROUND('PR-RAS'!E921,2)>ROUND('PR-RAS'!E507,2),1,0) -> 0
A120: 80 | B120: O.K. | C120: Zbroj šifri: 84482+84483 je samo dio šifre 8448 i mora joj biti manji ili jednak u oba stupca podataka. | E120: 0 | F120: 0 | G120: =IF(ROUND(SUM('PR-RAS'!D922:D923),2)>ROUND('PR-RAS'!D508,2),1,0) -> 0 | H120: =IF(ROUND(SUM('PR-RAS'!E922:E923),2)>ROUND('PR-RAS'!E508,2),1,0) -> 0
A121: 81 | B121: O.K. | C121: Šifra 84532 je samo dio šifre 8453 i mora joj biti manja ili jednaka u oba stupca podataka. | E121: 0 | F121: 0 | G121: =IF(ROUND('PR-RAS'!D924,2)>ROUND('PR-RAS'!D510,2),1,0) -> 0 | H121: =IF(ROUND('PR-RAS'!E924,2)>ROUND('PR-RAS'!E510,2),1,0) -> 0
A122: 82 | B122: O.K. | C122: Šifra 84542 je samo dio šifre 8454 i mora joj biti manja ili jednaka u oba stupca podataka. | E122: 0 | F122: 0 | G122: =IF(ROUND('PR-RAS'!D925,2)>ROUND('PR-RAS'!D511,2),1,0) -> 0 | H122: =IF(ROUND('PR-RAS'!E925,2)>ROUND('PR-RAS'!E511,2),1,0) -> 0
A123: 83 | B123: O.K. | C123: Šifra 84552 je samo dio šifre 8455 i mora joj biti manja ili jednaka u oba stupca podataka. | E123: 0 | F123: 0 | G123: =IF(ROUND('PR-RAS'!D926,2)>ROUND('PR-RAS'!D512,2),1,0) -> 0 | H123: =IF(ROUND('PR-RAS'!E926,2)>ROUND('PR-RAS'!E512,2),1,0) -> 0
A124: 84 | B124: O.K. | C124: Šifra 8471 mora biti jednaka zbroju šifri: 84711+84712 u oba stupca podataka. | E124: 0 | F124: 0 | G124: =IF(ABS('PR-RAS'!D515-'PR-RAS'!D927-'PR-RAS'!D928)>0.001,1,0) -> 0 | H124: =IF(ABS('PR-RAS'!E515-'PR-RAS'!E927-'PR-RAS'!E928)>0.001,1,0) -> 0
A125: 85 | B125: O.K. | C125: Šifra 8472 mora biti jednaka zbroju šifri: 84721+84722 u oba stupca podataka. | E125: 0 | F125: 0 | G125: =IF(ABS('PR-RAS'!D516-'PR-RAS'!D929-'PR-RAS'!D930)>0.001,1,0) -> 0 | H125: =IF(ABS('PR-RAS'!E516-'PR-RAS'!E929-'PR-RAS'!E930)>0.001,1,0) -> 0
A126: 86 | B126: O.K. | C126: Šifra 8473 mora biti jednaka zbroju šifri: 84731+84732 u oba stupca podataka. | E126: 0 | F126: 0 | G126: =IF(ABS('PR-RAS'!D517-'PR-RAS'!D931-'PR-RAS'!D932)>0.001,1,0) -> 0 | H126: =IF(ABS('PR-RAS'!E517-'PR-RAS'!E931-'PR-RAS'!E932)>0.001,1,0) -> 0
A127: 87 | B127: O.K. | C127: Šifra 8474 mora biti jednaka zbroju šifri: 84741+84742 u oba stupca podataka. | E127: 0 | F127: 0 | G127: =IF(ABS('PR-RAS'!D518-'PR-RAS'!D933-'PR-RAS'!D934)>0.001,1,0) -> 0 | H127: =IF(ABS('PR-RAS'!E518-'PR-RAS'!E933-'PR-RAS'!E934)>0.001,1,0) -> 0
A128: 88 | B128: O.K. | C128: Šifra 8475 mora biti jednaka zbroju šifri: 84751+84752 u oba stupca podataka. | E128: 0 | F128: 0 | G128: =IF(ABS('PR-RAS'!D519-'PR-RAS'!D935-'PR-RAS'!D936)>0.001,1,0) -> 0 | H128: =IF(ABS('PR-RAS'!E519-'PR-RAS'!E935-'PR-RAS'!E936)>0.001,1,0) -> 0
A129: 89 | B129: O.K. | C129: Šifra 8476 mora biti jednaka zbroju šifri: 84761+84762 u oba stupca podataka. | E129: 0 | F129: 0 | G129: =IF(ABS('PR-RAS'!D520-'PR-RAS'!D937-'PR-RAS'!D938)>0.001,1,0) -> 0 | H129: =IF(ABS('PR-RAS'!E520-'PR-RAS'!E937-'PR-RAS'!E938)>0.001,1,0) -> 0
A130: 90 | B130: O.K. | C130: Šifra 8477 mora biti jednaka zbroju šifri: 84771+84772 u oba stupca podataka. | E130: 0 | F130: 0 | G130: =IF(ABS('PR-RAS'!D521-'PR-RAS'!D939-'PR-RAS'!D940)>0.001,1,0) -> 0 | H130: =IF(ABS('PR-RAS'!E521-'PR-RAS'!E939-'PR-RAS'!E940)>0.001,1,0) -> 0
A131: 91 | B131: O.K. | C131: Šifra 85412 je samo dio šifre 8541 i mora joj biti manja ili jednaka u oba stupca podataka. | E131: 0 | F131: 0 | G131: =IF(ROUND('PR-RAS'!D941,2)>ROUND('PR-RAS'!D533,2),1,0) -> 0 | H131: =IF(ROUND('PR-RAS'!E941,2)>ROUND('PR-RAS'!E533,2),1,0) -> 0
A132: 92 | B132: O.K. | C132: Šifra 51212 je samo dio šifre 5121 i mora joj biti manja ili jednaka u oba stupca podataka. | E132: 0 | F132: 0 | G132: =IF(ROUND('PR-RAS'!D942,2)>ROUND('PR-RAS'!D543,2),1,0) -> 0 | H132: =IF(ROUND('PR-RAS'!E942,2)>ROUND('PR-RAS'!E543,2),1,0) -> 0
A133: 93 | B133: O.K. | C133: Šifra 51322 je samo dio šifre 5132 i mora joj biti manja ili jednaka u oba stupca podataka. | E133: 0 | F133: 0 | G133: =IF(ROUND('PR-RAS'!D943,2)>ROUND('PR-RAS'!D546,2),1,0) -> 0 | H133: =IF(ROUND('PR-RAS'!E943,2)>ROUND('PR-RAS'!E546,2),1,0) -> 0
A134: 94 | B134: O.K. | C134: Šifra 51332 je samo dio šifre 5133 i mora joj biti manja ili jednaka u oba stupca podataka. | E134: 0 | F134: 0 | G134: =IF(ROUND('PR-RAS'!D944,2)>ROUND('PR-RAS'!D547,2),1,0) -> 0 | H134: =IF(ROUND('PR-RAS'!E944,2)>ROUND('PR-RAS'!E547,2),1,0) -> 0
A135: 95 | B135: O.K. | C135: Šifra 51342 je samo dio šifre 5134 i mora joj biti manja ili jednaka u oba stupca podataka. | E135: 0 | F135: 0 | G135: =IF(ROUND('PR-RAS'!D945,2)>ROUND('PR-RAS'!D548,2),1,0) -> 0 | H135: =IF(ROUND('PR-RAS'!E945,2)>ROUND('PR-RAS'!E548,2),1,0) -> 0
A136: 96 | B136: O.K. | C136: Šifra 514 mora biti jednaka zbroju šifri: 51411+51412 u oba stupca podataka. | E136: 0 | F136: 0 | G136: =IF(ABS('PR-RAS'!D549-SUM('PR-RAS'!D946:D947))>0.001,1,0) -> 0 | H136: =IF(ABS('PR-RAS'!E549-SUM('PR-RAS'!E946:E947))>0.001,1,0) -> 0
A137: 97 | B137: O.K. | C137: Šifra 51532 je samo dio šifre 5153 i mora joj biti manja ili jednaka u oba stupca podataka. | E137: 0 | F137: 0 | G137: =IF(ROUND(SUM('PR-RAS'!D948:D948),2)>ROUND('PR-RAS'!D551,2),1,0) -> 0 | H137: =IF(ROUND(SUM('PR-RAS'!E948:E948),2)>ROUND('PR-RAS'!E551,2),1,0) -> 0
A138: 98 | B138: O.K. | C138: Šifra 51542 je samo dio šifre 5154 i mora joj biti manja ili jednaka u oba stupca podataka. | E138: 0 | F138: 0 | G138: =IF(ROUND(SUM('PR-RAS'!D949:D949),2)>ROUND('PR-RAS'!D552,2),1,0) -> 0 | H138: =IF(ROUND(SUM('PR-RAS'!E949:E949),2)>ROUND('PR-RAS'!E552,2),1,0) -> 0
A139: 99 | B139: O.K. | C139: Šifra 51552 je samo dio šifre 5155 i mora joj biti manja ili jednaka u oba stupca podataka. | E139: 0 | F139: 0 | G139: =IF(ROUND(SUM('PR-RAS'!D950:D950),2)>ROUND('PR-RAS'!D553,2),1,0) -> 0 | H139: =IF(ROUND(SUM('PR-RAS'!E950:E950),2)>ROUND('PR-RAS'!E553,2),1,0) -> 0
A140: 100 | B140: O.K. | C140: Šifra 5163 mora biti jednaka zbroju šifri: 51631+51632 u oba stupca podataka. | E140: 0 | F140: 0 | G140: =IF(ABS('PR-RAS'!D558-SUM('PR-RAS'!D951:D952))>0.001,1,0) -> 0 | H140: =IF(ABS('PR-RAS'!E558-SUM('PR-RAS'!E951:E952))>0.001,1,0) -> 0
A141: 101 | B141: O.K. | C141: Šifra 5164 mora biti jednaka zbroju šifri: 51641+51642 u oba stupca podataka. | E141: 0 | F141: 0 | G141: =IF(ABS('PR-RAS'!D559-SUM('PR-RAS'!D953:D954))>0.001,1,0) -> 0 | H141: =IF(ABS('PR-RAS'!E559-SUM('PR-RAS'!E953:E954))>0.001,1,0) -> 0
A142: 102 | B142: O.K. | C142: Šifra 5171 mora biti jednaka zbroju šifri: 51711+51712 u oba stupca podataka. | E142: 0 | F142: 0 | G142: =IF(ABS('PR-RAS'!D563-SUM('PR-RAS'!D955:D956))>0.001,1,0) -> 0 | H142: =IF(ABS('PR-RAS'!E563-SUM('PR-RAS'!E955:E956))>0.001,1,0) -> 0
A143: 103 | B143: O.K. | C143: Šifra 5172 mora biti jednaka zbroju šifri: 51721+51722 u oba stupca podataka. | E143: 0 | F143: 0 | G143: =IF(ABS('PR-RAS'!D564-SUM('PR-RAS'!D957:D958))>0.001,1,0) -> 0 | H143: =IF(ABS('PR-RAS'!E564-SUM('PR-RAS'!E957:E958))>0.001,1,0) -> 0
A144: 104 | B144: O.K. | C144: Šifra 5173 mora biti jednaka zbroju šifri: 51731+51732 u oba stupca podataka. | E144: 0 | F144: 0 | G144: =IF(ABS('PR-RAS'!D565-SUM('PR-RAS'!D959:D960))>0.001,1,0) -> 0 | H144: =IF(ABS('PR-RAS'!E565-SUM('PR-RAS'!E959:E960))>0.001,1,0) -> 0
A145: 105 | B145: O.K. | C145: Šifra 5174 mora biti jednaka zbroju šifri: 51741+51742 u oba stupca podataka. | E145: 0 | F145: 0 | G145: =IF(ABS('PR-RAS'!D566-SUM('PR-RAS'!D961:D962))>0.001,1,0) -> 0 | H145: =IF(ABS('PR-RAS'!E566-SUM('PR-RAS'!E961:E962))>0.001,1,0) -> 0
A146: 106 | B146: O.K. | C146: Šifra 5175 mora biti jednaka zbroju šifri: 51751+51752 u oba stupca podataka. | E146: 0 | F146: 0 | G146: =IF(ABS('PR-RAS'!D567-SUM('PR-RAS'!D963:D964))>0.001,1,0) -> 0 | H146: =IF(ABS('PR-RAS'!E567-SUM('PR-RAS'!E963:E964))>0.001,1,0) -> 0
A147: 107 | B147: O.K. | C147: Šifra 5176 mora biti jednaka zbroju šifri: 51761+51762 u oba stupca podataka. | E147: 0 | F147: 0 | G147: =IF(ABS('PR-RAS'!D568-SUM('PR-RAS'!D965:D966))>0.001,1,0) -> 0 | H147: =IF(ABS('PR-RAS'!E568-SUM('PR-RAS'!E965:E966))>0.001,1,0) -> 0
A148: 108 | B148: O.K. | C148: Šifra 5177 mora biti jednaka zbroju šifri: 51771+51772 u oba stupca podataka. | E148: 0 | F148: 0 | G148: =IF(ABS('PR-RAS'!D569-SUM('PR-RAS'!D967:D968))>0.001,1,0) -> 0 | H148: =IF(ABS('PR-RAS'!E569-SUM('PR-RAS'!E967:E968))>0.001,1,0) -> 0
A149: 109 | B149: O.K. | C149: Šifra 54132 je samo dio šifre 5413 i mora joj biti manja ili jednaka u oba stupca podataka. | E149: 0 | F149: 0 | G149: =IF(ROUND('PR-RAS'!D969,2)>ROUND('PR-RAS'!D599,2),1,0) -> 0 | H149: =IF(ROUND('PR-RAS'!E969,2)>ROUND('PR-RAS'!E599,2),1,0) -> 0
A150: 110 | B150: O.K. | C150: Šifra 54142 je samo dio šifre 5414 i mora joj biti manja ili jednaka u oba stupca podataka. | E150: 0 | F150: 0 | G150: =IF(ROUND('PR-RAS'!D970,2)>ROUND('PR-RAS'!D600,2),1,0) -> 0 | H150: =IF(ROUND('PR-RAS'!E970,2)>ROUND('PR-RAS'!E600,2),1,0) -> 0
A151: 111 | B151: O.K. | C151: Šifra 54152 je samo dio šifre 5415 i mora joj biti manja ili jednaka u oba stupca podataka. | E151: 0 | F151: 0 | G151: =IF(ROUND('PR-RAS'!D971,2)>ROUND('PR-RAS'!D601,2),1,0) -> 0 | H151: =IF(ROUND('PR-RAS'!E971,2)>ROUND('PR-RAS'!E601,2),1,0) -> 0
A152: 112 | B152: O.K. | C152: Šifra 54162 je samo dio šifre 5416 i mora joj biti manja ili jednaka u oba stupca podataka. | E152: 0 | F152: 0 | G152: =IF(ROUND('PR-RAS'!D972,2)>ROUND('PR-RAS'!D602,2),1,0) -> 0 | H152: =IF(ROUND('PR-RAS'!E972,2)>ROUND('PR-RAS'!E602,2),1,0) -> 0
A153: 113 | B153: O.K. | C153: Zbroj šifri: 54221 do 54223 je samo dio šifre 5422 i mora joj biti manji ili jednak u oba stupca podataka. | E153: 0 | F153: 0 | G153: =IF(ROUND(SUM('PR-RAS'!D973:D975),2)>ROUND('PR-RAS'!D604,2),1,0) -> 0 | H153: =IF(ROUND(SUM('PR-RAS'!E973:E975),2)>ROUND('PR-RAS'!E604,2),1,0) -> 0
A154: 114 | B154: O.K. | C154: Šifra 54232 je samo dio šifre 5423 i mora joj biti manja ili jednaka u oba stupca podataka. | E154: 0 | F154: 0 | G154: =IF(ROUND('PR-RAS'!D976,2)>ROUND('PR-RAS'!D605,2),1,0) -> 0 | H154: =IF(ROUND('PR-RAS'!E976,2)>ROUND('PR-RAS'!E605,2),1,0) -> 0
A155: 115 | B155: O.K. | C155: Zbroj šifri: 54242+54243 je samo dio šifre 5424 i mora joj biti manji ili jednak u oba stupca podataka. | E155: 0 | F155: 0 | G155: =IF(ROUND('PR-RAS'!D977+'PR-RAS'!D978,2)>ROUND('PR-RAS'!D606,2),1,0) -> 0 | H155: =IF(ROUND('PR-RAS'!E977+'PR-RAS'!E978,2)>ROUND('PR-RAS'!E606,2),1,0) -> 0
A156: 116 | B156: O.K. | C156: Šifra 54312 je samo dio šifre 543 i mora joj biti manja ili jednaka u oba stupca podataka. | E156: 0 | F156: 0 | G156: =IF(ROUND('PR-RAS'!D979,2)>ROUND('PR-RAS'!D607,2),1,0) -> 0 | H156: =IF(ROUND('PR-RAS'!E979,2)>ROUND('PR-RAS'!E607,2),1,0) -> 0
A157: 117 | B157: O.K. | C157: Zbroj šifri: 54431 do 54433 je samo dio šifre 5443 i mora joj biti manji ili jednak u oba stupca podataka. | E157: 0 | F157: 0 | G157: =IF(ROUND(SUM('PR-RAS'!D980:D982),2)>ROUND('PR-RAS'!D610,2),1,0) -> 0 | H157: =IF(ROUND(SUM('PR-RAS'!E980:E982),2)>ROUND('PR-RAS'!E610,2),1,0) -> 0
A158: 118 | B158: O.K. | C158: Šifra 54442 je samo dio šifre 5444 i mora joj biti manja ili jednaka u oba stupca podataka. | E158: 0 | F158: 0 | G158: =IF(ROUND('PR-RAS'!D983,2)>ROUND('PR-RAS'!D611,2),1,0) -> 0 | H158: =IF(ROUND('PR-RAS'!E983,2)>ROUND('PR-RAS'!E611,2),1,0) -> 0
A159: 119 | B159: O.K. | C159: Zbroj šifri: 54452+54453 je samo dio šifre 5445 i mora joj biti manji ili jednak u oba stupca podataka. | E159: 0 | F159: 0 | G159: =IF(ROUND(SUM('PR-RAS'!D984:D985),2)>ROUND('PR-RAS'!D612,2),1,0) -> 0 | H159: =IF(ROUND(SUM('PR-RAS'!E984:E985),2)>ROUND('PR-RAS'!E612,2),1,0) -> 0
A160: 120 | B160: O.K. | C160: Zbroj šifri: 54461 do 54463 je samo dio šifre 5446 i mora joj biti manji ili jednak u oba stupca podataka. | E160: 0 | F160: 0 | G160: =IF(ROUND(SUM('PR-RAS'!D986:D988),2)>ROUND('PR-RAS'!D613,2),1,0) -> 0 | H160: =IF(ROUND(SUM('PR-RAS'!E986:E988),2)>ROUND('PR-RAS'!E613,2),1,0) -> 0
A161: 121 | B161: O.K. | C161: Šifra 54472 je samo dio šifre 5447 i mora joj biti manja ili jednaka u oba stupca podataka. | E161: 0 | F161: 0 | G161: =IF(ROUND('PR-RAS'!D989,2)>ROUND('PR-RAS'!D614,2),1,0) -> 0 | H161: =IF(ROUND('PR-RAS'!E989,2)>ROUND('PR-RAS'!E614,2),1,0) -> 0
A162: 122 | B162: O.K. | C162: Zbroj šifri: 54482+54483 je samo dio šifre 5448 i mora joj biti manji ili jednak u oba stupca podataka. | E162: =MAX(G162:K162) -> 0 | F162: 0 | G162: =IF(ROUND(SUM('PR-RAS'!D990:D991),2)>ROUND('PR-RAS'!D615,2),1,0) -> 0 | H162: =IF(ROUND(SUM('PR-RAS'!E990:E991),2)>ROUND('PR-RAS'!E615,2),1,0) -> 0
A163: 123 | B163: O.K. | C163: Šifra 54532 je samo dio šifre 5453 i mora joj biti manja ili jednaka u oba stupca podataka. | E163: 0 | F163: =MAX(L163:O163) -> 0 | G163: =IF(ROUND('PR-RAS'!D992,2)>ROUND('PR-RAS'!D617,2),1,0) -> 0 | H163: =IF(ROUND('PR-RAS'!E992,2)>ROUND('PR-RAS'!E617,2),1,0) -> 0
A164: 124 | B164: O.K. | C164: Šifra 54542 je samo dio šifre 5454 i mora joj biti manja ili jednaka u oba stupca podataka. | E164: 0 | F164: 0 | G164: =IF(ROUND('PR-RAS'!D993,2)>ROUND('PR-RAS'!D618,2),1,0) -> 0 | H164: =IF(ROUND('PR-RAS'!E993,2)>ROUND('PR-RAS'!E618,2),1,0) -> 0
A165: 125 | B165: O.K. | C165: Šifra 54552 je samo dio šifre 5455 i mora joj biti manja ili jednaka u oba stupca podataka. | E165: 0 | F165: 0 | G165: =IF(ROUND('PR-RAS'!D994,2)>ROUND('PR-RAS'!D619,2),1,0) -> 0 | H165: =IF(ROUND('PR-RAS'!E994,2)>ROUND('PR-RAS'!E619,2),1,0) -> 0
A166: 126 | B166: O.K. | C166: Šifra 5471 mora biti jednaka zbroju šifri: 54711+54712 u oba stupca podataka. | E166: 0 | F166: 0 | G166: =IF(ABS('PR-RAS'!D622-SUM('PR-RAS'!D995:D996))>0.001,1,0) -> 0 | H166: =IF(ABS('PR-RAS'!E622-SUM('PR-RAS'!E995:E996))>0.001,1,0) -> 0
A167: 127 | B167: O.K. | C167: Šifra 5472 mora biti jednaka zbroju šifri: 54721+54722 u oba stupca podataka. | E167: 0 | F167: 0 | G167: =IF(ABS('PR-RAS'!D623-SUM('PR-RAS'!D997:D998))>0.001,1,0) -> 0 | H167: =IF(ABS('PR-RAS'!E623-SUM('PR-RAS'!E997:E998))>0.001,1,0) -> 0
A168: 128 | B168: O.K. | C168: Šifra 5473 mora biti jednaka zbroju šifri: 54731+54732 u oba stupca podataka. | E168: 0 | F168: 0 | G168: =IF(ABS('PR-RAS'!D624-SUM('PR-RAS'!D999:D1000))>0.001,1,0) -> 0 | H168: =IF(ABS('PR-RAS'!E624-SUM('PR-RAS'!E999:E1000))>0.001,1,0) -> 0
A169: 129 | B169: O.K. | C169: Šifra 5474 mora biti jednaka zbroju šifri: 54741+54742 u oba stupca podataka. | E169: 0 | F169: 0 | G169: =IF(ABS('PR-RAS'!D625-SUM('PR-RAS'!D1001:D1002))>0.001,1,0) -> 0 | H169: =IF(ABS('PR-RAS'!E625-SUM('PR-RAS'!E1001:E1002))>0.001,1,0) -> 0
A170: 130 | B170: O.K. | C170: Šifra 5475 mora biti jednaka zbroju šifri: 54751+54752 u oba stupca podataka. | E170: 0 | F170: 0 | G170: =IF(ABS('PR-RAS'!D626-SUM('PR-RAS'!D1003:D1004))>0.001,1,0) -> 0 | H170: =IF(ABS('PR-RAS'!E626-SUM('PR-RAS'!E1003:E1004))>0.001,1,0) -> 0
A171: 131 | B171: O.K. | C171: Šifra 5476 mora biti jednaka zbroju šifri: 54761+54762 u oba stupca podataka. | E171: 0 | F171: 0 | G171: =IF(ABS('PR-RAS'!D627-SUM('PR-RAS'!D1005:D1006))>0.001,1,0) -> 0 | H171: =IF(ABS('PR-RAS'!E627-SUM('PR-RAS'!E1005:E1006))>0.001,1,0) -> 0
A172: 132 | B172: O.K. | C172: Šifra 5477 mora biti jednaka zbroju šifri: 54771+54772 u oba stupca podataka. | E172: 0 | F172: 0 | G172: =IF(ABS('PR-RAS'!D628-SUM('PR-RAS'!D1007:D1008))>0.001,1,0) -> 0 | H172: =IF(ABS('PR-RAS'!E628-SUM('PR-RAS'!E1007:E1008))>0.001,1,0) -> 0
A173: 133 | B173: O.K. | C173: Šifra 55312 je samo dio šifre 5531 i mora joj biti manja ili jednaka u oba stupca podataka. | E173: 0 | F173: 0 | G173: =IF(ROUND('PR-RAS'!D1009,2)>ROUND('PR-RAS'!D637,2),1,0) -> 0 | H173: =IF(ROUND('PR-RAS'!E1009,2)>ROUND('PR-RAS'!E637,2),1,0) -> 0
A174: 135 | B174: O.K. | C174: Obveznici razine 11 ne mogu imati popunjene šifre: 611 do 6117. Ako ova kontrola javlja pogrešku znači da je za obrazac razine 11 unesen iznos za neku od ovih šifri. | E174: 0 | F174: 0 | G174: =IF(AND(I3=11,OR(MAX('PR-RAS'!D8:E15)>0,MIN('PR-RAS'!D8:E15)<0)),1,0) -> 0
A175: 136 | B175: O.K. | C175: Obveznici razine 11 ne mogu imati popunjenu šifru 654. Iznimka od ovog pravila su neki obveznici koji iznimno mogu. Ako ova kontrola javlja pogrešku, znači da su ove šifre popunjene ali se ne radi o obvezniku koji ih može imati popunjene. | E175: 0 | F175: 0 | G175: =IF(AND(I3=11,MAX('PR-RAS'!D124:E124)>0,O3<>54181,O3<>51,O3<>22275,O3<>44926,O3<>47439,O3<>43214,O3<>47037,O3<>721,O3<>47053,O3<>756,O3<>49075,O3<>1222,O3<>47107,O3<>26346,O3<>47096,O3<>51409,O3<>51441,O3<>47668,O3<>24086,O3<>20727,O3<>3164,O3<>3172,O3<>50395,O3<>3197,O3<>3201,O3<>3156,O3<>46614,O3<>3210,O3<>3228,O3<>3236,O3<>3244,O3<>3252,O3<>50400,O3<>3277,O3<>3285,O3<>3293,O3<>3308,O3<>3316,O3<>3324,O3<>3332,O3<>3349,O3<>3148),1,0) -> 0
A176: 137 | B176: O.K. | C176: Obveznici razine 11 ne mogu imati popunjene šifre: 6119 do 6135, 6141 do 6147, 615 do 6152, 616 do 6163, 621 do 623, 635 do 6353, 6811, 3653, 367 do 3674 i 3711. Ako je za bilo koju od ovih šifri upisan iznos, a obrazac je razine 11, kontrola javlja grešku i obrazac je neispravan. | E176: 0 | F176: 0 | G176: =IF(AND(I3=11,MAX('PR-RAS'!D16:E28,'PR-RAS'!D30:E35,'PR-RAS'!D36:E38,'PR-RAS'!D39:E42,'PR-RAS'!D44:E48,'PR-RAS'!D64:E67,'PR-RAS'!D142:E142,'PR-RAS'!D245:E245,'PR-RAS'!D250:E253,'PR-RAS'!D264:E264)>0),1,0) -> 0
A177: 245 | B177: =IF(E177=1,"Pogreška",IF(F177=1,"Provjera","O.K.")) -> O.K. | C177: Obveznici razine 11 ne mogu imati popunjenu šifru 3421. Iznimka su obveznici s RKP-om 51255, 51263, 51271, 51280, 51298, 51302, 51319, 51327, 51335, 51343. | E177: 0 | F177: 0 | G177: =IF(AND(I3=11,MAX('PR-RAS'!D209:E209)>0,O3<>51255,O3<>51263,O3<>51343,O3<>51319,O3<>51298,O3<>51302,O3<>51327,O3<>51335,O3<>51280,O3<>51271),1,0) -> 0
A178: 268 | B178: O.K. | C178: Obveznici razine 11 ne mogu imati popunjene šifre 3651 i 3652. Iznimka su obveznici s RKP-om 1222, 47096, 47107, 50985. | E178: =MAX(G178:K178) -> 0 | F178: =MAX(L178:O178) -> 0 | G178: =IF(AND(I3=11,O3<>1222,O3<>47096,O3<>47107,O3<>50985,MAX('PR-RAS'!D243:E243,'PR-RAS'!D244:E244)>0),1,0) -> 0
A179: 138 | B179: O.K. | C179: Obveznici razine 11 ne mogu imati popunjenu šifru 3712 osim obveznika s RKP-om: 47107. Ako ova kontrola javlja pogrešku znači da je za obrazac razine 11 unesen iznos za šifru 3712. | E179: 0 | F179: 0 | G179: =IF(AND(I3=11,O3<>47107,MAX('PR-RAS'!D265:E265)>0),1,0) -> 0 | H179: =IF(AND(I3=11,O3<>47107,MIN('PR-RAS'!D265:E265)<0),1,0) -> 0
A180: 139 | B180: O.K. | C180: Razina 11 ne smije imati popunjene šifre: 8114 do 8116, 8122, 8156 do 8158, 8165, 8166, 8211, 8212, 8222 do 8232, 8242, 8342, 8415 do 8416, 8447 i 8448. Ako je za bilo koju od ovih šifri upisan iznos, a obrazac je razine 11, kontrola javlja grešku i obrazac je neispravan. | E180: 0 | F180: 0 | G180: =IF(AND(I3=11,MAX('PR-RAS'!D434:E436,'PR-RAS'!D439:E439,'PR-RAS'!D449:E451,'PR-RAS'!D455:E455,'PR-RAS'!D456:E456,'PR-RAS'!D468:E468,'PR-RAS'!D469:E469,'PR-RAS'!D472:E475,'PR-RAS'!D478:E478,'PR-RAS'!D490:E490,'PR-RAS'!D495:E496,'PR-RAS'!D507:E507,'PR-RAS'!D508:E508)>0),1,0) -> 0 | H180: =IF(AND(I3=11,MIN('PR-RAS'!D434:E436,'PR-RAS'!D439:E439,'PR-RAS'!D449:E451,'PR-RAS'!D455:E455,'PR-RAS'!D456:E456,'PR-RAS'!D468:E468,'PR-RAS'!D469:E469,'PR-RAS'!D472:E475,'PR-RAS'!D478:E478,'PR-RAS'!D490:E490,'PR-RAS'!D495:E496,'PR-RAS'!D507:E507,'PR-RAS'!D508:E508)<0),1,0) -> 0
A181: 246 | B181: O.K. | C181: Obveznici razine 11 ne smiju imati popunjenu šifru 8121. Iznimka su obveznici s RKP-om 174, 713, 999, 1966, 2436, 2452, 20157, 22058, 40834 i 47037. | E181: 0 | F181: 0 | G181: =IF(AND(I3=11,O3<>174,O3<>713,O3<>999,O3<>1966,O3<>2436,O3<>2452,O3<>20157,O3<>22058,O3<>40834,O3<>47037,MAX('PR-RAS'!D438:E438)>0),1,0) -> 0
A182: 247 | B182: O.K. | C182: Obveznici razine 11 ne smiju imati popunjenu šifru 8413. Iznimka su obveznici s RKP-om 1087, 1222, 6120, 47061, 47107, 51441 i 51724. | E182: 0 | F182: 0 | G182: =IF(AND(I3=11,O3<>1087,O3<>1222,O3<>6120,O3<>47061,O3<>47107,O3<>51441,O3<>51724,MAX('PR-RAS'!D493:E493)>0),1,0) -> 0
A183: 248 | B183: O.K. | C183: Obveznici razine 11 ne smiju imati popunjenu šifru 8414. Iznimka su obveznici s RKP-om 1079, 1087, 46237, 47053 i 47061. | E183: 0 | F183: 0 | G183: =IF(AND(I3=11,O3<>1079,O3<>1087,O3<>46237,O3<>47053,O3<>47061,MAX('PR-RAS'!D494:E494)>0),1,0) -> 0
A184: 140 | B184: O.K. | C184: Obveznici razine 11 ne mogu imati popunjenu šifru 8455 i 5455 osim obveznika s RKP-om 721. Ako je za bilo koju od ovih šifri upisan iznos, a obrazac je razine 11, kontrola javlja grešku i obrazac je neispravan. | E184: 0 | F184: 0 | G184: =IF(AND(I3=11,O3<>721,OR(MAX('PR-RAS'!D512:E512,'PR-RAS'!D619:E619)>0,MIN('PR-RAS'!D512:E512,'PR-RAS'!D619:E619)<0)),1,0) -> 0
A185: 141 | B185: O.K. | C185: Razina 11 ne smije imati popunjene šifre: 8456, 8512, 8522, 8542, 511 do 5116, 5156 do 5158, 5165, 5166, 5212, 5222, 5241 i 5242. Ako je za bilo koju od ovih šifri upisan iznos, a obrazac je razine 11, kontrola javlja grešku i obrazac je neispravan. | E185: 0 | F185: 0 | G185: =IF(AND(I3=11,O3<>721,MAX('PR-RAS'!D513:E513,'PR-RAS'!D525:E525,'PR-RAS'!D528:E528,'PR-RAS'!D534:E534,'PR-RAS'!D537:E541,'PR-RAS'!D554:E556,'PR-RAS'!D560:E561,'PR-RAS'!D574:E574,'PR-RAS'!D577:E577,'PR-RAS'!D582:E583)>0),1,0) -> 0
A186: 142 | B186: O.K. | C186: Obveznici razine 11 ne mogu imati popunjenu šifru 5332 osim obveznika s RKP-om: 46237. Ako ova kontrola javlja pogrešku znači da je za obrazac razine 11 unesen iznos za šifru 5332. | E186: 0 | F186: 0 | G186: =IF(AND(I3=11,O3<>46237,OR(MAX('PR-RAS'!D593:E593)>0,MIN('PR-RAS'!D593:E593)<0)),1,0) -> 0
A187: 143 | B187: O.K. | C187: Obveznici razine 11 ne mogu imati popunjene šifre: 541 do 5416. Iznimka su obveznici s RKP-om: 174, 51255, 51263, 51271, 51280, 51298, 51302, 51319, 51327, 51335, 51343. Ako ova kontrola javlja pogrešku znači da je za obrazac razine 11 unesen iznos za jednu od ovih šifri. | E187: 0 | F187: 0 | G187: =IF(AND(I3=11,O3<>174,O3<>51255,O3<>51263,O3<>51271,O3<>51280,O3<>51298,O3<>51302,O3<>51319,O3<>51327,O3<>51335,O3<>51343,OR(MAX('PR-RAS'!D598:E602)>0,MIN('PR-RAS'!D598:E602)<0)),1,0) -> 0
A188: 144 | B188: O.K. | C188: Razina 11 ne smije imati popunjene šifre: 5342, 5447, 5448, 5454, 551, 5512, 5522, 5532, 65265, 34112, 34132, 34192. Ako je za bilo koju od ovih šifri upisan iznos, a obrazac je razine 11, kontrola javlja grešku i obrazac je neispravan. | E188: 0 | F188: 0 | G188: =IF(AND(I3=11,MAX('PR-RAS'!D596:E596,'PR-RAS'!D614:E614,'PR-RAS'!D615:E615,'PR-RAS'!D618:E618,'PR-RAS'!D630:E630,'PR-RAS'!D632:E632,'PR-RAS'!D635:E635,'PR-RAS'!D638:E638,'PR-RAS'!D725:E725,'PR-RAS'!D746:E746,'PR-RAS'!D750:E750,'PR-RAS'!D752:E752)<>0),1,0) -> 0
A189: 249 | B189: O.K. | C189: Obveznici razina 11 i 12 ne smiju imati popunjenu šifru 8332. Iznimka su obveznici s RKP-om 46237 na razini 11 i 47053 na razini 12. | E189: 0 | F189: 0 | G189: =IF(AND(OR(AND(I3=11,O3<>46237),AND(I3=12,O3<>47053)),MAX('PR-RAS'!D487:E487)>0),1,0) -> 0
A190: 145 | B190: O.K. | C190: Obveznici razine 12 ne mogu imati popunjene šifre: 611 do 6117. Iznimka od tog pravila je obveznik s RKP-om 47123. Ako ova kontrola javlja pogrešku znači da je za obrazac razine 12 unesen iznos za neku od ovih šifri. | E190: 0 | F190: 0 | G190: =IF(AND(I3=12,O3<>47123,OR(MAX('PR-RAS'!D8:E15)>0,MIN('PR-RAS'!D8:E15)<0)),1,0) -> 0
A191: 146 | B191: O.K. | C191: Obveznici razine 12 ne mogu imati popunjenu šifru 654. Iznimka od ovog pravila su neki obveznici koji iznimno mogu, lista obveznika ugrađena je u kontrolu. Ako ova kontrola javlja pogrešku, znači da su ove šifre popunjene ali se ne radi o obvezniku koji ih može imati popunjene. | E191: 0 | F191: 0 | G191: =IF(AND(I3=12,MAX('PR-RAS'!D124:E124)>0,O3<>54181,O3<>51,O3<>47439,O3<>43214,O3<>47037,O3<>721,O3<>47053,O3<>756,O3<>1222,O3<>47107,O3<>47096,O3<>51409,O3<>51441),1,0) -> 0
A192: 147 | B192: O.K. | C192: Razina 12 ne smije imati popunjene šifre: 6119 do 6135, 6141 do 6147, 615 do 6152, 616 do 6163, 635 do 6353, 6811, 3653, 367 do 3674. Ako je za bilo koju od ovih šifri upisan iznos, a obrazac je razine 12, kontrola javlja grešku i obrazac je neispravan. | E192: 0 | F192: 0 | G192: =IF(AND(I3=12,MAX('PR-RAS'!D16:E28,'PR-RAS'!D30:E35,'PR-RAS'!D36:E38,'PR-RAS'!D64:E67,'PR-RAS'!D142:E142,'PR-RAS'!D245:E245,'PR-RAS'!D250:E253)>0),1,0) -> 0
A193: 269 | B193: O.K. | C193: Obveznici razine 12 ne mogu imati popunjene šifre 3651 i 3652. Iznimka su obveznici s RKP-om 1222, 47096, 47107, 50985. | E193: =MAX(G193:K193) -> 0 | F193: =MAX(L193:O193) -> 0 | G193: =IF(AND(I3=12,O3<>1222,O3<>47096,O3<>47107,O3<>50985,MAX('PR-RAS'!D243:E244)>0),1,0) -> 0
A194: 250 | B194: O.K. | C194: Obveznici razine 12 ne smiju imati popunjenu šifru 8121. Iznimka su obveznici s RKP-om 174, 713, 999, 1222, 20157, 40834, 47037 i 47061. | E194: 0 | F194: 0 | G194: =IF(AND(I3=12,O3<>174,O3<>713,O3<>999,O3<>1222,O3<>20157,O3<>40834,O3<>47037,O3<>47061,MAX('PR-RAS'!D438:E438)>0),1,0) -> 0
A195: 148 | B195: O.K. | C195: Razina 12 ne smije imati popunjene šifre: 8122, 8172, 822 do 8222, 8232 do 8242, 8415, 8416, 8512, 8522, 8542, 511 do 5116, 5156 do 5158, 5165, 5166. Ako je za bilo koju od ovih šifri upisan iznos za razinu 12 obrazac je neispravan. | E195: 0 | F195: 0 | G195: =IF(AND(I3=12,MAX('PR-RAS'!D439:E439,'PR-RAS'!D459:E459,'PR-RAS'!D470:E472,'PR-RAS'!D475:E478,'PR-RAS'!D495:E495,'PR-RAS'!D496:E496,'PR-RAS'!D525:E525,'PR-RAS'!D528:E528,'PR-RAS'!D534:E534,'PR-RAS'!D537:E541,'PR-RAS'!D554:E556,'PR-RAS'!D560:E561)>0),1,0) -> 0
A196: 251 | B196: O.K. | C196: Obveznici razine 12 ne smiju imati popunjenu šifru 8413. Iznimka su obveznici s RKP-om 1087, 1222, 47061, 47107 i 51441. | E196: 0 | F196: 0 | G196: =IF(AND(I3=12,O3<>1087,O3<>1222,O3<>47061,O3<>47107,O3<>51441,MAX('PR-RAS'!D493:E493)>0),1,0) -> 0
A197: 252 | B197: O.K. | C197: Obveznici razine 12 ne smiju imati popunjenu šifru 8414. Iznimka su obveznici s RKP-om 1079, 1087, 47053 i 47061. | E197: 0 | F197: 0 | G197: =IF(AND(I3=12,O3<>1079,O3<>1087,O3<>47053,O3<>47061,MAX('PR-RAS'!D494:E494)>0),1,0) -> 0
A198: 149 | B198: O.K. | C198: Razina 12 ne smije imati popunjene šifre: 5212, 5222, 524 do 5242, 5342, 551 do 5512, 5522, 5532, 34112, 34122, 34132, 34192. Ako je za bilo koju od ovih šifri upisan iznos, a obrazac je razine 12 obrazac je neispravan. | E198: 0 | F198: 0 | G198: =IF(AND(I3=12,MAX('PR-RAS'!D574:E574,'PR-RAS'!D577:E577,'PR-RAS'!D581:E583,'PR-RAS'!D596:E596,'PR-RAS'!D630:E632,'PR-RAS'!D635:E635,'PR-RAS'!D638:E638,'PR-RAS'!D746:E746,'PR-RAS'!D748:E748,'PR-RAS'!D750:E750,'PR-RAS'!D752:E752)>0),1,0) -> 0
A199: 253 | B199: O.K. | C199: Obveznici razine 12 ne smiju imati popunjenu šifru 5332, osim obveznika s RKP-om 47053. | E199: 0 | F199: 0 | G199: =IF(AND(I3=12,O3<>47053,MAX('PR-RAS'!D593:E593)>0),1,0) -> 0
A200: 254 | B200: O.K. | C200: Obveznici razine 12 ne smiju imati popunjene šifre 5414 do 5416, osim obveznika s RKP-om 174 i 1087. | E200: 0 | F200: 0 | G200: =IF(AND(I3=12,O3<>174,O3<>1087,MAX('PR-RAS'!D600:E602)>0),1,0) -> 0
... 151 more rows

Sheet Promjene
A1: PROMJENE
A2: Na ovom radnom listu dat će se popis svih, i najmanjih promjena Excel datoteke iz verzije u verziju (bilo da su nastale zbog promjene zakonskih propisa, ispravka pogrešaka u Excel datoteci, dodatnim kontrolama ili poboljšanjima obrasca.
A3: Verzija | B3: Opis promjene u odnosu na prethodnu verziju
A4: 2.0.0. | B4: Svi obrasci proračuna i proračunskih korisnika objedinjeni su zbog potreba kontrola između obrazaca te lakšu kontrolu obveznosti (koja razina je obvezna podnositi koji obrazac).
A5: 2.0.0. | B5: Uvedena su polja "Datum od" i "Datum do" svakog pojedinog razdoblja kako bi se moglo posebno prepoznati obveznike koji nisu poslovali cijelo navedeno razdoblje (novootvoreni obveznici i obveznici koji zbog statusnih promjena gube pravnu osobnost).
A6: 2.0.0. | B6: Programskim kućama koje izrađuju aplikacije za punjenje obrazaca olakšan je postao jer se za sve obrasce i sve vrste posla unosi jedno jedinstveno zaglavlje, u svakom obrascu AOP oznake upisane su u koloni "C", dok svi iznosi (bez obzira na broj kolona) počinju u koloni "D", u 12. retku. Od ovoga se više neće odstupati osim ako ne bude nikakve druge mogućnosti da se unesu potrebne promjene.
A7: 2.0.1. | B7: Popravljeni su pogrešni naslovi nekih obrazaca. Dodana je kontrola da se u poštanski broj ne može unijeti nešto što nije broj između 10000 i 60000. Popravljena je kontrola upozorenja na S-PR-RAS obrascu koja je krivo izračunavala razradu konta 32 (kontrola pod rednim brojem 90)
A8: 2.0.2. | B8: Ispravljena kontrola u PR-RAS obrascu koja je AOP 010 zbrajala u AOP oznaku 003, umjesto da je oduzimala od sume svih ostalih AOP oznaka.
A9: 2.0.3. | B9: Ispravljena kontrola upozorenja na broj zaposlenih u PR-RAS obrascu preko 1000 kada to nije. Ispravljena kontrola koja je za polugodište javljala pogrešku da se za razinu 23 ne predaje obrazac Obveze. Svi obveznici (ne više samo oni kojima je razdjel ujedno i glava) razina 11 i 12 trebaju upisati razdjel, a ostali obveznici ne mogu.
A10: 2.0.3. | B10: Upisom razine 11 ili 12 u zaglavlju obrasca obveze automatski se pojavljuje oznaka da je obrazac mjesečni, a ne kvartalni. Promijenjeni su opisi obveznosti predaje prema razinama, grupirani na mjesečnu obvezu, kvartalnu, polugodišnju i godišnju. Na obrazac obveze, na dnu obrasca dodana crta za potpis zakonskog predstavnika (za dostavu obrasca nadležnim ministarstvima).
A11: 2.0.3. | B11: Proširene upute tekstom o upotrebi ove Excel datoteke za dostavu podataka nadležnim ministarstvima ili za neke druge potrebe.
A12: 2.0.4. | B12: Popravljena kontrola broj 36 u PR-RAS-u koja je provjeravala pogrešne AOP pozicije. Popravljena kontrola koja je javljala pogrešku ako je bio popunjen polugodišnji obrazac NT za razine 22 i 23.
A13: 2.0.5. | B13: Popravljena kontrola broj 9 u kojoj je za razinu 23 traženo da bude upisan i obrazac NT, a stvarno ne treba biti.
A14: 2.0.6. | B14: Popravljene kontrole broj 7 i 12 (obveznost predaje po razinama 13 i 42) te kontrola 63 - iznosi planiranog za razdoblje i planiranog za cijelu godinu u obrascu PR-RAS moraju biti identični kod godišnjeg obrasca, a za ostala razdoblja iznos planirano za razdoblje mora biti manji ili jednak planiranom za cijelu godinu.
A15: 2.0.7. | B15: Popravljena je kontrola broj 63 koja govori da planirano za razdoblje ne može biti veće od planiranoga za godinu. Iznimno, ovakvo stanje dopušteno je kod sumarnih AOP oznaka u kojima se neka vrijednost oduzima (primjerice AOP oznaka 222 ili 223) jer se računaju automatski.
A16: 2.0.8. | B16: Popravljene kontrole popunjenosti obrazaca za razine 13, 31, 41 i 42 na godišnjoj razini. Dodan je razdjel 095, Izbrisan je razdjel 065 (sa starim nazivom, ostao samo s novim), promijenjen opis kontrole P-VRIO obrasca (naglašavanje da se oznaka DA ili NE na referentnoj stranici mora upisati ručno).
A17: 2.0.9. | B17: Dodana mogućnost odabira svih razdoblje za 2010. godinu, dodani novi razdjeli za 2010.
A18: 2.1.0. | B18: Popravljen je prikaz datuma od i do na nekim obrascima koji se je poremetio ubacivanjem novih razdoblja za 2010.
A19: 2.1.0. | B19: Dorađena su poslovna pravila o popunjavanju obrasca, kolona planirano za razdoblje i planirano ukupno popunjavaju se samo na trećoj razini kontnog plana, a ne na četvrtoj kako je bilo ranije, te je obrazac dorađen u skladu s tim pravilom.
A20: 2.5.0. | B20: Omogućen je unos samo obrasca Obveze (mjesečne) za razdoblja siječanj i veljaču 2011. Ostali obrasci će se mijenjati i čekaju se izmjene. Zbog toga je Obveze dobio novu šifru vrste posla.
A21: 2.9.0. | B21: Omogućen unos obrazaca za I. kvartal 2011. godine - nepotpune kontrole.
A22: 2.9.1. | B22: Omogućen unos obrasca Obveze za travanj 2011. godine
A23: 4.0.0. | B23: Novi obrazac od 1.1.2015. - prva verzija obrasca, omogućen samo unos mjesečnog obrasca Obveze za siječanj 2015. godine
A24: 4.0.1. | B24: Omogućen unos mjesečnih obveza za veljaču. Ostale vrste obrazaca još nemaju kontrole.
A25: 4.0.2. | B25: Ugrađene su sve kontrole za sve obrasce. Omogućen je unos za sva razdoblja u 2015. godini. Dodan je opis novosti i promjena kod predaje u Upute. Ažuriran je popis razdjela za 2015. godinu.
A26: 4.0.3. | B26: Ispravljena kontrola broj 23. Pogrešno je upozoravala na AOP 646, umjesto na 649.
A27: 4.0.4. | B27: Kontrola upozorenja broj 156 je obrisana jer više nema u dodatnim podacima razrade koja je bila prije za ovaj konto. Ispravljena je kontrola 147 koja nije dopuštala da razina 11 ima upisan broj zaposlenih u tijelima s obzirom da nadležna ministarstva imaju te zaposlene, a oni također predaju izvještaje razine 11. Ispravljena je kontrola 58. koja nije dobro radila na koloni tekuće godine. Ispravljena je automatska suma na AOP oznaci 224 u koloni prethodne godine u Bilanci. Unesene su sitne ispravke "tipfelera" u nekim kontrolama.
A28: 4.0.5. | B28: Opis AOP oznake 639 je ispravljen, glasio je "Rashodi budućih razdoblja", novi opis je "Unaprijed plaćeni rashodi budućih razdoblja". Ispravljena pogrešna formula na AOP-u 407. Ispravljena je pogrešna formula u kontroli 028.
A29: 4.0.6. | B29: Ispravljene su pogreške u obrascu Obveze zbog kojih se podaci pod AOP oznakama 095 do 101 nisu uopće učitavali u aplikaciju. Iz tog razloga neće se više moći učitati bilo koji obrazac iz verzije niže od 4.0.6. Dodane su nova kontrola broj 52 i 53 (svim bivšim kontrolama iza 51 povećan je broj za 2). Ispravljen je opis što se sumira pod AOP oznakama 405 i 406. Formula je bila dobra. Ispravljen je i opis i formula za sumu na AOP oznaci 407. Proširena je lista AOP-a koji nesmiju biti popunjeni za razinu 22 i 23 - dodani su AOP-i 132 i 133 u kontrolu 153 (bivša kontrola 151). Adresa e-pošte za kontakt u zaglavlju stavljena je kao obvezan podatak zbog česte potrebe kontaktiranja obveznika, a koje je nemoguće kontaktirati putem telefona.
A30: 4.0.7. | B30: Kontrola 153 podijeljena je na dvije kontrole, jer se zabrane popunjavanja nekih AOP pozicija razlikuju kod razine 22 i 23. Za razinu 23 dopušteno je popunjavanje AOP pozicija 128 do 133.
A31: 4.0.8. | B31: Omogućen je unos mjesečnih Obveza i za razinu 11. Nova Bilanca za 2015. još nije ugrađena u obrazac.
A32: 4.0.9. | B32: Ispravljena je kontrola broj 66 koja je pogrešno glasila "AOP 423 mora biti jedna sumi AOP-a 496+498", ispravno je da treba glasiti "AOP423 mora biti jednak sumi AOP-a 496 do 498", tj. i AOP oznaka 497 ulazi u kontrolu sume. Ispravljen je i opus i formula za ovu kontrolu.
A33: 4.1.0. | B33: Ugrađena je nova Bilanca koja vrijedi od 2015. godine. Kontrole 15 i 16 su dorađene i spojene u jednu (kontrola 15, a stara kontrola 16 je obrisana te je broj kontrola manji). S proširenjem broja AOP oznaka u dodatnim podacima u Bilanci promijenjeni su opisi kontrola 224 do 232 u Bilanci, tj. kontrole se nisu mijenjali ali su opisi prilagođeni novim AOP oznakama. Dodano je 7 novih kontrola na obrazac Bilancu. Kako se obrazac Bilanca promijenio, dodana mu je nova (stara) šifra vrste posla 152.
A34: 4.2.0. | B34: Ukinuti su mjesečni obrasci Obveze za sve vrste obveznika. Izmjijenjen je opis AOP oznake 639 u PR-RAS-u te AOP 001 u obrascu Obveze. Obrazac obveze predaje se za cijelo razdoblje, od početka godine do datuma izvještavanja, ne samo za kvartal (tj. obveze na dan 30.06 predaju se za razdoblje 1.1. do 30.06. ne više za razdoblje 1.4. do 30.06.). Izmijenjena je kontrola 153. Dorađena je kontrola broj 16. Promijenjena je obveznost po razdobljima i razinama u odnosu na prethodnu godinu. U kontrole 148 do 156 dopuštene su iznimke na neke AOP oznake te za neke korisnike.
A35: 4.2.1. | B35: Ispravljen je opis vrste posla na samom radnom listu izvještaja o Obvezama (VP 159, a ne VP 160). Ispravljen je datum koji se prikazuje na izvještaju o obvezama, nije od 1. u mjesecu do kraja mjesece već od 1. siječnja do kraja razdoblja jer više mjesečnih obveza nema. Ova izmjena ne utječe na funkcionalnost obrasca, napravljena je samo iz razloga da ne zbunjuje korisnike, tj. da ne smatraju kako se radi o mjesečnom izvještaju obveze. Ako ste već izvještaj ispunili u verziji 4.2.0. nije potrebno prebacivati u novu verziju.
A36: 4.2.2. | B36: Dodan komentar u obrazac Obveze na AOP oznaku 001. Ispravljen pogrešan opis AOP oznake 639. Ispravljena kontrola 13 koja je pogreškom uspoređivala AOP 639 iz PR-RAS obrasca i 159 iz Bilance. Ispravno je da je uspoređuje sa AOP oznakom 158 iz Bilance.
A37: 4.2.3. | B37: Ispravljena je kontrola broj 16 koja nije uzimala u obzir iznos prikazan na AOP oznaci 234 PR-RAS-a. Ispravljen opis kontrole 13 koji je kod zadnje izmjene greškom ostao 159. Obveznici koji nisu imali popunjen iznos na AOP 234 ni u jednoj godini mogu predati i na starijoj verziji obrasca jer im ova kontrola neće javljati pogrešku.
A38: 5.0.1. | B38: Nova verzija obrasca za 2017. Promijenio se broj AOP oznaka kod 3 obrasca pa su svi obrasci i kontrole novi.
A39: 5.0.2. | B39: Dorađene kontrole izuzetaka koji mogu imati popunjen AOP 031 (a time i 024) za razinu 11, tj. kontrola 154 je podijeljena na 154. i 155., a kontrola 157 na 158 i 159, pa se i broj kontrola povećao za 2. Ispravljena kontrola 14. umjesto AOP-a 159 kontrolira se AOP 158. Popravljene neke kontrole koje ne dopuštaju da neka razina ima popunjen neki određeni AOP.
A40: 5.0.3. | B40: Na listu AOP oznaka koje ne mogu biti popunjene kod razine 23 dodane su AOP oznake: 069 do 073 i 241 do 245. Obrazac eventualno popunjen u verziji 5.0.2. može se predati ako je zadovoljen ovaj uvjet da za razinu 23 nisu popunjene te AOP oznake. Ispravljena kontrola 172, greškom je javljala pogrešku ako je popunjen AOP 695, a ne 685.
A41: 5.0.4. | B41: Ispravljene kontrole 202 i 203 koje su provjeravale pogrešne AOP oznake u koloni tekuće godine. Ponovo je ispravljena kontrola 177, tj. isključen je AOP 246 iz liste onih koji ne mogu biti popunjeni. Popravljena je kontrola 168 koja se javljala kod razine 12 umjesto kod razine 13. Kontrole na razinu 12 nisu radile ako je bila upisana razina 11 i kad je izvještaj imao oznaku da vrijedi i kao konsolidirani.Ispravljena je kontrola 205 koja je greškom uspoređivala AOP-e 210 i 729, a treba 211 i 729.
A42: 5.0.5. | B42: RKP 47115 dodan na listu izuzetaka za nepopunjavanje AOP oznake 579 za razinu 12. Dorađena kontrola popunjenosti općih podataka - zakonski predstavnik mora biti upisan inače Excel javlja pogrešku. Dodana su razdoblja za 2018. godinu. Obveznicima razine 21 i 31 dopušten je unos podataka na AOP oznake 222 do 227. Popravljena kontrola 271 koja je u stupcu tekućeg razdoblja uspoređivala krive AOP oznake.
A43: 5.0.6. | B43: RKP 1087 dodan na listu izuzetaka za nepopunjavanje AOP oznake 474 do 478. Dorađen je opis kontrole 3, da dodatno pojasni oznaku "DA" za konsolidaciju jer korisnici proračuna razine 11 vrlo često pokušavaju upisati "DA" iako nisu ni obveznici predaje konsolidiranih izvještaja. Skriveni su redovi i stupci koji služe kao popis mogućih šifri, a koji su zbunjivali neke obveznike. Skriveni su stupci i redovi u obrascu verzije 5.0.5. koji se ne bi trebali vidjeti, a sadrže šifarnike potrebne za rad Kontrola, ne umanjuju funkcionalnost Excel-a, ali zbunjuju korisnike.
A44: 5.0.7. | B44: Dodana nova razdoblja za 2019. godinu, dodane nove kontrole broj 254 na PR-RAS obrazac koja ne dopušta da višak i manjak prihoda preneseni budu istovremeno popunjeni. Sitne promjene uputa. Dodani razdjeli 011 i 255, brisan razdjel 256.
A45: 6.0.0. | B45: Dodano je nekoliko novih AOP pozicija unutar obrasca Bilanca, za informaciju su ozančene plavom bojom. Shodno izmjenama obrasca Bilance izmijenjeni su i redni brojevi AOP oznaka i kontrole. Dodana razdoblja za 2020. godinu. Dodan novi razdjel 039 - Hrvatska vatrogasna zajednica.
A46: 7.0.0. | B46: Nova verzija obrasca. Najveća promjena je micanje AOP-a i uvođenje polja Šifre kao jedinstvenu stavku za potrebe obrade unesenih podataka u web aplikaciji. Također, promjene su zahvatile sve listove ovog Excel dokumenta te su iste sad u skladu s web aplikacijom. Izbačen je dio vezan za unos općih podataka (koji se sad povlači iz aplikacije prilikom predaje dokumenta), smanjen je prikaz pojedinih podataka na samim obrascima te su pojedine kontrole uklonjenje.
A47: 7.3.0. | B47: Dodane neke nove i izmijenjene postojeće kontrole na popunjenost nekih šifri po razinama. Dodavanje novih kontrola na broj zaposlenih u tijelima i kod korisnika, ispravke nekih kontrola koje nisu dobro radile u Excel-u. Dorađena kontrola na mogućnost upisa minus stavaka u PR-RAS-u. Ispravljene kontrole 178 i 191 koje su za razine 11 i 22 javljale pogrešku i kada su podaci bili ispravni.
A48: 8.0.0. | B48: Nova verzija obrasca. Najveća promjena je uklanjanje AOP oznake i uvođenje polja Šifre kao jedinstvene stavke za potrebe obrade unesenih podataka u web aplikaciji. Dodatna značajna promjena odnosi se na unos novčanih iznosa koji se u obrascima iskazuju punim brojem sa dvije decimale u službenoj valuti Republike Hrvatske. Izbačen je dio podataka vezan za unos Općih podataka o proračunu, proračunskom i izvanproračunskom korisniku na Referentnoj stranici (podaci se sada za svaki subjekt povlače iz Registra proračunskih i izvanproračunskih korisnika u samoj aplikaciji prilikom predaje obrazaca). Isto tako, smanjen je prikaz pojedinih podataka na samim obrascima te su uklonjene pojedine kontrole. Promjene su zahvatile sve listove ovog Excel dokumenta te su u skladu s web aplikacijom.
A49: 8.0.1. | B49: Korekcije postojećih kontrola. Korekcije formula određenih šifri. Referentna stranica prilagođena za ispis. Promjene su zahvatile listove RefStr, PR-RAS i Kont.
A50: 8.0.2. | B50: Dorađen list Upute. Dodane nedostajale formule za izračun indeksa na listu PR-RAS.
A51: 8.0.3. | B51: Korekcija postojećih kontrola (kontrole broj 156 i 160).
A52: 8.1.0. | B52: Korekcija postojećih kontrola (ažurirane kontrole broj 136, 148, 247), brisana kontrola broj 188 i dodana nova kontrola broj 257.
A53: 8.1.1. | B53: Korekcija postojećih kontrola (ažurirane kontrole broj 158 i 161).
A54: 8.1.2. | B54: Korekcija postojećih kontrola (ažurirane kontrole broj 155 i 159).
A55: 8.1.3. | B55: Dodane nove kontrole: kontrola broj 5 između različitih obrazaca, kontrola broj 258 na obrascu PR-RAS, kontrole broj 30, 31, 32, 33, 34, 35, 36, 37, 38, 39, 40, 41, 42, 43, 44 i 45 na obrascu BILANCA.
A56: 8.1.4. | B56: Korekcija postojećih kontrola (ažurirane kontrole broj 136, 146, 248 i 252). Izmijenjen opis kontrole 5 (Kontrola između dva različita obrasca).
A57: 8.1.5. | B57: Korekcija postojećih kontrola: za obrazac PR-RAS ažurirane kontrole broj 135 i 169, a za obrazac BILANCA ažurirana kontrola 27 i dodana nova kontrola 46.
A58: 8.2.0. | B58: Novi obrasci od 1.1.2025. Ažurirane postojeće kontrole i dodane nove sukladno izmjenama u obrascima financijskih izvještaja.
A59: 8.3.0. | B59: Dodan novi financijski izvještaj (EU izvještaj) koji se predaje u zasebnom MS Excel dokumentu. Korekcija postojećih kontrola broj 137, 147, 151, 163, 168, 171 i 235 za obrazac PR-RAS. Dodana nova kontrola broj 55 za obrazac BILANCA.
